date,cmname,unit,category,price,currency,country,admname,adm1id,mktname,mktid,cmid,ptid,umid,catid,sn,default
1/15/2003,"Rice (mixed, low quality) - Wholesale",KG,cereals and tubers,845,KHR,Cambodia,Banteay Meanchey,791,Banteay Meanchey,640,165,14,5,1,640_165_14_5,
2/15/2003,"Rice (mixed, low quality) - Wholesale",KG,cereals and tubers,950,KHR,Cambodia,Banteay Meanchey,791,Banteay Meanchey,640,165,14,5,1,640_165_14_5,
3/15/2003,"Rice (mixed, low quality) - Wholesale",KG,cereals and tubers,880,KHR,Cambodia,Banteay Meanchey,791,Banteay Meanchey,640,165,14,5,1,640_165_14_5,
4/15/2003,"Rice (mixed, low quality) - Wholesale",KG,cereals and tubers,870,KHR,Cambodia,Banteay Meanchey,791,Banteay Meanchey,640,165,14,5,1,640_165_14_5,
5/15/2003,"Rice (mixed, low quality) - Wholesale",KG,cereals and tubers,860,KHR,Cambodia,Banteay Meanchey,791,Banteay Meanchey,640,165,14,5,1,640_165_14_5,
6/15/2003,"Rice (mixed, low quality) - Wholesale",KG,cereals and tubers,700,KHR,Cambodia,Banteay Meanchey,791,Banteay Meanchey,640,165,14,5,1,640_165_14_5,
7/15/2003,"Rice (mixed, low quality) - Wholesale",KG,cereals and tubers,705,KHR,Cambodia,Banteay Meanchey,791,Banteay Meanchey,640,165,14,5,1,640_165_14_5,
8/15/2003,"Rice (mixed, low quality) - Wholesale",KG,cereals and tubers,710,KHR,Cambodia,Banteay Meanchey,791,Banteay Meanchey,640,165,14,5,1,640_165_14_5,
9/15/2003,"Rice (mixed, low quality) - Wholesale",KG,cereals and tubers,810,KHR,Cambodia,Banteay Meanchey,791,Banteay Meanchey,640,165,14,5,1,640_165_14_5,
10/15/2003,"Rice (mixed, low quality) - Wholesale",KG,cereals and tubers,800,KHR,Cambodia,Banteay Meanchey,791,Banteay Meanchey,640,165,14,5,1,640_165_14_5,
11/15/2003,"Rice (mixed, low quality) - Wholesale",KG,cereals and tubers,780,KHR,Cambodia,Banteay Meanchey,791,Banteay Meanchey,640,165,14,5,1,640_165_14_5,
12/15/2003,"Rice (mixed, low quality) - Wholesale",KG,cereals and tubers,690,KHR,Cambodia,Banteay Meanchey,791,Banteay Meanchey,640,165,14,5,1,640_165_14_5,
2/15/2004,"Rice (mixed, low quality) - Wholesale",KG,cereals and tubers,665,KHR,Cambodia,Banteay Meanchey,791,Banteay Meanchey,640,165,14,5,1,640_165_14_5,
3/15/2004,"Rice (mixed, low quality) - Wholesale",KG,cereals and tubers,580,KHR,Cambodia,Banteay Meanchey,791,Banteay Meanchey,640,165,14,5,1,640_165_14_5,
4/15/2004,"Rice (mixed, low quality) - Wholesale",KG,cereals and tubers,700,KHR,Cambodia,Banteay Meanchey,791,Banteay Meanchey,640,165,14,5,1,640_165_14_5,
5/15/2004,"Rice (mixed, low quality) - Wholesale",KG,cereals and tubers,780,KHR,Cambodia,Banteay Meanchey,791,Banteay Meanchey,640,165,14,5,1,640_165_14_5,
6/15/2004,"Rice (mixed, low quality) - Wholesale",KG,cereals and tubers,770,KHR,Cambodia,Banteay Meanchey,791,Banteay Meanchey,640,165,14,5,1,640_165_14_5,
7/15/2004,"Rice (mixed, low quality) - Wholesale",KG,cereals and tubers,800,KHR,Cambodia,Banteay Meanchey,791,Banteay Meanchey,640,165,14,5,1,640_165_14_5,
8/15/2004,"Rice (mixed, low quality) - Wholesale",KG,cereals and tubers,820,KHR,Cambodia,Banteay Meanchey,791,Banteay Meanchey,640,165,14,5,1,640_165_14_5,
9/15/2004,"Rice (mixed, low quality) - Wholesale",KG,cereals and tubers,894.29,KHR,Cambodia,Banteay Meanchey,791,Banteay Meanchey,640,165,14,5,1,640_165_14_5,
10/15/2004,"Rice (mixed, low quality) - Wholesale",KG,cereals and tubers,940,KHR,Cambodia,Banteay Meanchey,791,Banteay Meanchey,640,165,14,5,1,640_165_14_5,
11/15/2004,"Rice (mixed, low quality) - Wholesale",KG,cereals and tubers,950,KHR,Cambodia,Banteay Meanchey,791,Banteay Meanchey,640,165,14,5,1,640_165_14_5,
12/15/2004,"Rice (mixed, low quality) - Wholesale",KG,cereals and tubers,960,KHR,Cambodia,Banteay Meanchey,791,Banteay Meanchey,640,165,14,5,1,640_165_14_5,
1/15/2005,"Rice (mixed, low quality) - Wholesale",KG,cereals and tubers,960,KHR,Cambodia,Banteay Meanchey,791,Banteay Meanchey,640,165,14,5,1,640_165_14_5,
2/15/2005,"Rice (mixed, low quality) - Wholesale",KG,cereals and tubers,830,KHR,Cambodia,Banteay Meanchey,791,Banteay Meanchey,640,165,14,5,1,640_165_14_5,
3/15/2005,"Rice (mixed, low quality) - Wholesale",KG,cereals and tubers,895,KHR,Cambodia,Banteay Meanchey,791,Banteay Meanchey,640,165,14,5,1,640_165_14_5,
4/15/2005,"Rice (mixed, low quality) - Wholesale",KG,cereals and tubers,880,KHR,Cambodia,Banteay Meanchey,791,Banteay Meanchey,640,165,14,5,1,640_165_14_5,
5/15/2005,"Rice (mixed, low quality) - Wholesale",KG,cereals and tubers,885,KHR,Cambodia,Banteay Meanchey,791,Banteay Meanchey,640,165,14,5,1,640_165_14_5,
6/15/2005,"Rice (mixed, low quality) - Wholesale",KG,cereals and tubers,883.33,KHR,Cambodia,Banteay Meanchey,791,Banteay Meanchey,640,165,14,5,1,640_165_14_5,
7/15/2005,"Rice (mixed, low quality) - Wholesale",KG,cereals and tubers,900,KHR,Cambodia,Banteay Meanchey,791,Banteay Meanchey,640,165,14,5,1,640_165_14_5,
8/15/2005,"Rice (mixed, low quality) - Wholesale",KG,cereals and tubers,937.5,KHR,Cambodia,Banteay Meanchey,791,Banteay Meanchey,640,165,14,5,1,640_165_14_5,
9/15/2005,"Rice (mixed, low quality) - Wholesale",KG,cereals and tubers,992.5,KHR,Cambodia,Banteay Meanchey,791,Banteay Meanchey,640,165,14,5,1,640_165_14_5,
10/15/2005,"Rice (mixed, low quality) - Wholesale",KG,cereals and tubers,1000,KHR,Cambodia,Banteay Meanchey,791,Banteay Meanchey,640,165,14,5,1,640_165_14_5,
11/15/2005,"Rice (mixed, low quality) - Wholesale",KG,cereals and tubers,1000,KHR,Cambodia,Banteay Meanchey,791,Banteay Meanchey,640,165,14,5,1,640_165_14_5,
12/15/2005,"Rice (mixed, low quality) - Wholesale",KG,cereals and tubers,965.71,KHR,Cambodia,Banteay Meanchey,791,Banteay Meanchey,640,165,14,5,1,640_165_14_5,
1/15/2006,"Rice (mixed, low quality) - Wholesale",KG,cereals and tubers,960,KHR,Cambodia,Banteay Meanchey,791,Banteay Meanchey,640,165,14,5,1,640_165_14_5,
2/15/2006,"Rice (mixed, low quality) - Wholesale",KG,cereals and tubers,858.57,KHR,Cambodia,Banteay Meanchey,791,Banteay Meanchey,640,165,14,5,1,640_165_14_5,
3/15/2006,"Rice (mixed, low quality) - Wholesale",KG,cereals and tubers,823.33,KHR,Cambodia,Banteay Meanchey,791,Banteay Meanchey,640,165,14,5,1,640_165_14_5,
4/15/2006,"Rice (mixed, low quality) - Wholesale",KG,cereals and tubers,800,KHR,Cambodia,Banteay Meanchey,791,Banteay Meanchey,640,165,14,5,1,640_165_14_5,
5/15/2006,"Rice (mixed, low quality) - Wholesale",KG,cereals and tubers,812.5,KHR,Cambodia,Banteay Meanchey,791,Banteay Meanchey,640,165,14,5,1,640_165_14_5,
6/15/2006,"Rice (mixed, low quality) - Wholesale",KG,cereals and tubers,860,KHR,Cambodia,Banteay Meanchey,791,Banteay Meanchey,640,165,14,5,1,640_165_14_5,
12/15/2006,"Rice (mixed, low quality) - Wholesale",KG,cereals and tubers,830,KHR,Cambodia,Banteay Meanchey,791,Banteay Meanchey,640,165,14,5,1,640_165_14_5,
1/15/2007,"Rice (mixed, low quality) - Wholesale",KG,cereals and tubers,870,KHR,Cambodia,Banteay Meanchey,791,Banteay Meanchey,640,165,14,5,1,640_165_14_5,
2/15/2007,"Rice (mixed, low quality) - Wholesale",KG,cereals and tubers,880,KHR,Cambodia,Banteay Meanchey,791,Banteay Meanchey,640,165,14,5,1,640_165_14_5,
3/15/2007,"Rice (mixed, low quality) - Wholesale",KG,cereals and tubers,917.5,KHR,Cambodia,Banteay Meanchey,791,Banteay Meanchey,640,165,14,5,1,640_165_14_5,
4/15/2007,"Rice (mixed, low quality) - Wholesale",KG,cereals and tubers,900,KHR,Cambodia,Banteay Meanchey,791,Banteay Meanchey,640,165,14,5,1,640_165_14_5,
5/15/2007,"Rice (mixed, low quality) - Wholesale",KG,cereals and tubers,985,KHR,Cambodia,Banteay Meanchey,791,Banteay Meanchey,640,165,14,5,1,640_165_14_5,
6/15/2007,"Rice (mixed, low quality) - Wholesale",KG,cereals and tubers,1070,KHR,Cambodia,Banteay Meanchey,791,Banteay Meanchey,640,165,14,5,1,640_165_14_5,
7/15/2007,"Rice (mixed, low quality) - Wholesale",KG,cereals and tubers,1155,KHR,Cambodia,Banteay Meanchey,791,Banteay Meanchey,640,165,14,5,1,640_165_14_5,
8/15/2007,"Rice (mixed, low quality) - Wholesale",KG,cereals and tubers,1240,KHR,Cambodia,Banteay Meanchey,791,Banteay Meanchey,640,165,14,5,1,640_165_14_5,
9/15/2007,"Rice (mixed, low quality) - Wholesale",KG,cereals and tubers,1245,KHR,Cambodia,Banteay Meanchey,791,Banteay Meanchey,640,165,14,5,1,640_165_14_5,
10/15/2007,"Rice (mixed, low quality) - Wholesale",KG,cereals and tubers,1288.89,KHR,Cambodia,Banteay Meanchey,791,Banteay Meanchey,640,165,14,5,1,640_165_14_5,
11/15/2007,"Rice (mixed, low quality) - Wholesale",KG,cereals and tubers,1329.45,KHR,Cambodia,Banteay Meanchey,791,Banteay Meanchey,640,165,14,5,1,640_165_14_5,
12/15/2007,"Rice (mixed, low quality) - Wholesale",KG,cereals and tubers,1370,KHR,Cambodia,Banteay Meanchey,791,Banteay Meanchey,640,165,14,5,1,640_165_14_5,
1/15/2008,"Rice (mixed, low quality) - Wholesale",KG,cereals and tubers,1400,KHR,Cambodia,Banteay Meanchey,791,Banteay Meanchey,640,165,14,5,1,640_165_14_5,
2/15/2008,"Rice (mixed, low quality) - Wholesale",KG,cereals and tubers,1400,KHR,Cambodia,Banteay Meanchey,791,Banteay Meanchey,640,165,14,5,1,640_165_14_5,
3/15/2008,"Rice (mixed, low quality) - Wholesale",KG,cereals and tubers,1400,KHR,Cambodia,Banteay Meanchey,791,Banteay Meanchey,640,165,14,5,1,640_165_14_5,
4/15/2008,"Rice (mixed, low quality) - Wholesale",KG,cereals and tubers,2286,KHR,Cambodia,Banteay Meanchey,791,Banteay Meanchey,640,165,14,5,1,640_165_14_5,
5/15/2008,"Rice (mixed, low quality) - Wholesale",KG,cereals and tubers,2000,KHR,Cambodia,Banteay Meanchey,791,Banteay Meanchey,640,165,14,5,1,640_165_14_5,
6/15/2008,"Rice (mixed, low quality) - Wholesale",KG,cereals and tubers,2100,KHR,Cambodia,Banteay Meanchey,791,Banteay Meanchey,640,165,14,5,1,640_165_14_5,
7/15/2008,"Rice (mixed, low quality) - Wholesale",KG,cereals and tubers,2000,KHR,Cambodia,Banteay Meanchey,791,Banteay Meanchey,640,165,14,5,1,640_165_14_5,
8/15/2008,"Rice (mixed, low quality) - Wholesale",KG,cereals and tubers,2000,KHR,Cambodia,Banteay Meanchey,791,Banteay Meanchey,640,165,14,5,1,640_165_14_5,
9/15/2008,"Rice (mixed, low quality) - Wholesale",KG,cereals and tubers,2000,KHR,Cambodia,Banteay Meanchey,791,Banteay Meanchey,640,165,14,5,1,640_165_14_5,
10/15/2008,"Rice (mixed, low quality) - Wholesale",KG,cereals and tubers,2000,KHR,Cambodia,Banteay Meanchey,791,Banteay Meanchey,640,165,14,5,1,640_165_14_5,
11/15/2008,"Rice (mixed, low quality) - Wholesale",KG,cereals and tubers,1825,KHR,Cambodia,Banteay Meanchey,791,Banteay Meanchey,640,165,14,5,1,640_165_14_5,
12/15/2008,"Rice (mixed, low quality) - Wholesale",KG,cereals and tubers,1600,KHR,Cambodia,Banteay Meanchey,791,Banteay Meanchey,640,165,14,5,1,640_165_14_5,
1/15/2009,"Rice (mixed, low quality) - Wholesale",KG,cereals and tubers,1600,KHR,Cambodia,Banteay Meanchey,791,Banteay Meanchey,640,165,14,5,1,640_165_14_5,
2/15/2009,"Rice (mixed, low quality) - Wholesale",KG,cereals and tubers,1400,KHR,Cambodia,Banteay Meanchey,791,Banteay Meanchey,640,165,14,5,1,640_165_14_5,
3/15/2009,"Rice (mixed, low quality) - Wholesale",KG,cereals and tubers,1400,KHR,Cambodia,Banteay Meanchey,791,Banteay Meanchey,640,165,14,5,1,640_165_14_5,
4/15/2009,"Rice (mixed, low quality) - Wholesale",KG,cereals and tubers,1400,KHR,Cambodia,Banteay Meanchey,791,Banteay Meanchey,640,165,14,5,1,640_165_14_5,
5/15/2009,"Rice (mixed, low quality) - Wholesale",KG,cereals and tubers,1200,KHR,Cambodia,Banteay Meanchey,791,Banteay Meanchey,640,165,14,5,1,640_165_14_5,
6/15/2009,"Rice (mixed, low quality) - Wholesale",KG,cereals and tubers,1200,KHR,Cambodia,Banteay Meanchey,791,Banteay Meanchey,640,165,14,5,1,640_165_14_5,
7/15/2009,"Rice (mixed, low quality) - Wholesale",KG,cereals and tubers,1340,KHR,Cambodia,Banteay Meanchey,791,Banteay Meanchey,640,165,14,5,1,640_165_14_5,
8/15/2009,"Rice (mixed, low quality) - Wholesale",KG,cereals and tubers,1500,KHR,Cambodia,Banteay Meanchey,791,Banteay Meanchey,640,165,14,5,1,640_165_14_5,
9/15/2009,"Rice (mixed, low quality) - Wholesale",KG,cereals and tubers,1650,KHR,Cambodia,Banteay Meanchey,791,Banteay Meanchey,640,165,14,5,1,640_165_14_5,
10/15/2009,"Rice (mixed, low quality) - Wholesale",KG,cereals and tubers,1718.75,KHR,Cambodia,Banteay Meanchey,791,Banteay Meanchey,640,165,14,5,1,640_165_14_5,
11/15/2009,"Rice (mixed, low quality) - Wholesale",KG,cereals and tubers,1725,KHR,Cambodia,Banteay Meanchey,791,Banteay Meanchey,640,165,14,5,1,640_165_14_5,
12/15/2009,"Rice (mixed, low quality) - Wholesale",KG,cereals and tubers,1775,KHR,Cambodia,Banteay Meanchey,791,Banteay Meanchey,640,165,14,5,1,640_165_14_5,
1/15/2010,"Rice (mixed, low quality) - Wholesale",KG,cereals and tubers,1800,KHR,Cambodia,Banteay Meanchey,791,Banteay Meanchey,640,165,14,5,1,640_165_14_5,
2/15/2010,"Rice (mixed, low quality) - Wholesale",KG,cereals and tubers,1800,KHR,Cambodia,Banteay Meanchey,791,Banteay Meanchey,640,165,14,5,1,640_165_14_5,
3/15/2010,"Rice (mixed, low quality) - Wholesale",KG,cereals and tubers,1800,KHR,Cambodia,Banteay Meanchey,791,Banteay Meanchey,640,165,14,5,1,640_165_14_5,
4/15/2010,"Rice (mixed, low quality) - Wholesale",KG,cereals and tubers,1800,KHR,Cambodia,Banteay Meanchey,791,Banteay Meanchey,640,165,14,5,1,640_165_14_5,
5/15/2010,"Rice (mixed, low quality) - Wholesale",KG,cereals and tubers,1800,KHR,Cambodia,Banteay Meanchey,791,Banteay Meanchey,640,165,14,5,1,640_165_14_5,
6/15/2010,"Rice (mixed, low quality) - Wholesale",KG,cereals and tubers,1800,KHR,Cambodia,Banteay Meanchey,791,Banteay Meanchey,640,165,14,5,1,640_165_14_5,
7/15/2010,"Rice (mixed, low quality) - Wholesale",KG,cereals and tubers,1748.33,KHR,Cambodia,Banteay Meanchey,791,Banteay Meanchey,640,165,14,5,1,640_165_14_5,
8/15/2010,"Rice (mixed, low quality) - Wholesale",KG,cereals and tubers,1500,KHR,Cambodia,Banteay Meanchey,791,Banteay Meanchey,640,165,14,5,1,640_165_14_5,
9/15/2010,"Rice (mixed, low quality) - Wholesale",KG,cereals and tubers,1683.33,KHR,Cambodia,Banteay Meanchey,791,Banteay Meanchey,640,165,14,5,1,640_165_14_5,
10/15/2010,"Rice (mixed, low quality) - Wholesale",KG,cereals and tubers,1700,KHR,Cambodia,Banteay Meanchey,791,Banteay Meanchey,640,165,14,5,1,640_165_14_5,
11/15/2010,"Rice (mixed, low quality) - Wholesale",KG,cereals and tubers,1800,KHR,Cambodia,Banteay Meanchey,791,Banteay Meanchey,640,165,14,5,1,640_165_14_5,
12/15/2010,"Rice (mixed, low quality) - Wholesale",KG,cereals and tubers,1800,KHR,Cambodia,Banteay Meanchey,791,Banteay Meanchey,640,165,14,5,1,640_165_14_5,
1/15/2011,"Rice (mixed, low quality) - Wholesale",KG,cereals and tubers,1500,KHR,Cambodia,Banteay Meanchey,791,Banteay Meanchey,640,165,14,5,1,640_165_14_5,
2/15/2011,"Rice (mixed, low quality) - Wholesale",KG,cereals and tubers,1500,KHR,Cambodia,Banteay Meanchey,791,Banteay Meanchey,640,165,14,5,1,640_165_14_5,
3/15/2011,"Rice (mixed, low quality) - Wholesale",KG,cereals and tubers,1500,KHR,Cambodia,Banteay Meanchey,791,Banteay Meanchey,640,165,14,5,1,640_165_14_5,
4/15/2011,"Rice (mixed, low quality) - Wholesale",KG,cereals and tubers,1500,KHR,Cambodia,Banteay Meanchey,791,Banteay Meanchey,640,165,14,5,1,640_165_14_5,
5/15/2011,"Rice (mixed, low quality) - Wholesale",KG,cereals and tubers,1593.55,KHR,Cambodia,Banteay Meanchey,791,Banteay Meanchey,640,165,14,5,1,640_165_14_5,
6/15/2011,"Rice (mixed, low quality) - Wholesale",KG,cereals and tubers,1500,KHR,Cambodia,Banteay Meanchey,791,Banteay Meanchey,640,165,14,5,1,640_165_14_5,
7/15/2011,"Rice (mixed, low quality) - Wholesale",KG,cereals and tubers,1500,KHR,Cambodia,Banteay Meanchey,791,Banteay Meanchey,640,165,14,5,1,640_165_14_5,
8/15/2011,"Rice (mixed, low quality) - Wholesale",KG,cereals and tubers,1558.0699,KHR,Cambodia,Banteay Meanchey,791,Banteay Meanchey,640,165,14,5,1,640_165_14_5,
9/15/2011,"Rice (mixed, low quality) - Wholesale",KG,cereals and tubers,1700,KHR,Cambodia,Banteay Meanchey,791,Banteay Meanchey,640,165,14,5,1,640_165_14_5,
10/15/2011,"Rice (mixed, low quality) - Wholesale",KG,cereals and tubers,1800,KHR,Cambodia,Banteay Meanchey,791,Banteay Meanchey,640,165,14,5,1,640_165_14_5,
11/15/2011,"Rice (mixed, low quality) - Wholesale",KG,cereals and tubers,2000,KHR,Cambodia,Banteay Meanchey,791,Banteay Meanchey,640,165,14,5,1,640_165_14_5,
12/15/2011,"Rice (mixed, low quality) - Wholesale",KG,cereals and tubers,2000,KHR,Cambodia,Banteay Meanchey,791,Banteay Meanchey,640,165,14,5,1,640_165_14_5,
1/15/2012,"Rice (mixed, low quality) - Wholesale",KG,cereals and tubers,2000,KHR,Cambodia,Banteay Meanchey,791,Banteay Meanchey,640,165,14,5,1,640_165_14_5,
2/15/2012,"Rice (mixed, low quality) - Wholesale",KG,cereals and tubers,1960,KHR,Cambodia,Banteay Meanchey,791,Banteay Meanchey,640,165,14,5,1,640_165_14_5,
3/15/2012,"Rice (mixed, low quality) - Wholesale",KG,cereals and tubers,2000,KHR,Cambodia,Banteay Meanchey,791,Banteay Meanchey,640,165,14,5,1,640_165_14_5,
4/15/2012,"Rice (mixed, low quality) - Wholesale",KG,cereals and tubers,2000,KHR,Cambodia,Banteay Meanchey,791,Banteay Meanchey,640,165,14,5,1,640_165_14_5,
5/15/2012,"Rice (mixed, low quality) - Wholesale",KG,cereals and tubers,2000,KHR,Cambodia,Banteay Meanchey,791,Banteay Meanchey,640,165,14,5,1,640_165_14_5,
6/15/2012,"Rice (mixed, low quality) - Wholesale",KG,cereals and tubers,2000,KHR,Cambodia,Banteay Meanchey,791,Banteay Meanchey,640,165,14,5,1,640_165_14_5,
7/15/2012,"Rice (mixed, low quality) - Wholesale",KG,cereals and tubers,2000,KHR,Cambodia,Banteay Meanchey,791,Banteay Meanchey,640,165,14,5,1,640_165_14_5,
8/15/2012,"Rice (mixed, low quality) - Wholesale",KG,cereals and tubers,2000,KHR,Cambodia,Banteay Meanchey,791,Banteay Meanchey,640,165,14,5,1,640_165_14_5,
9/15/2012,"Rice (mixed, low quality) - Wholesale",KG,cereals and tubers,2000,KHR,Cambodia,Banteay Meanchey,791,Banteay Meanchey,640,165,14,5,1,640_165_14_5,
10/15/2012,"Rice (mixed, low quality) - Wholesale",KG,cereals and tubers,2000,KHR,Cambodia,Banteay Meanchey,791,Banteay Meanchey,640,165,14,5,1,640_165_14_5,
11/15/2012,"Rice (mixed, low quality) - Wholesale",KG,cereals and tubers,2000,KHR,Cambodia,Banteay Meanchey,791,Banteay Meanchey,640,165,14,5,1,640_165_14_5,
12/15/2012,"Rice (mixed, low quality) - Wholesale",KG,cereals and tubers,1800,KHR,Cambodia,Banteay Meanchey,791,Banteay Meanchey,640,165,14,5,1,640_165_14_5,
1/15/2013,"Rice (mixed, low quality) - Wholesale",KG,cereals and tubers,1600,KHR,Cambodia,Banteay Meanchey,791,Banteay Meanchey,640,165,14,5,1,640_165_14_5,
2/15/2013,"Rice (mixed, low quality) - Wholesale",KG,cereals and tubers,1800,KHR,Cambodia,Banteay Meanchey,791,Banteay Meanchey,640,165,14,5,1,640_165_14_5,
3/15/2013,"Rice (mixed, low quality) - Wholesale",KG,cereals and tubers,1800,KHR,Cambodia,Banteay Meanchey,791,Banteay Meanchey,640,165,14,5,1,640_165_14_5,
4/15/2013,"Rice (mixed, low quality) - Wholesale",KG,cereals and tubers,1800,KHR,Cambodia,Banteay Meanchey,791,Banteay Meanchey,640,165,14,5,1,640_165_14_5,
5/15/2013,"Rice (mixed, low quality) - Wholesale",KG,cereals and tubers,2000,KHR,Cambodia,Banteay Meanchey,791,Banteay Meanchey,640,165,14,5,1,640_165_14_5,
6/15/2013,"Rice (mixed, low quality) - Wholesale",KG,cereals and tubers,1800,KHR,Cambodia,Banteay Meanchey,791,Banteay Meanchey,640,165,14,5,1,640_165_14_5,
7/15/2013,"Rice (mixed, low quality) - Wholesale",KG,cereals and tubers,2000,KHR,Cambodia,Banteay Meanchey,791,Banteay Meanchey,640,165,14,5,1,640_165_14_5,
8/15/2013,"Rice (mixed, low quality) - Wholesale",KG,cereals and tubers,1600,KHR,Cambodia,Banteay Meanchey,791,Banteay Meanchey,640,165,14,5,1,640_165_14_5,
9/15/2013,"Rice (mixed, low quality) - Wholesale",KG,cereals and tubers,1600,KHR,Cambodia,Banteay Meanchey,791,Banteay Meanchey,640,165,14,5,1,640_165_14_5,
10/15/2013,"Rice (mixed, low quality) - Wholesale",KG,cereals and tubers,1750,KHR,Cambodia,Banteay Meanchey,791,Banteay Meanchey,640,165,14,5,1,640_165_14_5,
11/15/2013,"Rice (mixed, low quality) - Wholesale",KG,cereals and tubers,1800,KHR,Cambodia,Banteay Meanchey,791,Banteay Meanchey,640,165,14,5,1,640_165_14_5,
12/15/2013,"Rice (mixed, low quality) - Wholesale",KG,cereals and tubers,1800,KHR,Cambodia,Banteay Meanchey,791,Banteay Meanchey,640,165,14,5,1,640_165_14_5,
1/15/2014,"Rice (mixed, low quality) - Wholesale",KG,cereals and tubers,1800,KHR,Cambodia,Banteay Meanchey,791,Banteay Meanchey,640,165,14,5,1,640_165_14_5,
2/15/2014,"Rice (mixed, low quality) - Wholesale",KG,cereals and tubers,1800,KHR,Cambodia,Banteay Meanchey,791,Banteay Meanchey,640,165,14,5,1,640_165_14_5,
3/15/2014,"Rice (mixed, low quality) - Wholesale",KG,cereals and tubers,1800,KHR,Cambodia,Banteay Meanchey,791,Banteay Meanchey,640,165,14,5,1,640_165_14_5,
4/15/2014,"Rice (mixed, low quality) - Wholesale",KG,cereals and tubers,1800,KHR,Cambodia,Banteay Meanchey,791,Banteay Meanchey,640,165,14,5,1,640_165_14_5,
5/15/2014,"Rice (mixed, low quality) - Wholesale",KG,cereals and tubers,1800,KHR,Cambodia,Banteay Meanchey,791,Banteay Meanchey,640,165,14,5,1,640_165_14_5,
6/15/2014,"Rice (mixed, low quality) - Wholesale",KG,cereals and tubers,1800,KHR,Cambodia,Banteay Meanchey,791,Banteay Meanchey,640,165,14,5,1,640_165_14_5,
7/15/2014,"Rice (mixed, low quality) - Wholesale",KG,cereals and tubers,1800,KHR,Cambodia,Banteay Meanchey,791,Banteay Meanchey,640,165,14,5,1,640_165_14_5,
8/15/2014,"Rice (mixed, low quality) - Wholesale",KG,cereals and tubers,1800,KHR,Cambodia,Banteay Meanchey,791,Banteay Meanchey,640,165,14,5,1,640_165_14_5,
9/15/2014,"Rice (mixed, low quality) - Wholesale",KG,cereals and tubers,1800,KHR,Cambodia,Banteay Meanchey,791,Banteay Meanchey,640,165,14,5,1,640_165_14_5,
10/15/2014,"Rice (mixed, low quality) - Wholesale",KG,cereals and tubers,1800,KHR,Cambodia,Banteay Meanchey,791,Banteay Meanchey,640,165,14,5,1,640_165_14_5,
11/15/2014,"Rice (mixed, low quality) - Wholesale",KG,cereals and tubers,1800,KHR,Cambodia,Banteay Meanchey,791,Banteay Meanchey,640,165,14,5,1,640_165_14_5,
12/15/2014,"Rice (mixed, low quality) - Wholesale",KG,cereals and tubers,1550,KHR,Cambodia,Banteay Meanchey,791,Banteay Meanchey,640,165,14,5,1,640_165_14_5,
1/15/2015,"Rice (mixed, low quality) - Wholesale",KG,cereals and tubers,1550,KHR,Cambodia,Banteay Meanchey,791,Banteay Meanchey,640,165,14,5,1,640_165_14_5,
2/15/2015,"Rice (mixed, low quality) - Wholesale",KG,cereals and tubers,1300,KHR,Cambodia,Banteay Meanchey,791,Banteay Meanchey,640,165,14,5,1,640_165_14_5,
3/15/2015,"Rice (mixed, low quality) - Wholesale",KG,cereals and tubers,1300,KHR,Cambodia,Banteay Meanchey,791,Banteay Meanchey,640,165,14,5,1,640_165_14_5,
4/15/2015,"Rice (mixed, low quality) - Wholesale",KG,cereals and tubers,1300,KHR,Cambodia,Banteay Meanchey,791,Banteay Meanchey,640,165,14,5,1,640_165_14_5,
5/15/2015,"Rice (mixed, low quality) - Wholesale",KG,cereals and tubers,1300,KHR,Cambodia,Banteay Meanchey,791,Banteay Meanchey,640,165,14,5,1,640_165_14_5,
6/15/2015,"Rice (mixed, low quality) - Wholesale",KG,cereals and tubers,1350,KHR,Cambodia,Banteay Meanchey,791,Banteay Meanchey,640,165,14,5,1,640_165_14_5,
7/15/2015,"Rice (mixed, low quality) - Wholesale",KG,cereals and tubers,1500,KHR,Cambodia,Banteay Meanchey,791,Banteay Meanchey,640,165,14,5,1,640_165_14_5,
8/15/2015,"Rice (mixed, low quality) - Wholesale",KG,cereals and tubers,1550,KHR,Cambodia,Banteay Meanchey,791,Banteay Meanchey,640,165,14,5,1,640_165_14_5,
9/15/2015,"Rice (mixed, low quality) - Wholesale",KG,cereals and tubers,1600,KHR,Cambodia,Banteay Meanchey,791,Banteay Meanchey,640,165,14,5,1,640_165_14_5,
10/15/2015,"Rice (mixed, low quality) - Wholesale",KG,cereals and tubers,1600,KHR,Cambodia,Banteay Meanchey,791,Banteay Meanchey,640,165,14,5,1,640_165_14_5,
11/15/2015,"Rice (mixed, low quality) - Wholesale",KG,cereals and tubers,1450,KHR,Cambodia,Banteay Meanchey,791,Banteay Meanchey,640,165,14,5,1,640_165_14_5,
12/15/2015,"Rice (mixed, low quality) - Wholesale",KG,cereals and tubers,1400,KHR,Cambodia,Banteay Meanchey,791,Banteay Meanchey,640,165,14,5,1,640_165_14_5,
1/15/2016,"Rice (mixed, low quality) - Wholesale",KG,cereals and tubers,1400,KHR,Cambodia,Banteay Meanchey,791,Banteay Meanchey,640,165,14,5,1,640_165_14_5,
2/15/2016,"Rice (mixed, low quality) - Wholesale",KG,cereals and tubers,1400,KHR,Cambodia,Banteay Meanchey,791,Banteay Meanchey,640,165,14,5,1,640_165_14_5,
3/15/2016,"Rice (mixed, low quality) - Wholesale",KG,cereals and tubers,1400,KHR,Cambodia,Banteay Meanchey,791,Banteay Meanchey,640,165,14,5,1,640_165_14_5,
4/15/2016,"Rice (mixed, low quality) - Wholesale",KG,cereals and tubers,1400,KHR,Cambodia,Banteay Meanchey,791,Banteay Meanchey,640,165,14,5,1,640_165_14_5,
5/15/2016,"Rice (mixed, low quality) - Wholesale",KG,cereals and tubers,1400,KHR,Cambodia,Banteay Meanchey,791,Banteay Meanchey,640,165,14,5,1,640_165_14_5,
6/15/2016,"Rice (mixed, low quality) - Wholesale",KG,cereals and tubers,1400,KHR,Cambodia,Banteay Meanchey,791,Banteay Meanchey,640,165,14,5,1,640_165_14_5,
7/15/2016,"Rice (mixed, low quality) - Wholesale",KG,cereals and tubers,1550,KHR,Cambodia,Banteay Meanchey,791,Banteay Meanchey,640,165,14,5,1,640_165_14_5,
8/15/2016,"Rice (mixed, low quality) - Wholesale",KG,cereals and tubers,1550,KHR,Cambodia,Banteay Meanchey,791,Banteay Meanchey,640,165,14,5,1,640_165_14_5,
9/15/2016,"Rice (mixed, low quality) - Wholesale",KG,cereals and tubers,1400,KHR,Cambodia,Banteay Meanchey,791,Banteay Meanchey,640,165,14,5,1,640_165_14_5,
10/15/2016,"Rice (mixed, low quality) - Wholesale",KG,cereals and tubers,1400,KHR,Cambodia,Banteay Meanchey,791,Banteay Meanchey,640,165,14,5,1,640_165_14_5,
11/15/2016,"Rice (mixed, low quality) - Wholesale",KG,cereals and tubers,1500,KHR,Cambodia,Banteay Meanchey,791,Banteay Meanchey,640,165,14,5,1,640_165_14_5,
12/15/2016,"Rice (mixed, low quality) - Wholesale",KG,cereals and tubers,1300,KHR,Cambodia,Banteay Meanchey,791,Banteay Meanchey,640,165,14,5,1,640_165_14_5,
1/15/2017,"Rice (mixed, low quality) - Wholesale",KG,cereals and tubers,1450,KHR,Cambodia,Banteay Meanchey,791,Banteay Meanchey,640,165,14,5,1,640_165_14_5,
2/15/2017,"Rice (mixed, low quality) - Wholesale",KG,cereals and tubers,1400,KHR,Cambodia,Banteay Meanchey,791,Banteay Meanchey,640,165,14,5,1,640_165_14_5,
3/15/2017,"Rice (mixed, low quality) - Wholesale",KG,cereals and tubers,1500,KHR,Cambodia,Banteay Meanchey,791,Banteay Meanchey,640,165,14,5,1,640_165_14_5,
4/15/2017,"Rice (mixed, low quality) - Wholesale",KG,cereals and tubers,1600,KHR,Cambodia,Banteay Meanchey,791,Banteay Meanchey,640,165,14,5,1,640_165_14_5,
5/15/2017,"Rice (mixed, low quality) - Wholesale",KG,cereals and tubers,1560,KHR,Cambodia,Banteay Meanchey,791,Banteay Meanchey,640,165,14,5,1,640_165_14_5,
6/15/2017,"Rice (mixed, low quality) - Wholesale",KG,cereals and tubers,1600,KHR,Cambodia,Banteay Meanchey,791,Banteay Meanchey,640,165,14,5,1,640_165_14_5,
7/15/2017,"Rice (mixed, low quality) - Wholesale",KG,cereals and tubers,1600,KHR,Cambodia,Banteay Meanchey,791,Banteay Meanchey,640,165,14,5,1,640_165_14_5,
8/15/2017,"Rice (mixed, low quality) - Wholesale",KG,cereals and tubers,1600,KHR,Cambodia,Banteay Meanchey,791,Banteay Meanchey,640,165,14,5,1,640_165_14_5,
9/15/2017,"Rice (mixed, low quality) - Wholesale",KG,cereals and tubers,1600,KHR,Cambodia,Banteay Meanchey,791,Banteay Meanchey,640,165,14,5,1,640_165_14_5,
10/15/2017,"Rice (mixed, low quality) - Wholesale",KG,cereals and tubers,1800,KHR,Cambodia,Banteay Meanchey,791,Banteay Meanchey,640,165,14,5,1,640_165_14_5,
11/15/2017,"Rice (mixed, low quality) - Wholesale",KG,cereals and tubers,1800,KHR,Cambodia,Banteay Meanchey,791,Banteay Meanchey,640,165,14,5,1,640_165_14_5,
12/15/2017,"Rice (mixed, low quality) - Wholesale",KG,cereals and tubers,1600,KHR,Cambodia,Banteay Meanchey,791,Banteay Meanchey,640,165,14,5,1,640_165_14_5,
1/15/2018,"Rice (mixed, low quality) - Wholesale",KG,cereals and tubers,1600,KHR,Cambodia,Banteay Meanchey,791,Banteay Meanchey,640,165,14,5,1,640_165_14_5,
2/15/2018,"Rice (mixed, low quality) - Wholesale",KG,cereals and tubers,1650,KHR,Cambodia,Banteay Meanchey,791,Banteay Meanchey,640,165,14,5,1,640_165_14_5,
3/15/2018,"Rice (mixed, low quality) - Wholesale",KG,cereals and tubers,1600,KHR,Cambodia,Banteay Meanchey,791,Banteay Meanchey,640,165,14,5,1,640_165_14_5,
4/15/2018,"Rice (mixed, low quality) - Wholesale",KG,cereals and tubers,1600,KHR,Cambodia,Banteay Meanchey,791,Banteay Meanchey,640,165,14,5,1,640_165_14_5,
5/15/2018,"Rice (mixed, low quality) - Wholesale",KG,cereals and tubers,1700,KHR,Cambodia,Banteay Meanchey,791,Banteay Meanchey,640,165,14,5,1,640_165_14_5,
6/15/2018,"Rice (mixed, low quality) - Wholesale",KG,cereals and tubers,1700,KHR,Cambodia,Banteay Meanchey,791,Banteay Meanchey,640,165,14,5,1,640_165_14_5,
7/15/2018,"Rice (mixed, low quality) - Wholesale",KG,cereals and tubers,1900,KHR,Cambodia,Banteay Meanchey,791,Banteay Meanchey,640,165,14,5,1,640_165_14_5,
8/15/2018,"Rice (mixed, low quality) - Wholesale",KG,cereals and tubers,1900,KHR,Cambodia,Banteay Meanchey,791,Banteay Meanchey,640,165,14,5,1,640_165_14_5,
9/15/2018,"Rice (mixed, low quality) - Wholesale",KG,cereals and tubers,1700,KHR,Cambodia,Banteay Meanchey,791,Banteay Meanchey,640,165,14,5,1,640_165_14_5,
10/15/2018,"Rice (mixed, low quality) - Wholesale",KG,cereals and tubers,1600,KHR,Cambodia,Banteay Meanchey,791,Banteay Meanchey,640,165,14,5,1,640_165_14_5,
11/15/2018,"Rice (mixed, low quality) - Wholesale",KG,cereals and tubers,1700,KHR,Cambodia,Banteay Meanchey,791,Banteay Meanchey,640,165,14,5,1,640_165_14_5,
12/15/2018,"Rice (mixed, low quality) - Wholesale",KG,cereals and tubers,1700,KHR,Cambodia,Banteay Meanchey,791,Banteay Meanchey,640,165,14,5,1,640_165_14_5,
1/15/2019,"Rice (mixed, low quality) - Wholesale",KG,cereals and tubers,1710,KHR,Cambodia,Banteay Meanchey,791,Banteay Meanchey,640,165,14,5,1,640_165_14_5,
2/15/2019,"Rice (mixed, low quality) - Wholesale",KG,cereals and tubers,1708,KHR,Cambodia,Banteay Meanchey,791,Banteay Meanchey,640,165,14,5,1,640_165_14_5,
3/15/2019,"Rice (mixed, low quality) - Wholesale",KG,cereals and tubers,1732,KHR,Cambodia,Banteay Meanchey,791,Banteay Meanchey,640,165,14,5,1,640_165_14_5,
4/15/2019,"Rice (mixed, low quality) - Wholesale",KG,cereals and tubers,1735,KHR,Cambodia,Banteay Meanchey,791,Banteay Meanchey,640,165,14,5,1,640_165_14_5,
5/15/2019,"Rice (mixed, low quality) - Wholesale",KG,cereals and tubers,1700,KHR,Cambodia,Banteay Meanchey,791,Banteay Meanchey,640,165,14,5,1,640_165_14_5,
6/15/2019,"Rice (mixed, low quality) - Wholesale",KG,cereals and tubers,1700,KHR,Cambodia,Banteay Meanchey,791,Banteay Meanchey,640,165,14,5,1,640_165_14_5,
7/15/2019,"Rice (mixed, low quality) - Wholesale",KG,cereals and tubers,1700,KHR,Cambodia,Banteay Meanchey,791,Banteay Meanchey,640,165,14,5,1,640_165_14_5,
8/15/2019,"Rice (mixed, low quality) - Wholesale",KG,cereals and tubers,1700,KHR,Cambodia,Banteay Meanchey,791,Banteay Meanchey,640,165,14,5,1,640_165_14_5,
9/15/2019,"Rice (mixed, low quality) - Wholesale",KG,cereals and tubers,1800,KHR,Cambodia,Banteay Meanchey,791,Banteay Meanchey,640,165,14,5,1,640_165_14_5,
10/15/2019,"Rice (mixed, low quality) - Wholesale",KG,cereals and tubers,1800,KHR,Cambodia,Banteay Meanchey,791,Banteay Meanchey,640,165,14,5,1,640_165_14_5,
11/15/2019,"Rice (mixed, low quality) - Wholesale",KG,cereals and tubers,1800,KHR,Cambodia,Banteay Meanchey,791,Banteay Meanchey,640,165,14,5,1,640_165_14_5,
12/15/2019,"Rice (mixed, low quality) - Wholesale",KG,cereals and tubers,1700,KHR,Cambodia,Banteay Meanchey,791,Banteay Meanchey,640,165,14,5,1,640_165_14_5,
1/15/2020,"Rice (mixed, low quality) - Wholesale",KG,cereals and tubers,1800,KHR,Cambodia,Banteay Meanchey,791,Banteay Meanchey,640,165,14,5,1,640_165_14_5,
2/15/2020,"Rice (mixed, low quality) - Wholesale",KG,cereals and tubers,1800,KHR,Cambodia,Banteay Meanchey,791,Banteay Meanchey,640,165,14,5,1,640_165_14_5,
4/15/2020,"Rice (mixed, low quality) - Wholesale",KG,cereals and tubers,1725,KHR,Cambodia,Banteay Meanchey,791,Banteay Meanchey,640,165,14,5,1,640_165_14_5,
5/15/2020,"Rice (mixed, low quality) - Wholesale",KG,cereals and tubers,1700,KHR,Cambodia,Banteay Meanchey,791,Banteay Meanchey,640,165,14,5,1,640_165_14_5,
6/15/2020,"Rice (mixed, low quality) - Wholesale",KG,cereals and tubers,1700,KHR,Cambodia,Banteay Meanchey,791,Banteay Meanchey,640,165,14,5,1,640_165_14_5,
1/15/2007,Soybeans - Wholesale,KG,pulses and nuts,1500,KHR,Cambodia,Banteay Meanchey,791,Banteay Meanchey,640,248,14,5,5,640_248_14_5,
2/15/2007,Soybeans - Wholesale,KG,pulses and nuts,1575,KHR,Cambodia,Banteay Meanchey,791,Banteay Meanchey,640,248,14,5,5,640_248_14_5,
3/15/2007,Soybeans - Wholesale,KG,pulses and nuts,1812.5,KHR,Cambodia,Banteay Meanchey,791,Banteay Meanchey,640,248,14,5,5,640_248_14_5,
4/15/2007,Soybeans - Wholesale,KG,pulses and nuts,1816.67,KHR,Cambodia,Banteay Meanchey,791,Banteay Meanchey,640,248,14,5,5,640_248_14_5,
5/15/2007,Soybeans - Wholesale,KG,pulses and nuts,1837.5,KHR,Cambodia,Banteay Meanchey,791,Banteay Meanchey,640,248,14,5,5,640_248_14_5,
6/15/2007,Soybeans - Wholesale,KG,pulses and nuts,1858.34,KHR,Cambodia,Banteay Meanchey,791,Banteay Meanchey,640,248,14,5,5,640_248_14_5,
7/15/2007,Soybeans - Wholesale,KG,pulses and nuts,1879.17,KHR,Cambodia,Banteay Meanchey,791,Banteay Meanchey,640,248,14,5,5,640_248_14_5,
8/15/2007,Soybeans - Wholesale,KG,pulses and nuts,1900,KHR,Cambodia,Banteay Meanchey,791,Banteay Meanchey,640,248,14,5,5,640_248_14_5,
9/15/2007,Soybeans - Wholesale,KG,pulses and nuts,2000,KHR,Cambodia,Banteay Meanchey,791,Banteay Meanchey,640,248,14,5,5,640_248_14_5,
10/15/2007,Soybeans - Wholesale,KG,pulses and nuts,2000,KHR,Cambodia,Banteay Meanchey,791,Banteay Meanchey,640,248,14,5,5,640_248_14_5,
11/15/2007,Soybeans - Wholesale,KG,pulses and nuts,1925,KHR,Cambodia,Banteay Meanchey,791,Banteay Meanchey,640,248,14,5,5,640_248_14_5,
12/15/2007,Soybeans - Wholesale,KG,pulses and nuts,2112.5,KHR,Cambodia,Banteay Meanchey,791,Banteay Meanchey,640,248,14,5,5,640_248_14_5,
1/15/2008,Soybeans - Wholesale,KG,pulses and nuts,2300,KHR,Cambodia,Banteay Meanchey,791,Banteay Meanchey,640,248,14,5,5,640_248_14_5,
2/15/2008,Soybeans - Wholesale,KG,pulses and nuts,2300,KHR,Cambodia,Banteay Meanchey,791,Banteay Meanchey,640,248,14,5,5,640_248_14_5,
3/15/2008,Soybeans - Wholesale,KG,pulses and nuts,2300,KHR,Cambodia,Banteay Meanchey,791,Banteay Meanchey,640,248,14,5,5,640_248_14_5,
4/15/2008,Soybeans - Wholesale,KG,pulses and nuts,2285,KHR,Cambodia,Banteay Meanchey,791,Banteay Meanchey,640,248,14,5,5,640_248_14_5,
5/15/2008,Soybeans - Wholesale,KG,pulses and nuts,2283.3301,KHR,Cambodia,Banteay Meanchey,791,Banteay Meanchey,640,248,14,5,5,640_248_14_5,
6/15/2008,Soybeans - Wholesale,KG,pulses and nuts,2200,KHR,Cambodia,Banteay Meanchey,791,Banteay Meanchey,640,248,14,5,5,640_248_14_5,
7/15/2008,Soybeans - Wholesale,KG,pulses and nuts,2400,KHR,Cambodia,Banteay Meanchey,791,Banteay Meanchey,640,248,14,5,5,640_248_14_5,
8/15/2008,Soybeans - Wholesale,KG,pulses and nuts,2455.5601,KHR,Cambodia,Banteay Meanchey,791,Banteay Meanchey,640,248,14,5,5,640_248_14_5,
9/15/2008,Soybeans - Wholesale,KG,pulses and nuts,2495.24,KHR,Cambodia,Banteay Meanchey,791,Banteay Meanchey,640,248,14,5,5,640_248_14_5,
10/15/2008,Soybeans - Wholesale,KG,pulses and nuts,2500,KHR,Cambodia,Banteay Meanchey,791,Banteay Meanchey,640,248,14,5,5,640_248_14_5,
11/15/2008,Soybeans - Wholesale,KG,pulses and nuts,2140,KHR,Cambodia,Banteay Meanchey,791,Banteay Meanchey,640,248,14,5,5,640_248_14_5,
12/15/2008,Soybeans - Wholesale,KG,pulses and nuts,2082,KHR,Cambodia,Banteay Meanchey,791,Banteay Meanchey,640,248,14,5,5,640_248_14_5,
1/15/2009,Soybeans - Wholesale,KG,pulses and nuts,2024,KHR,Cambodia,Banteay Meanchey,791,Banteay Meanchey,640,248,14,5,5,640_248_14_5,
2/15/2009,Soybeans - Wholesale,KG,pulses and nuts,1966,KHR,Cambodia,Banteay Meanchey,791,Banteay Meanchey,640,248,14,5,5,640_248_14_5,
3/15/2009,Soybeans - Wholesale,KG,pulses and nuts,1908,KHR,Cambodia,Banteay Meanchey,791,Banteay Meanchey,640,248,14,5,5,640_248_14_5,
4/15/2009,Soybeans - Wholesale,KG,pulses and nuts,1850,KHR,Cambodia,Banteay Meanchey,791,Banteay Meanchey,640,248,14,5,5,640_248_14_5,
5/15/2009,Soybeans - Wholesale,KG,pulses and nuts,1800,KHR,Cambodia,Banteay Meanchey,791,Banteay Meanchey,640,248,14,5,5,640_248_14_5,
6/15/2009,Soybeans - Wholesale,KG,pulses and nuts,2300,KHR,Cambodia,Banteay Meanchey,791,Banteay Meanchey,640,248,14,5,5,640_248_14_5,
7/15/2009,Soybeans - Wholesale,KG,pulses and nuts,2250,KHR,Cambodia,Banteay Meanchey,791,Banteay Meanchey,640,248,14,5,5,640_248_14_5,
8/15/2009,Soybeans - Wholesale,KG,pulses and nuts,2300,KHR,Cambodia,Banteay Meanchey,791,Banteay Meanchey,640,248,14,5,5,640_248_14_5,
9/15/2009,Soybeans - Wholesale,KG,pulses and nuts,2650,KHR,Cambodia,Banteay Meanchey,791,Banteay Meanchey,640,248,14,5,5,640_248_14_5,
10/15/2009,Soybeans - Wholesale,KG,pulses and nuts,2800,KHR,Cambodia,Banteay Meanchey,791,Banteay Meanchey,640,248,14,5,5,640_248_14_5,
11/15/2009,Soybeans - Wholesale,KG,pulses and nuts,2421.4299,KHR,Cambodia,Banteay Meanchey,791,Banteay Meanchey,640,248,14,5,5,640_248_14_5,
12/15/2009,Soybeans - Wholesale,KG,pulses and nuts,2511.54,KHR,Cambodia,Banteay Meanchey,791,Banteay Meanchey,640,248,14,5,5,640_248_14_5,
1/15/2010,Soybeans - Wholesale,KG,pulses and nuts,2542.8601,KHR,Cambodia,Banteay Meanchey,791,Banteay Meanchey,640,248,14,5,5,640_248_14_5,
2/15/2010,Soybeans - Wholesale,KG,pulses and nuts,2550,KHR,Cambodia,Banteay Meanchey,791,Banteay Meanchey,640,248,14,5,5,640_248_14_5,
3/15/2010,Soybeans - Wholesale,KG,pulses and nuts,2550,KHR,Cambodia,Banteay Meanchey,791,Banteay Meanchey,640,248,14,5,5,640_248_14_5,
4/15/2010,Soybeans - Wholesale,KG,pulses and nuts,2550,KHR,Cambodia,Banteay Meanchey,791,Banteay Meanchey,640,248,14,5,5,640_248_14_5,
5/15/2010,Soybeans - Wholesale,KG,pulses and nuts,2550,KHR,Cambodia,Banteay Meanchey,791,Banteay Meanchey,640,248,14,5,5,640_248_14_5,
6/15/2010,Soybeans - Wholesale,KG,pulses and nuts,2550,KHR,Cambodia,Banteay Meanchey,791,Banteay Meanchey,640,248,14,5,5,640_248_14_5,
7/15/2010,Soybeans - Wholesale,KG,pulses and nuts,2550,KHR,Cambodia,Banteay Meanchey,791,Banteay Meanchey,640,248,14,5,5,640_248_14_5,
8/15/2010,Soybeans - Wholesale,KG,pulses and nuts,2600,KHR,Cambodia,Banteay Meanchey,791,Banteay Meanchey,640,248,14,5,5,640_248_14_5,
9/15/2010,Soybeans - Wholesale,KG,pulses and nuts,2626.6699,KHR,Cambodia,Banteay Meanchey,791,Banteay Meanchey,640,248,14,5,5,640_248_14_5,
10/15/2010,Soybeans - Wholesale,KG,pulses and nuts,2588.71,KHR,Cambodia,Banteay Meanchey,791,Banteay Meanchey,640,248,14,5,5,640_248_14_5,
11/15/2010,Soybeans - Wholesale,KG,pulses and nuts,2603.8501,KHR,Cambodia,Banteay Meanchey,791,Banteay Meanchey,640,248,14,5,5,640_248_14_5,
12/15/2010,Soybeans - Wholesale,KG,pulses and nuts,2550,KHR,Cambodia,Banteay Meanchey,791,Banteay Meanchey,640,248,14,5,5,640_248_14_5,
1/15/2011,Soybeans - Wholesale,KG,pulses and nuts,2550,KHR,Cambodia,Banteay Meanchey,791,Banteay Meanchey,640,248,14,5,5,640_248_14_5,
2/15/2011,Soybeans - Wholesale,KG,pulses and nuts,2635.71,KHR,Cambodia,Banteay Meanchey,791,Banteay Meanchey,640,248,14,5,5,640_248_14_5,
3/15/2011,Soybeans - Wholesale,KG,pulses and nuts,2700,KHR,Cambodia,Banteay Meanchey,791,Banteay Meanchey,640,248,14,5,5,640_248_14_5,
4/15/2011,Soybeans - Wholesale,KG,pulses and nuts,2730,KHR,Cambodia,Banteay Meanchey,791,Banteay Meanchey,640,248,14,5,5,640_248_14_5,
5/15/2011,Soybeans - Wholesale,KG,pulses and nuts,2987.1001,KHR,Cambodia,Banteay Meanchey,791,Banteay Meanchey,640,248,14,5,5,640_248_14_5,
6/15/2011,Soybeans - Wholesale,KG,pulses and nuts,2986.6699,KHR,Cambodia,Banteay Meanchey,791,Banteay Meanchey,640,248,14,5,5,640_248_14_5,
7/15/2011,Soybeans - Wholesale,KG,pulses and nuts,3000,KHR,Cambodia,Banteay Meanchey,791,Banteay Meanchey,640,248,14,5,5,640_248_14_5,
8/15/2011,Soybeans - Wholesale,KG,pulses and nuts,3000,KHR,Cambodia,Banteay Meanchey,791,Banteay Meanchey,640,248,14,5,5,640_248_14_5,
9/15/2011,Soybeans - Wholesale,KG,pulses and nuts,3000,KHR,Cambodia,Banteay Meanchey,791,Banteay Meanchey,640,248,14,5,5,640_248_14_5,
10/15/2011,Soybeans - Wholesale,KG,pulses and nuts,3000,KHR,Cambodia,Banteay Meanchey,791,Banteay Meanchey,640,248,14,5,5,640_248_14_5,
11/15/2011,Soybeans - Wholesale,KG,pulses and nuts,3000,KHR,Cambodia,Banteay Meanchey,791,Banteay Meanchey,640,248,14,5,5,640_248_14_5,
12/15/2011,Soybeans - Wholesale,KG,pulses and nuts,3000,KHR,Cambodia,Banteay Meanchey,791,Banteay Meanchey,640,248,14,5,5,640_248_14_5,
1/15/2012,Soybeans - Wholesale,KG,pulses and nuts,2951.6101,KHR,Cambodia,Banteay Meanchey,791,Banteay Meanchey,640,248,14,5,5,640_248_14_5,
2/15/2012,Soybeans - Wholesale,KG,pulses and nuts,2534.48,KHR,Cambodia,Banteay Meanchey,791,Banteay Meanchey,640,248,14,5,5,640_248_14_5,
3/15/2012,Soybeans - Wholesale,KG,pulses and nuts,2564.52,KHR,Cambodia,Banteay Meanchey,791,Banteay Meanchey,640,248,14,5,5,640_248_14_5,
4/15/2012,Soybeans - Wholesale,KG,pulses and nuts,2631.6699,KHR,Cambodia,Banteay Meanchey,791,Banteay Meanchey,640,248,14,5,5,640_248_14_5,
5/15/2012,Soybeans - Wholesale,KG,pulses and nuts,2650,KHR,Cambodia,Banteay Meanchey,791,Banteay Meanchey,640,248,14,5,5,640_248_14_5,
6/15/2012,Soybeans - Wholesale,KG,pulses and nuts,2895,KHR,Cambodia,Banteay Meanchey,791,Banteay Meanchey,640,248,14,5,5,640_248_14_5,
7/15/2012,Soybeans - Wholesale,KG,pulses and nuts,3000,KHR,Cambodia,Banteay Meanchey,791,Banteay Meanchey,640,248,14,5,5,640_248_14_5,
8/15/2012,Soybeans - Wholesale,KG,pulses and nuts,3000,KHR,Cambodia,Banteay Meanchey,791,Banteay Meanchey,640,248,14,5,5,640_248_14_5,
9/15/2012,Soybeans - Wholesale,KG,pulses and nuts,3000,KHR,Cambodia,Banteay Meanchey,791,Banteay Meanchey,640,248,14,5,5,640_248_14_5,
10/15/2012,Soybeans - Wholesale,KG,pulses and nuts,3000,KHR,Cambodia,Banteay Meanchey,791,Banteay Meanchey,640,248,14,5,5,640_248_14_5,
11/15/2012,Soybeans - Wholesale,KG,pulses and nuts,3000,KHR,Cambodia,Banteay Meanchey,791,Banteay Meanchey,640,248,14,5,5,640_248_14_5,
1/15/2013,Soybeans - Wholesale,KG,pulses and nuts,3000,KHR,Cambodia,Banteay Meanchey,791,Banteay Meanchey,640,248,14,5,5,640_248_14_5,
2/15/2013,Soybeans - Wholesale,KG,pulses and nuts,3500,KHR,Cambodia,Banteay Meanchey,791,Banteay Meanchey,640,248,14,5,5,640_248_14_5,
3/15/2013,Soybeans - Wholesale,KG,pulses and nuts,3875,KHR,Cambodia,Banteay Meanchey,791,Banteay Meanchey,640,248,14,5,5,640_248_14_5,
4/15/2013,Soybeans - Wholesale,KG,pulses and nuts,4000,KHR,Cambodia,Banteay Meanchey,791,Banteay Meanchey,640,248,14,5,5,640_248_14_5,
5/15/2013,Soybeans - Wholesale,KG,pulses and nuts,3666.6699,KHR,Cambodia,Banteay Meanchey,791,Banteay Meanchey,640,248,14,5,5,640_248_14_5,
6/15/2013,Soybeans - Wholesale,KG,pulses and nuts,4000,KHR,Cambodia,Banteay Meanchey,791,Banteay Meanchey,640,248,14,5,5,640_248_14_5,
7/15/2013,Soybeans - Wholesale,KG,pulses and nuts,4000,KHR,Cambodia,Banteay Meanchey,791,Banteay Meanchey,640,248,14,5,5,640_248_14_5,
8/15/2013,Soybeans - Wholesale,KG,pulses and nuts,4400,KHR,Cambodia,Banteay Meanchey,791,Banteay Meanchey,640,248,14,5,5,640_248_14_5,
9/15/2013,Soybeans - Wholesale,KG,pulses and nuts,4367,KHR,Cambodia,Banteay Meanchey,791,Banteay Meanchey,640,248,14,5,5,640_248_14_5,
10/15/2013,Soybeans - Wholesale,KG,pulses and nuts,4200,KHR,Cambodia,Banteay Meanchey,791,Banteay Meanchey,640,248,14,5,5,640_248_14_5,
11/15/2013,Soybeans - Wholesale,KG,pulses and nuts,4200,KHR,Cambodia,Banteay Meanchey,791,Banteay Meanchey,640,248,14,5,5,640_248_14_5,
12/15/2013,Soybeans - Wholesale,KG,pulses and nuts,3550,KHR,Cambodia,Banteay Meanchey,791,Banteay Meanchey,640,248,14,5,5,640_248_14_5,
1/15/2014,Soybeans - Wholesale,KG,pulses and nuts,3200,KHR,Cambodia,Banteay Meanchey,791,Banteay Meanchey,640,248,14,5,5,640_248_14_5,
2/15/2014,Soybeans - Wholesale,KG,pulses and nuts,3600,KHR,Cambodia,Banteay Meanchey,791,Banteay Meanchey,640,248,14,5,5,640_248_14_5,
3/15/2014,Soybeans - Wholesale,KG,pulses and nuts,3700,KHR,Cambodia,Banteay Meanchey,791,Banteay Meanchey,640,248,14,5,5,640_248_14_5,
4/15/2014,Soybeans - Wholesale,KG,pulses and nuts,3711,KHR,Cambodia,Banteay Meanchey,791,Banteay Meanchey,640,248,14,5,5,640_248_14_5,
5/15/2014,Soybeans - Wholesale,KG,pulses and nuts,3800,KHR,Cambodia,Banteay Meanchey,791,Banteay Meanchey,640,248,14,5,5,640_248_14_5,
6/15/2014,Soybeans - Wholesale,KG,pulses and nuts,3800,KHR,Cambodia,Banteay Meanchey,791,Banteay Meanchey,640,248,14,5,5,640_248_14_5,
7/15/2014,Soybeans - Wholesale,KG,pulses and nuts,3500,KHR,Cambodia,Banteay Meanchey,791,Banteay Meanchey,640,248,14,5,5,640_248_14_5,
8/15/2014,Soybeans - Wholesale,KG,pulses and nuts,3500,KHR,Cambodia,Banteay Meanchey,791,Banteay Meanchey,640,248,14,5,5,640_248_14_5,
9/15/2014,Soybeans - Wholesale,KG,pulses and nuts,3500,KHR,Cambodia,Banteay Meanchey,791,Banteay Meanchey,640,248,14,5,5,640_248_14_5,
10/15/2014,Soybeans - Wholesale,KG,pulses and nuts,3300,KHR,Cambodia,Banteay Meanchey,791,Banteay Meanchey,640,248,14,5,5,640_248_14_5,
11/15/2014,Soybeans - Wholesale,KG,pulses and nuts,3300,KHR,Cambodia,Banteay Meanchey,791,Banteay Meanchey,640,248,14,5,5,640_248_14_5,
12/15/2014,Soybeans - Wholesale,KG,pulses and nuts,2800,KHR,Cambodia,Banteay Meanchey,791,Banteay Meanchey,640,248,14,5,5,640_248_14_5,
1/15/2015,Soybeans - Wholesale,KG,pulses and nuts,2700,KHR,Cambodia,Banteay Meanchey,791,Banteay Meanchey,640,248,14,5,5,640_248_14_5,
2/15/2015,Soybeans - Wholesale,KG,pulses and nuts,2700,KHR,Cambodia,Banteay Meanchey,791,Banteay Meanchey,640,248,14,5,5,640_248_14_5,
3/15/2015,Soybeans - Wholesale,KG,pulses and nuts,2700,KHR,Cambodia,Banteay Meanchey,791,Banteay Meanchey,640,248,14,5,5,640_248_14_5,
4/15/2015,Soybeans - Wholesale,KG,pulses and nuts,2700,KHR,Cambodia,Banteay Meanchey,791,Banteay Meanchey,640,248,14,5,5,640_248_14_5,
5/15/2015,Soybeans - Wholesale,KG,pulses and nuts,2700,KHR,Cambodia,Banteay Meanchey,791,Banteay Meanchey,640,248,14,5,5,640_248_14_5,
6/15/2015,Soybeans - Wholesale,KG,pulses and nuts,2800,KHR,Cambodia,Banteay Meanchey,791,Banteay Meanchey,640,248,14,5,5,640_248_14_5,
7/15/2015,Soybeans - Wholesale,KG,pulses and nuts,2800,KHR,Cambodia,Banteay Meanchey,791,Banteay Meanchey,640,248,14,5,5,640_248_14_5,
8/15/2015,Soybeans - Wholesale,KG,pulses and nuts,2950,KHR,Cambodia,Banteay Meanchey,791,Banteay Meanchey,640,248,14,5,5,640_248_14_5,
9/15/2015,Soybeans - Wholesale,KG,pulses and nuts,2950,KHR,Cambodia,Banteay Meanchey,791,Banteay Meanchey,640,248,14,5,5,640_248_14_5,
10/15/2015,Soybeans - Wholesale,KG,pulses and nuts,3050,KHR,Cambodia,Banteay Meanchey,791,Banteay Meanchey,640,248,14,5,5,640_248_14_5,
11/15/2015,Soybeans - Wholesale,KG,pulses and nuts,2900,KHR,Cambodia,Banteay Meanchey,791,Banteay Meanchey,640,248,14,5,5,640_248_14_5,
12/15/2015,Soybeans - Wholesale,KG,pulses and nuts,2900,KHR,Cambodia,Banteay Meanchey,791,Banteay Meanchey,640,248,14,5,5,640_248_14_5,
1/15/2016,Soybeans - Wholesale,KG,pulses and nuts,3000,KHR,Cambodia,Banteay Meanchey,791,Banteay Meanchey,640,248,14,5,5,640_248_14_5,
2/15/2016,Soybeans - Wholesale,KG,pulses and nuts,3000,KHR,Cambodia,Banteay Meanchey,791,Banteay Meanchey,640,248,14,5,5,640_248_14_5,
3/15/2016,Soybeans - Wholesale,KG,pulses and nuts,2700,KHR,Cambodia,Banteay Meanchey,791,Banteay Meanchey,640,248,14,5,5,640_248_14_5,
4/15/2016,Soybeans - Wholesale,KG,pulses and nuts,2850,KHR,Cambodia,Banteay Meanchey,791,Banteay Meanchey,640,248,14,5,5,640_248_14_5,
5/15/2016,Soybeans - Wholesale,KG,pulses and nuts,3000,KHR,Cambodia,Banteay Meanchey,791,Banteay Meanchey,640,248,14,5,5,640_248_14_5,
6/15/2016,Soybeans - Wholesale,KG,pulses and nuts,3300,KHR,Cambodia,Banteay Meanchey,791,Banteay Meanchey,640,248,14,5,5,640_248_14_5,
7/15/2016,Soybeans - Wholesale,KG,pulses and nuts,3200,KHR,Cambodia,Banteay Meanchey,791,Banteay Meanchey,640,248,14,5,5,640_248_14_5,
8/15/2016,Soybeans - Wholesale,KG,pulses and nuts,3233,KHR,Cambodia,Banteay Meanchey,791,Banteay Meanchey,640,248,14,5,5,640_248_14_5,
9/15/2016,Soybeans - Wholesale,KG,pulses and nuts,2850,KHR,Cambodia,Banteay Meanchey,791,Banteay Meanchey,640,248,14,5,5,640_248_14_5,
10/15/2016,Soybeans - Wholesale,KG,pulses and nuts,3000,KHR,Cambodia,Banteay Meanchey,791,Banteay Meanchey,640,248,14,5,5,640_248_14_5,
11/15/2016,Soybeans - Wholesale,KG,pulses and nuts,3300,KHR,Cambodia,Banteay Meanchey,791,Banteay Meanchey,640,248,14,5,5,640_248_14_5,
12/15/2016,Soybeans - Wholesale,KG,pulses and nuts,3267,KHR,Cambodia,Banteay Meanchey,791,Banteay Meanchey,640,248,14,5,5,640_248_14_5,
1/15/2017,Soybeans - Wholesale,KG,pulses and nuts,3500,KHR,Cambodia,Banteay Meanchey,791,Banteay Meanchey,640,248,14,5,5,640_248_14_5,
2/15/2017,Soybeans - Wholesale,KG,pulses and nuts,2850,KHR,Cambodia,Banteay Meanchey,791,Banteay Meanchey,640,248,14,5,5,640_248_14_5,
3/15/2017,Soybeans - Wholesale,KG,pulses and nuts,2800,KHR,Cambodia,Banteay Meanchey,791,Banteay Meanchey,640,248,14,5,5,640_248_14_5,
4/15/2017,Soybeans - Wholesale,KG,pulses and nuts,3200,KHR,Cambodia,Banteay Meanchey,791,Banteay Meanchey,640,248,14,5,5,640_248_14_5,
5/15/2017,Soybeans - Wholesale,KG,pulses and nuts,2800,KHR,Cambodia,Banteay Meanchey,791,Banteay Meanchey,640,248,14,5,5,640_248_14_5,
6/15/2017,Soybeans - Wholesale,KG,pulses and nuts,2500,KHR,Cambodia,Banteay Meanchey,791,Banteay Meanchey,640,248,14,5,5,640_248_14_5,
7/15/2017,Soybeans - Wholesale,KG,pulses and nuts,2500,KHR,Cambodia,Banteay Meanchey,791,Banteay Meanchey,640,248,14,5,5,640_248_14_5,
8/15/2017,Soybeans - Wholesale,KG,pulses and nuts,2300,KHR,Cambodia,Banteay Meanchey,791,Banteay Meanchey,640,248,14,5,5,640_248_14_5,
9/15/2017,Soybeans - Wholesale,KG,pulses and nuts,2300,KHR,Cambodia,Banteay Meanchey,791,Banteay Meanchey,640,248,14,5,5,640_248_14_5,
10/15/2017,Soybeans - Wholesale,KG,pulses and nuts,2500,KHR,Cambodia,Banteay Meanchey,791,Banteay Meanchey,640,248,14,5,5,640_248_14_5,
11/15/2017,Soybeans - Wholesale,KG,pulses and nuts,2400,KHR,Cambodia,Banteay Meanchey,791,Banteay Meanchey,640,248,14,5,5,640_248_14_5,
12/15/2017,Soybeans - Wholesale,KG,pulses and nuts,2400,KHR,Cambodia,Banteay Meanchey,791,Banteay Meanchey,640,248,14,5,5,640_248_14_5,
1/15/2018,Soybeans - Wholesale,KG,pulses and nuts,2333,KHR,Cambodia,Banteay Meanchey,791,Banteay Meanchey,640,248,14,5,5,640_248_14_5,
2/15/2018,Soybeans - Wholesale,KG,pulses and nuts,2333,KHR,Cambodia,Banteay Meanchey,791,Banteay Meanchey,640,248,14,5,5,640_248_14_5,
3/15/2018,Soybeans - Wholesale,KG,pulses and nuts,2400,KHR,Cambodia,Banteay Meanchey,791,Banteay Meanchey,640,248,14,5,5,640_248_14_5,
4/15/2018,Soybeans - Wholesale,KG,pulses and nuts,2400,KHR,Cambodia,Banteay Meanchey,791,Banteay Meanchey,640,248,14,5,5,640_248_14_5,
5/15/2018,Soybeans - Wholesale,KG,pulses and nuts,2700,KHR,Cambodia,Banteay Meanchey,791,Banteay Meanchey,640,248,14,5,5,640_248_14_5,
6/15/2018,Soybeans - Wholesale,KG,pulses and nuts,2500,KHR,Cambodia,Banteay Meanchey,791,Banteay Meanchey,640,248,14,5,5,640_248_14_5,
7/15/2018,Soybeans - Wholesale,KG,pulses and nuts,2500,KHR,Cambodia,Banteay Meanchey,791,Banteay Meanchey,640,248,14,5,5,640_248_14_5,
8/15/2018,Soybeans - Wholesale,KG,pulses and nuts,2500,KHR,Cambodia,Banteay Meanchey,791,Banteay Meanchey,640,248,14,5,5,640_248_14_5,
9/15/2018,Soybeans - Wholesale,KG,pulses and nuts,2700,KHR,Cambodia,Banteay Meanchey,791,Banteay Meanchey,640,248,14,5,5,640_248_14_5,
10/15/2018,Soybeans - Wholesale,KG,pulses and nuts,2700,KHR,Cambodia,Banteay Meanchey,791,Banteay Meanchey,640,248,14,5,5,640_248_14_5,
11/15/2018,Soybeans - Wholesale,KG,pulses and nuts,2700,KHR,Cambodia,Banteay Meanchey,791,Banteay Meanchey,640,248,14,5,5,640_248_14_5,
12/15/2018,Soybeans - Wholesale,KG,pulses and nuts,2500,KHR,Cambodia,Banteay Meanchey,791,Banteay Meanchey,640,248,14,5,5,640_248_14_5,
1/15/2019,Soybeans - Wholesale,KG,pulses and nuts,2500,KHR,Cambodia,Banteay Meanchey,791,Banteay Meanchey,640,248,14,5,5,640_248_14_5,
2/15/2019,Soybeans - Wholesale,KG,pulses and nuts,2000,KHR,Cambodia,Banteay Meanchey,791,Banteay Meanchey,640,248,14,5,5,640_248_14_5,
3/15/2019,Soybeans - Wholesale,KG,pulses and nuts,2240,KHR,Cambodia,Banteay Meanchey,791,Banteay Meanchey,640,248,14,5,5,640_248_14_5,
4/15/2019,Soybeans - Wholesale,KG,pulses and nuts,2300,KHR,Cambodia,Banteay Meanchey,791,Banteay Meanchey,640,248,14,5,5,640_248_14_5,
5/15/2019,Soybeans - Wholesale,KG,pulses and nuts,2300,KHR,Cambodia,Banteay Meanchey,791,Banteay Meanchey,640,248,14,5,5,640_248_14_5,
6/15/2019,Soybeans - Wholesale,KG,pulses and nuts,2325,KHR,Cambodia,Banteay Meanchey,791,Banteay Meanchey,640,248,14,5,5,640_248_14_5,
7/15/2019,Soybeans - Wholesale,KG,pulses and nuts,2300,KHR,Cambodia,Banteay Meanchey,791,Banteay Meanchey,640,248,14,5,5,640_248_14_5,
8/15/2019,Soybeans - Wholesale,KG,pulses and nuts,2300,KHR,Cambodia,Banteay Meanchey,791,Banteay Meanchey,640,248,14,5,5,640_248_14_5,
9/15/2019,Soybeans - Wholesale,KG,pulses and nuts,2300,KHR,Cambodia,Banteay Meanchey,791,Banteay Meanchey,640,248,14,5,5,640_248_14_5,
10/15/2019,Soybeans - Wholesale,KG,pulses and nuts,2300,KHR,Cambodia,Banteay Meanchey,791,Banteay Meanchey,640,248,14,5,5,640_248_14_5,
11/15/2019,Soybeans - Wholesale,KG,pulses and nuts,2300,KHR,Cambodia,Banteay Meanchey,791,Banteay Meanchey,640,248,14,5,5,640_248_14_5,
12/15/2019,Soybeans - Wholesale,KG,pulses and nuts,2300,KHR,Cambodia,Banteay Meanchey,791,Banteay Meanchey,640,248,14,5,5,640_248_14_5,
1/15/2020,Soybeans - Wholesale,KG,pulses and nuts,2000,KHR,Cambodia,Banteay Meanchey,791,Banteay Meanchey,640,248,14,5,5,640_248_14_5,
2/15/2020,Soybeans - Wholesale,KG,pulses and nuts,2000,KHR,Cambodia,Banteay Meanchey,791,Banteay Meanchey,640,248,14,5,5,640_248_14_5,
4/15/2020,Soybeans - Wholesale,KG,pulses and nuts,2300,KHR,Cambodia,Banteay Meanchey,791,Banteay Meanchey,640,248,14,5,5,640_248_14_5,
5/15/2020,Soybeans - Wholesale,KG,pulses and nuts,2300,KHR,Cambodia,Banteay Meanchey,791,Banteay Meanchey,640,248,14,5,5,640_248_14_5,
6/15/2020,Soybeans - Wholesale,KG,pulses and nuts,2300,KHR,Cambodia,Banteay Meanchey,791,Banteay Meanchey,640,248,14,5,5,640_248_14_5,
1/15/2018,Wage (non-qualified labour) - Retail,Day,non-food,28750,KHR,Cambodia,Banteay Meanchey,791,Banteay Meanchey,640,277,15,51,8,640_277_15_51,
2/15/2018,Wage (non-qualified labour) - Retail,Day,non-food,27500,KHR,Cambodia,Banteay Meanchey,791,Banteay Meanchey,640,277,15,51,8,640_277_15_51,
3/15/2018,Wage (non-qualified labour) - Retail,Day,non-food,29500,KHR,Cambodia,Banteay Meanchey,791,Banteay Meanchey,640,277,15,51,8,640_277_15_51,
4/15/2018,Wage (non-qualified labour) - Retail,Day,non-food,27500,KHR,Cambodia,Banteay Meanchey,791,Banteay Meanchey,640,277,15,51,8,640_277_15_51,
5/15/2018,Wage (non-qualified labour) - Retail,Day,non-food,28750,KHR,Cambodia,Banteay Meanchey,791,Banteay Meanchey,640,277,15,51,8,640_277_15_51,
6/15/2018,Wage (non-qualified labour) - Retail,Day,non-food,30250,KHR,Cambodia,Banteay Meanchey,791,Banteay Meanchey,640,277,15,51,8,640_277_15_51,
7/15/2018,Wage (non-qualified labour) - Retail,Day,non-food,27500,KHR,Cambodia,Banteay Meanchey,791,Banteay Meanchey,640,277,15,51,8,640_277_15_51,
8/15/2018,Wage (non-qualified labour) - Retail,Day,non-food,28750,KHR,Cambodia,Banteay Meanchey,791,Banteay Meanchey,640,277,15,51,8,640_277_15_51,
9/15/2018,Wage (non-qualified labour) - Retail,Day,non-food,32500,KHR,Cambodia,Banteay Meanchey,791,Banteay Meanchey,640,277,15,51,8,640_277_15_51,
10/15/2018,Wage (non-qualified labour) - Retail,Day,non-food,31250,KHR,Cambodia,Banteay Meanchey,791,Banteay Meanchey,640,277,15,51,8,640_277_15_51,
11/15/2018,Wage (non-qualified labour) - Retail,Day,non-food,29500,KHR,Cambodia,Banteay Meanchey,791,Banteay Meanchey,640,277,15,51,8,640_277_15_51,
12/15/2018,Wage (non-qualified labour) - Retail,Day,non-food,29500,KHR,Cambodia,Banteay Meanchey,791,Banteay Meanchey,640,277,15,51,8,640_277_15_51,
1/15/2019,Wage (non-qualified labour) - Retail,Day,non-food,28750,KHR,Cambodia,Banteay Meanchey,791,Banteay Meanchey,640,277,15,51,8,640_277_15_51,
2/15/2019,Wage (non-qualified labour) - Retail,Day,non-food,28250,KHR,Cambodia,Banteay Meanchey,791,Banteay Meanchey,640,277,15,51,8,640_277_15_51,
3/15/2019,Wage (non-qualified labour) - Retail,Day,non-food,28250,KHR,Cambodia,Banteay Meanchey,791,Banteay Meanchey,640,277,15,51,8,640_277_15_51,
4/15/2019,Wage (non-qualified labour) - Retail,Day,non-food,28250,KHR,Cambodia,Banteay Meanchey,791,Banteay Meanchey,640,277,15,51,8,640_277_15_51,
5/15/2019,Wage (non-qualified labour) - Retail,Day,non-food,28250,KHR,Cambodia,Banteay Meanchey,791,Banteay Meanchey,640,277,15,51,8,640_277_15_51,
6/15/2019,Wage (non-qualified labour) - Retail,Day,non-food,28250,KHR,Cambodia,Banteay Meanchey,791,Banteay Meanchey,640,277,15,51,8,640_277_15_51,
7/15/2019,Wage (non-qualified labour) - Retail,Day,non-food,28250,KHR,Cambodia,Banteay Meanchey,791,Banteay Meanchey,640,277,15,51,8,640_277_15_51,
8/15/2019,Wage (non-qualified labour) - Retail,Day,non-food,28750,KHR,Cambodia,Banteay Meanchey,791,Banteay Meanchey,640,277,15,51,8,640_277_15_51,
9/15/2019,Wage (non-qualified labour) - Retail,Day,non-food,30000,KHR,Cambodia,Banteay Meanchey,791,Banteay Meanchey,640,277,15,51,8,640_277_15_51,
10/15/2019,Wage (non-qualified labour) - Retail,Day,non-food,30000,KHR,Cambodia,Banteay Meanchey,791,Banteay Meanchey,640,277,15,51,8,640_277_15_51,
11/15/2019,Wage (non-qualified labour) - Retail,Day,non-food,30000,KHR,Cambodia,Banteay Meanchey,791,Banteay Meanchey,640,277,15,51,8,640_277_15_51,
12/15/2019,Wage (non-qualified labour) - Retail,Day,non-food,30000,KHR,Cambodia,Banteay Meanchey,791,Banteay Meanchey,640,277,15,51,8,640_277_15_51,
2/15/2020,Wage (non-qualified labour) - Retail,Day,non-food,30000,KHR,Cambodia,Banteay Meanchey,791,Banteay Meanchey,640,277,15,51,8,640_277_15_51,
3/15/2020,Oil (vegetable) - Wholesale,5 L,oil and fats,19667,KHR,Cambodia,Banteay Meanchey,791,Serei Saophoan,1524,96,14,67,6,1524_96_14_67,
12/15/2014,Oil (vegetable) - Retail,KG,oil and fats,5500,KHR,Cambodia,Banteay Meanchey,791,Serei Saophoan,1524,96,15,5,6,1524_96_15_5,
1/15/2015,Oil (vegetable) - Retail,KG,oil and fats,5800,KHR,Cambodia,Banteay Meanchey,791,Serei Saophoan,1524,96,15,5,6,1524_96_15_5,
2/15/2015,Oil (vegetable) - Retail,KG,oil and fats,5800,KHR,Cambodia,Banteay Meanchey,791,Serei Saophoan,1524,96,15,5,6,1524_96_15_5,
3/15/2015,Oil (vegetable) - Retail,KG,oil and fats,5800,KHR,Cambodia,Banteay Meanchey,791,Serei Saophoan,1524,96,15,5,6,1524_96_15_5,
4/15/2015,Oil (vegetable) - Retail,KG,oil and fats,5800,KHR,Cambodia,Banteay Meanchey,791,Serei Saophoan,1524,96,15,5,6,1524_96_15_5,
5/15/2015,Oil (vegetable) - Retail,KG,oil and fats,5800,KHR,Cambodia,Banteay Meanchey,791,Serei Saophoan,1524,96,15,5,6,1524_96_15_5,
6/15/2015,Oil (vegetable) - Retail,KG,oil and fats,5800,KHR,Cambodia,Banteay Meanchey,791,Serei Saophoan,1524,96,15,5,6,1524_96_15_5,
7/15/2015,Oil (vegetable) - Retail,KG,oil and fats,5800,KHR,Cambodia,Banteay Meanchey,791,Serei Saophoan,1524,96,15,5,6,1524_96_15_5,
8/15/2015,Oil (vegetable) - Retail,KG,oil and fats,5800,KHR,Cambodia,Banteay Meanchey,791,Serei Saophoan,1524,96,15,5,6,1524_96_15_5,
9/15/2015,Oil (vegetable) - Retail,KG,oil and fats,5800,KHR,Cambodia,Banteay Meanchey,791,Serei Saophoan,1524,96,15,5,6,1524_96_15_5,
10/15/2015,Oil (vegetable) - Retail,KG,oil and fats,5800,KHR,Cambodia,Banteay Meanchey,791,Serei Saophoan,1524,96,15,5,6,1524_96_15_5,
11/15/2015,Oil (vegetable) - Retail,KG,oil and fats,5800,KHR,Cambodia,Banteay Meanchey,791,Serei Saophoan,1524,96,15,5,6,1524_96_15_5,
12/15/2015,Oil (vegetable) - Retail,KG,oil and fats,5800,KHR,Cambodia,Banteay Meanchey,791,Serei Saophoan,1524,96,15,5,6,1524_96_15_5,
1/15/2016,Oil (vegetable) - Retail,KG,oil and fats,5800,KHR,Cambodia,Banteay Meanchey,791,Serei Saophoan,1524,96,15,5,6,1524_96_15_5,
2/15/2016,Oil (vegetable) - Retail,KG,oil and fats,4500,KHR,Cambodia,Banteay Meanchey,791,Serei Saophoan,1524,96,15,5,6,1524_96_15_5,
3/15/2016,Oil (vegetable) - Retail,KG,oil and fats,4500,KHR,Cambodia,Banteay Meanchey,791,Serei Saophoan,1524,96,15,5,6,1524_96_15_5,
4/15/2016,Oil (vegetable) - Retail,KG,oil and fats,4500,KHR,Cambodia,Banteay Meanchey,791,Serei Saophoan,1524,96,15,5,6,1524_96_15_5,
5/15/2016,Oil (vegetable) - Retail,KG,oil and fats,5500,KHR,Cambodia,Banteay Meanchey,791,Serei Saophoan,1524,96,15,5,6,1524_96_15_5,
6/15/2016,Oil (vegetable) - Retail,KG,oil and fats,5494.5,KHR,Cambodia,Banteay Meanchey,791,Serei Saophoan,1524,96,15,5,6,1524_96_15_5,
7/15/2016,Oil (vegetable) - Retail,KG,oil and fats,6227,KHR,Cambodia,Banteay Meanchey,791,Serei Saophoan,1524,96,15,5,6,1524_96_15_5,
8/15/2016,Oil (vegetable) - Retail,KG,oil and fats,6127,KHR,Cambodia,Banteay Meanchey,791,Serei Saophoan,1524,96,15,5,6,1524_96_15_5,
9/15/2016,Oil (vegetable) - Retail,KG,oil and fats,6593,KHR,Cambodia,Banteay Meanchey,791,Serei Saophoan,1524,96,15,5,6,1524_96_15_5,
11/15/2016,Oil (vegetable) - Retail,KG,oil and fats,6227.1062,KHR,Cambodia,Banteay Meanchey,791,Serei Saophoan,1524,96,15,5,6,1524_96_15_5,
12/15/2016,Oil (vegetable) - Retail,KG,oil and fats,5860.8059,KHR,Cambodia,Banteay Meanchey,791,Serei Saophoan,1524,96,15,5,6,1524_96_15_5,
1/15/2017,Oil (vegetable) - Retail,KG,oil and fats,5156.6667,KHR,Cambodia,Banteay Meanchey,791,Serei Saophoan,1524,96,15,5,6,1524_96_15_5,
2/15/2017,Oil (vegetable) - Retail,KG,oil and fats,5862.6374,KHR,Cambodia,Banteay Meanchey,791,Serei Saophoan,1524,96,15,5,6,1524_96_15_5,
3/15/2017,Oil (vegetable) - Retail,KG,oil and fats,6043.956,KHR,Cambodia,Banteay Meanchey,791,Serei Saophoan,1524,96,15,5,6,1524_96_15_5,
5/15/2017,Oil (vegetable) - Retail,KG,oil and fats,6043.956,KHR,Cambodia,Banteay Meanchey,791,Serei Saophoan,1524,96,15,5,6,1524_96_15_5,
6/15/2017,Oil (vegetable) - Retail,KG,oil and fats,5250,KHR,Cambodia,Banteay Meanchey,791,Serei Saophoan,1524,96,15,5,6,1524_96_15_5,
7/15/2017,Oil (vegetable) - Retail,KG,oil and fats,5496,KHR,Cambodia,Banteay Meanchey,791,Serei Saophoan,1524,96,15,5,6,1524_96_15_5,
12/15/2017,Oil (vegetable) - Retail,KG,oil and fats,5331.5018,KHR,Cambodia,Banteay Meanchey,791,Serei Saophoan,1524,96,15,5,6,1524_96_15_5,
3/15/2020,Oil (vegetable) - Retail,5 L,oil and fats,21333,KHR,Cambodia,Banteay Meanchey,791,Serei Saophoan,1524,96,15,67,6,1524_96_15_67,
3/15/2020,"Rice (mixed, low quality) - Wholesale",KG,cereals and tubers,1733,KHR,Cambodia,Banteay Meanchey,791,Serei Saophoan,1524,165,14,5,1,1524_165_14_5,
4/15/2020,"Rice (mixed, low quality) - Wholesale",KG,cereals and tubers,2200,KHR,Cambodia,Banteay Meanchey,791,Serei Saophoan,1524,165,14,5,1,1524_165_14_5,
5/15/2020,"Rice (mixed, low quality) - Wholesale",KG,cereals and tubers,2237.5,KHR,Cambodia,Banteay Meanchey,791,Serei Saophoan,1524,165,14,5,1,1524_165_14_5,
6/15/2020,"Rice (mixed, low quality) - Wholesale",KG,cereals and tubers,2500,KHR,Cambodia,Banteay Meanchey,791,Serei Saophoan,1524,165,14,5,1,1524_165_14_5,
7/15/2020,"Rice (mixed, low quality) - Wholesale",KG,cereals and tubers,2500,KHR,Cambodia,Banteay Meanchey,791,Serei Saophoan,1524,165,14,5,1,1524_165_14_5,
4/15/2013,"Rice (mixed, low quality) - Retail",KG,cereals and tubers,1950,KHR,Cambodia,Banteay Meanchey,791,Serei Saophoan,1524,165,15,5,1,1524_165_15_5,
5/15/2013,"Rice (mixed, low quality) - Retail",KG,cereals and tubers,2000,KHR,Cambodia,Banteay Meanchey,791,Serei Saophoan,1524,165,15,5,1,1524_165_15_5,
6/15/2013,"Rice (mixed, low quality) - Retail",KG,cereals and tubers,2000,KHR,Cambodia,Banteay Meanchey,791,Serei Saophoan,1524,165,15,5,1,1524_165_15_5,
7/15/2013,"Rice (mixed, low quality) - Retail",KG,cereals and tubers,2000,KHR,Cambodia,Banteay Meanchey,791,Serei Saophoan,1524,165,15,5,1,1524_165_15_5,
8/15/2013,"Rice (mixed, low quality) - Retail",KG,cereals and tubers,2000,KHR,Cambodia,Banteay Meanchey,791,Serei Saophoan,1524,165,15,5,1,1524_165_15_5,
9/15/2013,"Rice (mixed, low quality) - Retail",KG,cereals and tubers,2000,KHR,Cambodia,Banteay Meanchey,791,Serei Saophoan,1524,165,15,5,1,1524_165_15_5,
10/15/2013,"Rice (mixed, low quality) - Retail",KG,cereals and tubers,1966.6667,KHR,Cambodia,Banteay Meanchey,791,Serei Saophoan,1524,165,15,5,1,1524_165_15_5,
11/15/2013,"Rice (mixed, low quality) - Retail",KG,cereals and tubers,2000,KHR,Cambodia,Banteay Meanchey,791,Serei Saophoan,1524,165,15,5,1,1524_165_15_5,
12/15/2013,"Rice (mixed, low quality) - Retail",KG,cereals and tubers,1900,KHR,Cambodia,Banteay Meanchey,791,Serei Saophoan,1524,165,15,5,1,1524_165_15_5,
1/15/2014,"Rice (mixed, low quality) - Retail",KG,cereals and tubers,2000,KHR,Cambodia,Banteay Meanchey,791,Serei Saophoan,1524,165,15,5,1,1524_165_15_5,
2/15/2014,"Rice (mixed, low quality) - Retail",KG,cereals and tubers,2000,KHR,Cambodia,Banteay Meanchey,791,Serei Saophoan,1524,165,15,5,1,1524_165_15_5,
3/15/2014,"Rice (mixed, low quality) - Retail",KG,cereals and tubers,2000,KHR,Cambodia,Banteay Meanchey,791,Serei Saophoan,1524,165,15,5,1,1524_165_15_5,
4/15/2014,"Rice (mixed, low quality) - Retail",KG,cereals and tubers,2000,KHR,Cambodia,Banteay Meanchey,791,Serei Saophoan,1524,165,15,5,1,1524_165_15_5,
5/15/2014,"Rice (mixed, low quality) - Retail",KG,cereals and tubers,1900,KHR,Cambodia,Banteay Meanchey,791,Serei Saophoan,1524,165,15,5,1,1524_165_15_5,
6/15/2014,"Rice (mixed, low quality) - Retail",KG,cereals and tubers,2000,KHR,Cambodia,Banteay Meanchey,791,Serei Saophoan,1524,165,15,5,1,1524_165_15_5,
7/15/2014,"Rice (mixed, low quality) - Retail",KG,cereals and tubers,2000,KHR,Cambodia,Banteay Meanchey,791,Serei Saophoan,1524,165,15,5,1,1524_165_15_5,
8/15/2014,"Rice (mixed, low quality) - Retail",KG,cereals and tubers,2000,KHR,Cambodia,Banteay Meanchey,791,Serei Saophoan,1524,165,15,5,1,1524_165_15_5,
9/15/2014,"Rice (mixed, low quality) - Retail",KG,cereals and tubers,2000,KHR,Cambodia,Banteay Meanchey,791,Serei Saophoan,1524,165,15,5,1,1524_165_15_5,
10/15/2014,"Rice (mixed, low quality) - Retail",KG,cereals and tubers,2000,KHR,Cambodia,Banteay Meanchey,791,Serei Saophoan,1524,165,15,5,1,1524_165_15_5,
11/15/2014,"Rice (mixed, low quality) - Retail",KG,cereals and tubers,2000,KHR,Cambodia,Banteay Meanchey,791,Serei Saophoan,1524,165,15,5,1,1524_165_15_5,
12/15/2014,"Rice (mixed, low quality) - Retail",KG,cereals and tubers,2000,KHR,Cambodia,Banteay Meanchey,791,Serei Saophoan,1524,165,15,5,1,1524_165_15_5,
1/15/2015,"Rice (mixed, low quality) - Retail",KG,cereals and tubers,2000,KHR,Cambodia,Banteay Meanchey,791,Serei Saophoan,1524,165,15,5,1,1524_165_15_5,
2/15/2015,"Rice (mixed, low quality) - Retail",KG,cereals and tubers,2000,KHR,Cambodia,Banteay Meanchey,791,Serei Saophoan,1524,165,15,5,1,1524_165_15_5,
3/15/2015,"Rice (mixed, low quality) - Retail",KG,cereals and tubers,2000,KHR,Cambodia,Banteay Meanchey,791,Serei Saophoan,1524,165,15,5,1,1524_165_15_5,
4/15/2015,"Rice (mixed, low quality) - Retail",KG,cereals and tubers,1900,KHR,Cambodia,Banteay Meanchey,791,Serei Saophoan,1524,165,15,5,1,1524_165_15_5,
5/15/2015,"Rice (mixed, low quality) - Retail",KG,cereals and tubers,1900,KHR,Cambodia,Banteay Meanchey,791,Serei Saophoan,1524,165,15,5,1,1524_165_15_5,
6/15/2015,"Rice (mixed, low quality) - Retail",KG,cereals and tubers,1916.6667,KHR,Cambodia,Banteay Meanchey,791,Serei Saophoan,1524,165,15,5,1,1524_165_15_5,
7/15/2015,"Rice (mixed, low quality) - Retail",KG,cereals and tubers,1750,KHR,Cambodia,Banteay Meanchey,791,Serei Saophoan,1524,165,15,5,1,1524_165_15_5,
8/15/2015,"Rice (mixed, low quality) - Retail",KG,cereals and tubers,1750,KHR,Cambodia,Banteay Meanchey,791,Serei Saophoan,1524,165,15,5,1,1524_165_15_5,
9/15/2015,"Rice (mixed, low quality) - Retail",KG,cereals and tubers,1750,KHR,Cambodia,Banteay Meanchey,791,Serei Saophoan,1524,165,15,5,1,1524_165_15_5,
10/15/2015,"Rice (mixed, low quality) - Retail",KG,cereals and tubers,1750,KHR,Cambodia,Banteay Meanchey,791,Serei Saophoan,1524,165,15,5,1,1524_165_15_5,
11/15/2015,"Rice (mixed, low quality) - Retail",KG,cereals and tubers,1750,KHR,Cambodia,Banteay Meanchey,791,Serei Saophoan,1524,165,15,5,1,1524_165_15_5,
12/15/2015,"Rice (mixed, low quality) - Retail",KG,cereals and tubers,1750,KHR,Cambodia,Banteay Meanchey,791,Serei Saophoan,1524,165,15,5,1,1524_165_15_5,
1/15/2016,"Rice (mixed, low quality) - Retail",KG,cereals and tubers,1750,KHR,Cambodia,Banteay Meanchey,791,Serei Saophoan,1524,165,15,5,1,1524_165_15_5,
2/15/2016,"Rice (mixed, low quality) - Retail",KG,cereals and tubers,1750,KHR,Cambodia,Banteay Meanchey,791,Serei Saophoan,1524,165,15,5,1,1524_165_15_5,
3/15/2016,"Rice (mixed, low quality) - Retail",KG,cereals and tubers,1766.6667,KHR,Cambodia,Banteay Meanchey,791,Serei Saophoan,1524,165,15,5,1,1524_165_15_5,
4/15/2016,"Rice (mixed, low quality) - Retail",KG,cereals and tubers,1933.3333,KHR,Cambodia,Banteay Meanchey,791,Serei Saophoan,1524,165,15,5,1,1524_165_15_5,
5/15/2016,"Rice (mixed, low quality) - Retail",KG,cereals and tubers,2066.6667,KHR,Cambodia,Banteay Meanchey,791,Serei Saophoan,1524,165,15,5,1,1524_165_15_5,
6/15/2016,"Rice (mixed, low quality) - Retail",KG,cereals and tubers,2133.3333,KHR,Cambodia,Banteay Meanchey,791,Serei Saophoan,1524,165,15,5,1,1524_165_15_5,
7/15/2016,"Rice (mixed, low quality) - Retail",KG,cereals and tubers,2000,KHR,Cambodia,Banteay Meanchey,791,Serei Saophoan,1524,165,15,5,1,1524_165_15_5,
8/15/2016,"Rice (mixed, low quality) - Retail",KG,cereals and tubers,2000,KHR,Cambodia,Banteay Meanchey,791,Serei Saophoan,1524,165,15,5,1,1524_165_15_5,
9/15/2016,"Rice (mixed, low quality) - Retail",KG,cereals and tubers,2000,KHR,Cambodia,Banteay Meanchey,791,Serei Saophoan,1524,165,15,5,1,1524_165_15_5,
11/15/2016,"Rice (mixed, low quality) - Retail",KG,cereals and tubers,1766.6667,KHR,Cambodia,Banteay Meanchey,791,Serei Saophoan,1524,165,15,5,1,1524_165_15_5,
12/15/2016,"Rice (mixed, low quality) - Retail",KG,cereals and tubers,1733.3333,KHR,Cambodia,Banteay Meanchey,791,Serei Saophoan,1524,165,15,5,1,1524_165_15_5,
1/15/2017,"Rice (mixed, low quality) - Retail",KG,cereals and tubers,1700,KHR,Cambodia,Banteay Meanchey,791,Serei Saophoan,1524,165,15,5,1,1524_165_15_5,
2/15/2017,"Rice (mixed, low quality) - Retail",KG,cereals and tubers,1766.6667,KHR,Cambodia,Banteay Meanchey,791,Serei Saophoan,1524,165,15,5,1,1524_165_15_5,
3/15/2017,"Rice (mixed, low quality) - Retail",KG,cereals and tubers,1766.6667,KHR,Cambodia,Banteay Meanchey,791,Serei Saophoan,1524,165,15,5,1,1524_165_15_5,
5/15/2017,"Rice (mixed, low quality) - Retail",KG,cereals and tubers,1933.3333,KHR,Cambodia,Banteay Meanchey,791,Serei Saophoan,1524,165,15,5,1,1524_165_15_5,
6/15/2017,"Rice (mixed, low quality) - Retail",KG,cereals and tubers,1900,KHR,Cambodia,Banteay Meanchey,791,Serei Saophoan,1524,165,15,5,1,1524_165_15_5,
7/15/2017,"Rice (mixed, low quality) - Retail",KG,cereals and tubers,1933.3333,KHR,Cambodia,Banteay Meanchey,791,Serei Saophoan,1524,165,15,5,1,1524_165_15_5,
12/15/2017,"Rice (mixed, low quality) - Retail",KG,cereals and tubers,1900,KHR,Cambodia,Banteay Meanchey,791,Serei Saophoan,1524,165,15,5,1,1524_165_15_5,
3/15/2020,"Rice (mixed, low quality) - Retail",KG,cereals and tubers,2000,KHR,Cambodia,Banteay Meanchey,791,Serei Saophoan,1524,165,15,5,1,1524_165_15_5,
4/15/2020,"Rice (mixed, low quality) - Retail",KG,cereals and tubers,2450,KHR,Cambodia,Banteay Meanchey,791,Serei Saophoan,1524,165,15,5,1,1524_165_15_5,
5/15/2020,"Rice (mixed, low quality) - Retail",KG,cereals and tubers,2350,KHR,Cambodia,Banteay Meanchey,791,Serei Saophoan,1524,165,15,5,1,1524_165_15_5,
6/15/2020,"Rice (mixed, low quality) - Retail",KG,cereals and tubers,2700,KHR,Cambodia,Banteay Meanchey,791,Serei Saophoan,1524,165,15,5,1,1524_165_15_5,
7/15/2020,"Rice (mixed, low quality) - Retail",KG,cereals and tubers,2700,KHR,Cambodia,Banteay Meanchey,791,Serei Saophoan,1524,165,15,5,1,1524_165_15_5,
4/15/2013,Wage (non-qualified labour) - Retail,Day,non-food,17500,KHR,Cambodia,Banteay Meanchey,791,Serei Saophoan,1524,277,15,51,8,1524_277_15_51,
5/15/2013,Wage (non-qualified labour) - Retail,Day,non-food,21000,KHR,Cambodia,Banteay Meanchey,791,Serei Saophoan,1524,277,15,51,8,1524_277_15_51,
6/15/2013,Wage (non-qualified labour) - Retail,Day,non-food,20000,KHR,Cambodia,Banteay Meanchey,791,Serei Saophoan,1524,277,15,51,8,1524_277_15_51,
7/15/2013,Wage (non-qualified labour) - Retail,Day,non-food,16000,KHR,Cambodia,Banteay Meanchey,791,Serei Saophoan,1524,277,15,51,8,1524_277_15_51,
8/15/2013,Wage (non-qualified labour) - Retail,Day,non-food,16000,KHR,Cambodia,Banteay Meanchey,791,Serei Saophoan,1524,277,15,51,8,1524_277_15_51,
9/15/2013,Wage (non-qualified labour) - Retail,Day,non-food,17500,KHR,Cambodia,Banteay Meanchey,791,Serei Saophoan,1524,277,15,51,8,1524_277_15_51,
10/15/2013,Wage (non-qualified labour) - Retail,Day,non-food,16500,KHR,Cambodia,Banteay Meanchey,791,Serei Saophoan,1524,277,15,51,8,1524_277_15_51,
11/15/2013,Wage (non-qualified labour) - Retail,Day,non-food,16000,KHR,Cambodia,Banteay Meanchey,791,Serei Saophoan,1524,277,15,51,8,1524_277_15_51,
12/15/2013,Wage (non-qualified labour) - Retail,Day,non-food,16500,KHR,Cambodia,Banteay Meanchey,791,Serei Saophoan,1524,277,15,51,8,1524_277_15_51,
1/15/2014,Wage (non-qualified labour) - Retail,Day,non-food,16500,KHR,Cambodia,Banteay Meanchey,791,Serei Saophoan,1524,277,15,51,8,1524_277_15_51,
2/15/2014,Wage (non-qualified labour) - Retail,Day,non-food,21000,KHR,Cambodia,Banteay Meanchey,791,Serei Saophoan,1524,277,15,51,8,1524_277_15_51,
3/15/2014,Wage (non-qualified labour) - Retail,Day,non-food,21500,KHR,Cambodia,Banteay Meanchey,791,Serei Saophoan,1524,277,15,51,8,1524_277_15_51,
4/15/2014,Wage (non-qualified labour) - Retail,Day,non-food,21500,KHR,Cambodia,Banteay Meanchey,791,Serei Saophoan,1524,277,15,51,8,1524_277_15_51,
5/15/2014,Wage (non-qualified labour) - Retail,Day,non-food,23000,KHR,Cambodia,Banteay Meanchey,791,Serei Saophoan,1524,277,15,51,8,1524_277_15_51,
6/15/2014,Wage (non-qualified labour) - Retail,Day,non-food,20750,KHR,Cambodia,Banteay Meanchey,791,Serei Saophoan,1524,277,15,51,8,1524_277_15_51,
7/15/2014,Wage (non-qualified labour) - Retail,Day,non-food,20750,KHR,Cambodia,Banteay Meanchey,791,Serei Saophoan,1524,277,15,51,8,1524_277_15_51,
8/15/2014,Wage (non-qualified labour) - Retail,Day,non-food,21500,KHR,Cambodia,Banteay Meanchey,791,Serei Saophoan,1524,277,15,51,8,1524_277_15_51,
9/15/2014,Wage (non-qualified labour) - Retail,Day,non-food,21500,KHR,Cambodia,Banteay Meanchey,791,Serei Saophoan,1524,277,15,51,8,1524_277_15_51,
10/15/2014,Wage (non-qualified labour) - Retail,Day,non-food,24000,KHR,Cambodia,Banteay Meanchey,791,Serei Saophoan,1524,277,15,51,8,1524_277_15_51,
11/15/2014,Wage (non-qualified labour) - Retail,Day,non-food,24000,KHR,Cambodia,Banteay Meanchey,791,Serei Saophoan,1524,277,15,51,8,1524_277_15_51,
12/15/2014,Wage (non-qualified labour) - Retail,Day,non-food,22500,KHR,Cambodia,Banteay Meanchey,791,Serei Saophoan,1524,277,15,51,8,1524_277_15_51,
1/15/2015,Wage (non-qualified labour) - Retail,Day,non-food,25500,KHR,Cambodia,Banteay Meanchey,791,Serei Saophoan,1524,277,15,51,8,1524_277_15_51,
2/15/2015,Wage (non-qualified labour) - Retail,Day,non-food,27000,KHR,Cambodia,Banteay Meanchey,791,Serei Saophoan,1524,277,15,51,8,1524_277_15_51,
3/15/2015,Wage (non-qualified labour) - Retail,Day,non-food,22500,KHR,Cambodia,Banteay Meanchey,791,Serei Saophoan,1524,277,15,51,8,1524_277_15_51,
4/15/2015,Wage (non-qualified labour) - Retail,Day,non-food,22500,KHR,Cambodia,Banteay Meanchey,791,Serei Saophoan,1524,277,15,51,8,1524_277_15_51,
5/15/2015,Wage (non-qualified labour) - Retail,Day,non-food,22500,KHR,Cambodia,Banteay Meanchey,791,Serei Saophoan,1524,277,15,51,8,1524_277_15_51,
6/15/2015,Wage (non-qualified labour) - Retail,Day,non-food,22500,KHR,Cambodia,Banteay Meanchey,791,Serei Saophoan,1524,277,15,51,8,1524_277_15_51,
7/15/2015,Wage (non-qualified labour) - Retail,Day,non-food,22500,KHR,Cambodia,Banteay Meanchey,791,Serei Saophoan,1524,277,15,51,8,1524_277_15_51,
8/15/2015,Wage (non-qualified labour) - Retail,Day,non-food,22500,KHR,Cambodia,Banteay Meanchey,791,Serei Saophoan,1524,277,15,51,8,1524_277_15_51,
9/15/2015,Wage (non-qualified labour) - Retail,Day,non-food,22500,KHR,Cambodia,Banteay Meanchey,791,Serei Saophoan,1524,277,15,51,8,1524_277_15_51,
10/15/2015,Wage (non-qualified labour) - Retail,Day,non-food,22500,KHR,Cambodia,Banteay Meanchey,791,Serei Saophoan,1524,277,15,51,8,1524_277_15_51,
11/15/2015,Wage (non-qualified labour) - Retail,Day,non-food,22500,KHR,Cambodia,Banteay Meanchey,791,Serei Saophoan,1524,277,15,51,8,1524_277_15_51,
12/15/2015,Wage (non-qualified labour) - Retail,Day,non-food,22500,KHR,Cambodia,Banteay Meanchey,791,Serei Saophoan,1524,277,15,51,8,1524_277_15_51,
1/15/2016,Wage (non-qualified labour) - Retail,Day,non-food,20333.3333,KHR,Cambodia,Banteay Meanchey,791,Serei Saophoan,1524,277,15,51,8,1524_277_15_51,
2/15/2016,Wage (non-qualified labour) - Retail,Day,non-food,21000,KHR,Cambodia,Banteay Meanchey,791,Serei Saophoan,1524,277,15,51,8,1524_277_15_51,
3/15/2016,Wage (non-qualified labour) - Retail,Day,non-food,21000,KHR,Cambodia,Banteay Meanchey,791,Serei Saophoan,1524,277,15,51,8,1524_277_15_51,
4/15/2016,Wage (non-qualified labour) - Retail,Day,non-food,21000,KHR,Cambodia,Banteay Meanchey,791,Serei Saophoan,1524,277,15,51,8,1524_277_15_51,
5/15/2016,Wage (non-qualified labour) - Retail,Day,non-food,21000,KHR,Cambodia,Banteay Meanchey,791,Serei Saophoan,1524,277,15,51,8,1524_277_15_51,
6/15/2016,Wage (non-qualified labour) - Retail,Day,non-food,21000,KHR,Cambodia,Banteay Meanchey,791,Serei Saophoan,1524,277,15,51,8,1524_277_15_51,
7/15/2016,Wage (non-qualified labour) - Retail,Day,non-food,21000,KHR,Cambodia,Banteay Meanchey,791,Serei Saophoan,1524,277,15,51,8,1524_277_15_51,
8/15/2016,Wage (non-qualified labour) - Retail,Day,non-food,21000,KHR,Cambodia,Banteay Meanchey,791,Serei Saophoan,1524,277,15,51,8,1524_277_15_51,
9/15/2016,Wage (non-qualified labour) - Retail,Day,non-food,21000,KHR,Cambodia,Banteay Meanchey,791,Serei Saophoan,1524,277,15,51,8,1524_277_15_51,
11/15/2016,Wage (non-qualified labour) - Retail,Day,non-food,21000,KHR,Cambodia,Banteay Meanchey,791,Serei Saophoan,1524,277,15,51,8,1524_277_15_51,
12/15/2016,Wage (non-qualified labour) - Retail,Day,non-food,21000,KHR,Cambodia,Banteay Meanchey,791,Serei Saophoan,1524,277,15,51,8,1524_277_15_51,
1/15/2017,Wage (non-qualified labour) - Retail,Day,non-food,21000,KHR,Cambodia,Banteay Meanchey,791,Serei Saophoan,1524,277,15,51,8,1524_277_15_51,
2/15/2017,Wage (non-qualified labour) - Retail,Day,non-food,21000,KHR,Cambodia,Banteay Meanchey,791,Serei Saophoan,1524,277,15,51,8,1524_277_15_51,
3/15/2017,Wage (non-qualified labour) - Retail,Day,non-food,21500,KHR,Cambodia,Banteay Meanchey,791,Serei Saophoan,1524,277,15,51,8,1524_277_15_51,
5/15/2017,Wage (non-qualified labour) - Retail,Day,non-food,21500,KHR,Cambodia,Banteay Meanchey,791,Serei Saophoan,1524,277,15,51,8,1524_277_15_51,
6/15/2017,Wage (non-qualified labour) - Retail,Day,non-food,21500,KHR,Cambodia,Banteay Meanchey,791,Serei Saophoan,1524,277,15,51,8,1524_277_15_51,
7/15/2017,Wage (non-qualified labour) - Retail,Day,non-food,21500,KHR,Cambodia,Banteay Meanchey,791,Serei Saophoan,1524,277,15,51,8,1524_277_15_51,
12/15/2017,Wage (non-qualified labour) - Retail,Day,non-food,22500,KHR,Cambodia,Banteay Meanchey,791,Serei Saophoan,1524,277,15,51,8,1524_277_15_51,
3/15/2020,Fish (snake head) - Wholesale,KG,"meat, fish and eggs",8667,KHR,Cambodia,Banteay Meanchey,791,Serei Saophoan,1524,309,14,5,2,1524_309_14_5,
4/15/2020,Fish (snake head) - Wholesale,KG,"meat, fish and eggs",8500,KHR,Cambodia,Banteay Meanchey,791,Serei Saophoan,1524,309,14,5,2,1524_309_14_5,
5/15/2020,Fish (snake head) - Wholesale,KG,"meat, fish and eggs",9500,KHR,Cambodia,Banteay Meanchey,791,Serei Saophoan,1524,309,14,5,2,1524_309_14_5,
6/15/2020,Fish (snake head) - Wholesale,KG,"meat, fish and eggs",8500,KHR,Cambodia,Banteay Meanchey,791,Serei Saophoan,1524,309,14,5,2,1524_309_14_5,
3/15/2020,Fish (snake head) - Retail,KG,"meat, fish and eggs",11667,KHR,Cambodia,Banteay Meanchey,791,Serei Saophoan,1524,309,15,5,2,1524_309_15_5,
4/15/2020,Fish (snake head) - Retail,KG,"meat, fish and eggs",9000,KHR,Cambodia,Banteay Meanchey,791,Serei Saophoan,1524,309,15,5,2,1524_309_15_5,
5/15/2020,Fish (snake head) - Retail,KG,"meat, fish and eggs",10000,KHR,Cambodia,Banteay Meanchey,791,Serei Saophoan,1524,309,15,5,2,1524_309_15_5,
6/15/2020,Fish (snake head) - Retail,KG,"meat, fish and eggs",9000,KHR,Cambodia,Banteay Meanchey,791,Serei Saophoan,1524,309,15,5,2,1524_309_15_5,
3/15/2020,Fish (catfish) - Wholesale,KG,"meat, fish and eggs",8333,KHR,Cambodia,Banteay Meanchey,791,Serei Saophoan,1524,310,14,5,2,1524_310_14_5,
4/15/2020,Fish (catfish) - Wholesale,KG,"meat, fish and eggs",6000,KHR,Cambodia,Banteay Meanchey,791,Serei Saophoan,1524,310,14,5,2,1524_310_14_5,
6/15/2020,Fish (catfish) - Wholesale,KG,"meat, fish and eggs",7000,KHR,Cambodia,Banteay Meanchey,791,Serei Saophoan,1524,310,14,5,2,1524_310_14_5,
3/15/2020,Fish (catfish) - Retail,KG,"meat, fish and eggs",9833,KHR,Cambodia,Banteay Meanchey,791,Serei Saophoan,1524,310,15,5,2,1524_310_15_5,
4/15/2020,Fish (catfish) - Retail,KG,"meat, fish and eggs",6500,KHR,Cambodia,Banteay Meanchey,791,Serei Saophoan,1524,310,15,5,2,1524_310_15_5,
6/15/2020,Fish (catfish) - Retail,KG,"meat, fish and eggs",7000,KHR,Cambodia,Banteay Meanchey,791,Serei Saophoan,1524,310,15,5,2,1524_310_15_5,
3/15/2020,"Meat (pork, with fat) - Wholesale",KG,"meat, fish and eggs",17833,KHR,Cambodia,Banteay Meanchey,791,Serei Saophoan,1524,329,14,5,2,1524_329_14_5,
12/15/2014,"Meat (pork, with fat) - Retail",KG,"meat, fish and eggs",18000,KHR,Cambodia,Banteay Meanchey,791,Serei Saophoan,1524,329,15,5,2,1524_329_15_5,
1/15/2015,"Meat (pork, with fat) - Retail",KG,"meat, fish and eggs",17000,KHR,Cambodia,Banteay Meanchey,791,Serei Saophoan,1524,329,15,5,2,1524_329_15_5,
2/15/2015,"Meat (pork, with fat) - Retail",KG,"meat, fish and eggs",16000,KHR,Cambodia,Banteay Meanchey,791,Serei Saophoan,1524,329,15,5,2,1524_329_15_5,
3/15/2015,"Meat (pork, with fat) - Retail",KG,"meat, fish and eggs",16000,KHR,Cambodia,Banteay Meanchey,791,Serei Saophoan,1524,329,15,5,2,1524_329_15_5,
4/15/2015,"Meat (pork, with fat) - Retail",KG,"meat, fish and eggs",16000,KHR,Cambodia,Banteay Meanchey,791,Serei Saophoan,1524,329,15,5,2,1524_329_15_5,
5/15/2015,"Meat (pork, with fat) - Retail",KG,"meat, fish and eggs",16000,KHR,Cambodia,Banteay Meanchey,791,Serei Saophoan,1524,329,15,5,2,1524_329_15_5,
6/15/2015,"Meat (pork, with fat) - Retail",KG,"meat, fish and eggs",16000,KHR,Cambodia,Banteay Meanchey,791,Serei Saophoan,1524,329,15,5,2,1524_329_15_5,
7/15/2015,"Meat (pork, with fat) - Retail",KG,"meat, fish and eggs",16000,KHR,Cambodia,Banteay Meanchey,791,Serei Saophoan,1524,329,15,5,2,1524_329_15_5,
8/15/2015,"Meat (pork, with fat) - Retail",KG,"meat, fish and eggs",16000,KHR,Cambodia,Banteay Meanchey,791,Serei Saophoan,1524,329,15,5,2,1524_329_15_5,
9/15/2015,"Meat (pork, with fat) - Retail",KG,"meat, fish and eggs",16000,KHR,Cambodia,Banteay Meanchey,791,Serei Saophoan,1524,329,15,5,2,1524_329_15_5,
10/15/2015,"Meat (pork, with fat) - Retail",KG,"meat, fish and eggs",16000,KHR,Cambodia,Banteay Meanchey,791,Serei Saophoan,1524,329,15,5,2,1524_329_15_5,
11/15/2015,"Meat (pork, with fat) - Retail",KG,"meat, fish and eggs",16000,KHR,Cambodia,Banteay Meanchey,791,Serei Saophoan,1524,329,15,5,2,1524_329_15_5,
12/15/2015,"Meat (pork, with fat) - Retail",KG,"meat, fish and eggs",16000,KHR,Cambodia,Banteay Meanchey,791,Serei Saophoan,1524,329,15,5,2,1524_329_15_5,
1/15/2016,"Meat (pork, with fat) - Retail",KG,"meat, fish and eggs",14000,KHR,Cambodia,Banteay Meanchey,791,Serei Saophoan,1524,329,15,5,2,1524_329_15_5,
2/15/2016,"Meat (pork, with fat) - Retail",KG,"meat, fish and eggs",15000,KHR,Cambodia,Banteay Meanchey,791,Serei Saophoan,1524,329,15,5,2,1524_329_15_5,
3/15/2016,"Meat (pork, with fat) - Retail",KG,"meat, fish and eggs",13666.6667,KHR,Cambodia,Banteay Meanchey,791,Serei Saophoan,1524,329,15,5,2,1524_329_15_5,
4/15/2016,"Meat (pork, with fat) - Retail",KG,"meat, fish and eggs",15000,KHR,Cambodia,Banteay Meanchey,791,Serei Saophoan,1524,329,15,5,2,1524_329_15_5,
5/15/2016,"Meat (pork, with fat) - Retail",KG,"meat, fish and eggs",16333.3333,KHR,Cambodia,Banteay Meanchey,791,Serei Saophoan,1524,329,15,5,2,1524_329_15_5,
6/15/2016,"Meat (pork, with fat) - Retail",KG,"meat, fish and eggs",16000,KHR,Cambodia,Banteay Meanchey,791,Serei Saophoan,1524,329,15,5,2,1524_329_15_5,
7/15/2016,"Meat (pork, with fat) - Retail",KG,"meat, fish and eggs",15000,KHR,Cambodia,Banteay Meanchey,791,Serei Saophoan,1524,329,15,5,2,1524_329_15_5,
8/15/2016,"Meat (pork, with fat) - Retail",KG,"meat, fish and eggs",15000,KHR,Cambodia,Banteay Meanchey,791,Serei Saophoan,1524,329,15,5,2,1524_329_15_5,
9/15/2016,"Meat (pork, with fat) - Retail",KG,"meat, fish and eggs",14666.6667,KHR,Cambodia,Banteay Meanchey,791,Serei Saophoan,1524,329,15,5,2,1524_329_15_5,
11/15/2016,"Meat (pork, with fat) - Retail",KG,"meat, fish and eggs",14333.3333,KHR,Cambodia,Banteay Meanchey,791,Serei Saophoan,1524,329,15,5,2,1524_329_15_5,
12/15/2016,"Meat (pork, with fat) - Retail",KG,"meat, fish and eggs",14000,KHR,Cambodia,Banteay Meanchey,791,Serei Saophoan,1524,329,15,5,2,1524_329_15_5,
1/15/2017,"Meat (pork, with fat) - Retail",KG,"meat, fish and eggs",13000,KHR,Cambodia,Banteay Meanchey,791,Serei Saophoan,1524,329,15,5,2,1524_329_15_5,
2/15/2017,"Meat (pork, with fat) - Retail",KG,"meat, fish and eggs",13000,KHR,Cambodia,Banteay Meanchey,791,Serei Saophoan,1524,329,15,5,2,1524_329_15_5,
3/15/2017,"Meat (pork, with fat) - Retail",KG,"meat, fish and eggs",13333.3333,KHR,Cambodia,Banteay Meanchey,791,Serei Saophoan,1524,329,15,5,2,1524_329_15_5,
5/15/2017,"Meat (pork, with fat) - Retail",KG,"meat, fish and eggs",13666.6667,KHR,Cambodia,Banteay Meanchey,791,Serei Saophoan,1524,329,15,5,2,1524_329_15_5,
6/15/2017,"Meat (pork, with fat) - Retail",KG,"meat, fish and eggs",13500,KHR,Cambodia,Banteay Meanchey,791,Serei Saophoan,1524,329,15,5,2,1524_329_15_5,
7/15/2017,"Meat (pork, with fat) - Retail",KG,"meat, fish and eggs",13333.3333,KHR,Cambodia,Banteay Meanchey,791,Serei Saophoan,1524,329,15,5,2,1524_329_15_5,
12/15/2017,"Meat (pork, with fat) - Retail",KG,"meat, fish and eggs",11666.6667,KHR,Cambodia,Banteay Meanchey,791,Serei Saophoan,1524,329,15,5,2,1524_329_15_5,
3/15/2020,"Meat (pork, with fat) - Retail",KG,"meat, fish and eggs",20000,KHR,Cambodia,Banteay Meanchey,791,Serei Saophoan,1524,329,15,5,2,1524_329_15_5,
3/15/2020,Salt (iodised) - Wholesale,KG,miscellaneous food,2000,KHR,Cambodia,Banteay Meanchey,791,Serei Saophoan,1524,334,14,5,7,1524_334_14_5,
3/15/2020,Salt (iodised) - Retail,KG,miscellaneous food,2500,KHR,Cambodia,Banteay Meanchey,791,Serei Saophoan,1524,334,15,5,7,1524_334_15_5,
3/15/2020,Eggplants - Wholesale,KG,vegetables and fruits,1433,KHR,Cambodia,Banteay Meanchey,791,Serei Saophoan,1524,434,14,5,4,1524_434_14_5,
4/15/2020,Eggplants - Wholesale,KG,vegetables and fruits,1650,KHR,Cambodia,Banteay Meanchey,791,Serei Saophoan,1524,434,14,5,4,1524_434_14_5,
5/15/2020,Eggplants - Wholesale,KG,vegetables and fruits,1700,KHR,Cambodia,Banteay Meanchey,791,Serei Saophoan,1524,434,14,5,4,1524_434_14_5,
6/15/2020,Eggplants - Wholesale,KG,vegetables and fruits,1966.5,KHR,Cambodia,Banteay Meanchey,791,Serei Saophoan,1524,434,14,5,4,1524_434_14_5,
7/15/2020,Eggplants - Wholesale,KG,vegetables and fruits,1500,KHR,Cambodia,Banteay Meanchey,791,Serei Saophoan,1524,434,14,5,4,1524_434_14_5,
3/15/2020,Eggplants - Retail,KG,vegetables and fruits,1867,KHR,Cambodia,Banteay Meanchey,791,Serei Saophoan,1524,434,15,5,4,1524_434_15_5,
4/15/2020,Eggplants - Retail,KG,vegetables and fruits,2000,KHR,Cambodia,Banteay Meanchey,791,Serei Saophoan,1524,434,15,5,4,1524_434_15_5,
5/15/2020,Eggplants - Retail,KG,vegetables and fruits,1950,KHR,Cambodia,Banteay Meanchey,791,Serei Saophoan,1524,434,15,5,4,1524_434_15_5,
6/15/2020,Eggplants - Retail,KG,vegetables and fruits,2166.5,KHR,Cambodia,Banteay Meanchey,791,Serei Saophoan,1524,434,15,5,4,1524_434_15_5,
7/15/2020,Eggplants - Retail,KG,vegetables and fruits,1800,KHR,Cambodia,Banteay Meanchey,791,Serei Saophoan,1524,434,15,5,4,1524_434_15_5,
3/15/2020,Snake gourd - Wholesale,KG,vegetables and fruits,1667,KHR,Cambodia,Banteay Meanchey,791,Serei Saophoan,1524,675,14,5,4,1524_675_14_5,
5/15/2020,Snake gourd - Wholesale,KG,vegetables and fruits,1750,KHR,Cambodia,Banteay Meanchey,791,Serei Saophoan,1524,675,14,5,4,1524_675_14_5,
6/15/2020,Snake gourd - Wholesale,KG,vegetables and fruits,1525,KHR,Cambodia,Banteay Meanchey,791,Serei Saophoan,1524,675,14,5,4,1524_675_14_5,
3/15/2020,Snake gourd - Retail,KG,vegetables and fruits,2000,KHR,Cambodia,Banteay Meanchey,791,Serei Saophoan,1524,675,15,5,4,1524_675_15_5,
5/15/2020,Snake gourd - Retail,KG,vegetables and fruits,2450,KHR,Cambodia,Banteay Meanchey,791,Serei Saophoan,1524,675,15,5,4,1524_675_15_5,
6/15/2020,Snake gourd - Retail,KG,vegetables and fruits,1875,KHR,Cambodia,Banteay Meanchey,791,Serei Saophoan,1524,675,15,5,4,1524_675_15_5,
3/15/2020,"Cabbage (chinese, flowering) - Wholesale",KG,vegetables and fruits,3600,KHR,Cambodia,Banteay Meanchey,791,Serei Saophoan,1524,784,14,5,4,1524_784_14_5,
4/15/2020,"Cabbage (chinese, flowering) - Wholesale",KG,vegetables and fruits,2500,KHR,Cambodia,Banteay Meanchey,791,Serei Saophoan,1524,784,14,5,4,1524_784_14_5,
5/15/2020,"Cabbage (chinese, flowering) - Wholesale",KG,vegetables and fruits,1358.5,KHR,Cambodia,Banteay Meanchey,791,Serei Saophoan,1524,784,14,5,4,1524_784_14_5,
6/15/2020,"Cabbage (chinese, flowering) - Wholesale",KG,vegetables and fruits,2272.3333,KHR,Cambodia,Banteay Meanchey,791,Serei Saophoan,1524,784,14,5,4,1524_784_14_5,
7/15/2020,"Cabbage (chinese, flowering) - Wholesale",KG,vegetables and fruits,1800,KHR,Cambodia,Banteay Meanchey,791,Serei Saophoan,1524,784,14,5,4,1524_784_14_5,
3/15/2020,"Cabbage (chinese, flowering) - Retail",KG,vegetables and fruits,4000,KHR,Cambodia,Banteay Meanchey,791,Serei Saophoan,1524,784,15,5,4,1524_784_15_5,
4/15/2020,"Cabbage (chinese, flowering) - Retail",KG,vegetables and fruits,3000,KHR,Cambodia,Banteay Meanchey,791,Serei Saophoan,1524,784,15,5,4,1524_784_15_5,
5/15/2020,"Cabbage (chinese, flowering) - Retail",KG,vegetables and fruits,1616.5,KHR,Cambodia,Banteay Meanchey,791,Serei Saophoan,1524,784,15,5,4,1524_784_15_5,
6/15/2020,"Cabbage (chinese, flowering) - Retail",KG,vegetables and fruits,2750,KHR,Cambodia,Banteay Meanchey,791,Serei Saophoan,1524,784,15,5,4,1524_784_15_5,
7/15/2020,"Cabbage (chinese, flowering) - Retail",KG,vegetables and fruits,2000,KHR,Cambodia,Banteay Meanchey,791,Serei Saophoan,1524,784,15,5,4,1524_784_15_5,
3/15/2020,"Fish (snake head, dry) - Wholesale",KG,"meat, fish and eggs",29667,KHR,Cambodia,Banteay Meanchey,791,Serei Saophoan,1524,785,14,5,2,1524_785_14_5,
4/15/2020,"Fish (snake head, dry) - Wholesale",KG,"meat, fish and eggs",23000,KHR,Cambodia,Banteay Meanchey,791,Serei Saophoan,1524,785,14,5,2,1524_785_14_5,
5/15/2020,"Fish (snake head, dry) - Wholesale",KG,"meat, fish and eggs",25000,KHR,Cambodia,Banteay Meanchey,791,Serei Saophoan,1524,785,14,5,2,1524_785_14_5,
6/15/2020,"Fish (snake head, dry) - Wholesale",KG,"meat, fish and eggs",23000,KHR,Cambodia,Banteay Meanchey,791,Serei Saophoan,1524,785,14,5,2,1524_785_14_5,
3/15/2020,"Fish (snake head, dry) - Retail",KG,"meat, fish and eggs",33333,KHR,Cambodia,Banteay Meanchey,791,Serei Saophoan,1524,785,15,5,2,1524_785_15_5,
4/15/2020,"Fish (snake head, dry) - Retail",KG,"meat, fish and eggs",25000,KHR,Cambodia,Banteay Meanchey,791,Serei Saophoan,1524,785,15,5,2,1524_785_15_5,
5/15/2020,"Fish (snake head, dry) - Retail",KG,"meat, fish and eggs",25000,KHR,Cambodia,Banteay Meanchey,791,Serei Saophoan,1524,785,15,5,2,1524_785_15_5,
6/15/2020,"Fish (snake head, dry) - Retail",KG,"meat, fish and eggs",25000,KHR,Cambodia,Banteay Meanchey,791,Serei Saophoan,1524,785,15,5,2,1524_785_15_5,
3/15/2020,Eggs (duck) - Wholesale,10 pcs,"meat, fish and eggs",5333,KHR,Cambodia,Banteay Meanchey,791,Serei Saophoan,1524,786,14,81,2,1524_786_14_81,
4/15/2020,Eggs (duck) - Wholesale,10 pcs,"meat, fish and eggs",5000,KHR,Cambodia,Banteay Meanchey,791,Serei Saophoan,1524,786,14,81,2,1524_786_14_81,
3/15/2020,Eggs (duck) - Retail,10 pcs,"meat, fish and eggs",6167,KHR,Cambodia,Banteay Meanchey,791,Serei Saophoan,1524,786,15,81,2,1524_786_15_81,
4/15/2020,Eggs (duck) - Retail,10 pcs,"meat, fish and eggs",5000,KHR,Cambodia,Banteay Meanchey,791,Serei Saophoan,1524,786,15,81,2,1524_786_15_81,
3/15/2020,"Beans (yardlong, green) - Wholesale",KG,vegetables and fruits,4833,KHR,Cambodia,Banteay Meanchey,791,Serei Saophoan,1524,787,14,5,4,1524_787_14_5,
4/15/2020,"Beans (yardlong, green) - Wholesale",KG,vegetables and fruits,2500,KHR,Cambodia,Banteay Meanchey,791,Serei Saophoan,1524,787,14,5,4,1524_787_14_5,
5/15/2020,"Beans (yardlong, green) - Wholesale",KG,vegetables and fruits,6741.5,KHR,Cambodia,Banteay Meanchey,791,Serei Saophoan,1524,787,14,5,4,1524_787_14_5,
6/15/2020,"Beans (yardlong, green) - Wholesale",KG,vegetables and fruits,3666.6667,KHR,Cambodia,Banteay Meanchey,791,Serei Saophoan,1524,787,14,5,4,1524_787_14_5,
7/15/2020,"Beans (yardlong, green) - Wholesale",KG,vegetables and fruits,2000,KHR,Cambodia,Banteay Meanchey,791,Serei Saophoan,1524,787,14,5,4,1524_787_14_5,
3/15/2020,"Beans (yardlong, green) - Retail",KG,vegetables and fruits,5333,KHR,Cambodia,Banteay Meanchey,791,Serei Saophoan,1524,787,15,5,4,1524_787_15_5,
4/15/2020,"Beans (yardlong, green) - Retail",KG,vegetables and fruits,2500,KHR,Cambodia,Banteay Meanchey,791,Serei Saophoan,1524,787,15,5,4,1524_787_15_5,
5/15/2020,"Beans (yardlong, green) - Retail",KG,vegetables and fruits,7375,KHR,Cambodia,Banteay Meanchey,791,Serei Saophoan,1524,787,15,5,4,1524_787_15_5,
6/15/2020,"Beans (yardlong, green) - Retail",KG,vegetables and fruits,4222.3333,KHR,Cambodia,Banteay Meanchey,791,Serei Saophoan,1524,787,15,5,4,1524_787_15_5,
7/15/2020,"Beans (yardlong, green) - Retail",KG,vegetables and fruits,2500,KHR,Cambodia,Banteay Meanchey,791,Serei Saophoan,1524,787,15,5,4,1524_787_15_5,
3/15/2020,Water spinach - Wholesale,KG,vegetables and fruits,1933,KHR,Cambodia,Banteay Meanchey,791,Serei Saophoan,1524,788,14,5,4,1524_788_14_5,
4/15/2020,Water spinach - Wholesale,KG,vegetables and fruits,1100,KHR,Cambodia,Banteay Meanchey,791,Serei Saophoan,1524,788,14,5,4,1524_788_14_5,
5/15/2020,Water spinach - Wholesale,KG,vegetables and fruits,1000,KHR,Cambodia,Banteay Meanchey,791,Serei Saophoan,1524,788,14,5,4,1524_788_14_5,
6/15/2020,Water spinach - Wholesale,KG,vegetables and fruits,977.6667,KHR,Cambodia,Banteay Meanchey,791,Serei Saophoan,1524,788,14,5,4,1524_788_14_5,
7/15/2020,Water spinach - Wholesale,KG,vegetables and fruits,1500,KHR,Cambodia,Banteay Meanchey,791,Serei Saophoan,1524,788,14,5,4,1524_788_14_5,
3/15/2020,Water spinach - Retail,KG,vegetables and fruits,2500,KHR,Cambodia,Banteay Meanchey,791,Serei Saophoan,1524,788,15,5,4,1524_788_15_5,
4/15/2020,Water spinach - Retail,KG,vegetables and fruits,1267,KHR,Cambodia,Banteay Meanchey,791,Serei Saophoan,1524,788,15,5,4,1524_788_15_5,
5/15/2020,Water spinach - Retail,KG,vegetables and fruits,1166.5,KHR,Cambodia,Banteay Meanchey,791,Serei Saophoan,1524,788,15,5,4,1524_788_15_5,
6/15/2020,Water spinach - Retail,KG,vegetables and fruits,1361,KHR,Cambodia,Banteay Meanchey,791,Serei Saophoan,1524,788,15,5,4,1524_788_15_5,
7/15/2020,Water spinach - Retail,KG,vegetables and fruits,1800,KHR,Cambodia,Banteay Meanchey,791,Serei Saophoan,1524,788,15,5,4,1524_788_15_5,
3/15/2020,"Eggs (duck, fermented) - Wholesale",10 pcs,"meat, fish and eggs",6000,KHR,Cambodia,Banteay Meanchey,791,Serei Saophoan,1524,789,14,81,2,1524_789_14_81,
3/15/2020,"Eggs (duck, fermented) - Retail",10 pcs,"meat, fish and eggs",7000,KHR,Cambodia,Banteay Meanchey,791,Serei Saophoan,1524,789,15,81,2,1524_789_15_81,
3/15/2020,Fish (striped catfish) - Wholesale,KG,"meat, fish and eggs",5000,KHR,Cambodia,Banteay Meanchey,791,Serei Saophoan,1524,790,14,5,2,1524_790_14_5,
4/15/2020,Fish (striped catfish) - Wholesale,KG,"meat, fish and eggs",6000,KHR,Cambodia,Banteay Meanchey,791,Serei Saophoan,1524,790,14,5,2,1524_790_14_5,
6/15/2020,Fish (striped catfish) - Wholesale,KG,"meat, fish and eggs",6250,KHR,Cambodia,Banteay Meanchey,791,Serei Saophoan,1524,790,14,5,2,1524_790_14_5,
3/15/2020,Fish (striped catfish) - Retail,KG,"meat, fish and eggs",7000,KHR,Cambodia,Banteay Meanchey,791,Serei Saophoan,1524,790,15,5,2,1524_790_15_5,
4/15/2020,Fish (striped catfish) - Retail,KG,"meat, fish and eggs",6500,KHR,Cambodia,Banteay Meanchey,791,Serei Saophoan,1524,790,15,5,2,1524_790_15_5,
6/15/2020,Fish (striped catfish) - Retail,KG,"meat, fish and eggs",6500,KHR,Cambodia,Banteay Meanchey,791,Serei Saophoan,1524,790,15,5,2,1524_790_15_5,
3/15/2020,Wax gourd - Wholesale,KG,vegetables and fruits,3500,KHR,Cambodia,Banteay Meanchey,791,Serei Saophoan,1524,791,14,5,4,1524_791_14_5,
4/15/2020,Wax gourd - Wholesale,KG,vegetables and fruits,1800,KHR,Cambodia,Banteay Meanchey,791,Serei Saophoan,1524,791,14,5,4,1524_791_14_5,
5/15/2020,Wax gourd - Wholesale,KG,vegetables and fruits,1875,KHR,Cambodia,Banteay Meanchey,791,Serei Saophoan,1524,791,14,5,4,1524_791_14_5,
6/15/2020,Wax gourd - Wholesale,KG,vegetables and fruits,2039,KHR,Cambodia,Banteay Meanchey,791,Serei Saophoan,1524,791,14,5,4,1524_791_14_5,
7/15/2020,Wax gourd - Wholesale,KG,vegetables and fruits,1500,KHR,Cambodia,Banteay Meanchey,791,Serei Saophoan,1524,791,14,5,4,1524_791_14_5,
3/15/2020,Wax gourd - Retail,KG,vegetables and fruits,3933,KHR,Cambodia,Banteay Meanchey,791,Serei Saophoan,1524,791,15,5,4,1524_791_15_5,
4/15/2020,Wax gourd - Retail,KG,vegetables and fruits,2000,KHR,Cambodia,Banteay Meanchey,791,Serei Saophoan,1524,791,15,5,4,1524_791_15_5,
5/15/2020,Wax gourd - Retail,KG,vegetables and fruits,2175,KHR,Cambodia,Banteay Meanchey,791,Serei Saophoan,1524,791,15,5,4,1524_791_15_5,
6/15/2020,Wax gourd - Retail,KG,vegetables and fruits,2500,KHR,Cambodia,Banteay Meanchey,791,Serei Saophoan,1524,791,15,5,4,1524_791_15_5,
7/15/2020,Wax gourd - Retail,KG,vegetables and fruits,1800,KHR,Cambodia,Banteay Meanchey,791,Serei Saophoan,1524,791,15,5,4,1524_791_15_5,
12/15/2014,Oil (vegetable) - Retail,KG,oil and fats,5500,KHR,Cambodia,Banteay Meanchey,791,Thma Puok,1525,96,15,5,6,1525_96_15_5,
1/15/2015,Oil (vegetable) - Retail,KG,oil and fats,6000,KHR,Cambodia,Banteay Meanchey,791,Thma Puok,1525,96,15,5,6,1525_96_15_5,
2/15/2015,Oil (vegetable) - Retail,KG,oil and fats,6000,KHR,Cambodia,Banteay Meanchey,791,Thma Puok,1525,96,15,5,6,1525_96_15_5,
3/15/2015,Oil (vegetable) - Retail,KG,oil and fats,6000,KHR,Cambodia,Banteay Meanchey,791,Thma Puok,1525,96,15,5,6,1525_96_15_5,
4/15/2015,Oil (vegetable) - Retail,KG,oil and fats,6000,KHR,Cambodia,Banteay Meanchey,791,Thma Puok,1525,96,15,5,6,1525_96_15_5,
5/15/2015,Oil (vegetable) - Retail,KG,oil and fats,6000,KHR,Cambodia,Banteay Meanchey,791,Thma Puok,1525,96,15,5,6,1525_96_15_5,
6/15/2015,Oil (vegetable) - Retail,KG,oil and fats,6000,KHR,Cambodia,Banteay Meanchey,791,Thma Puok,1525,96,15,5,6,1525_96_15_5,
7/15/2015,Oil (vegetable) - Retail,KG,oil and fats,6000,KHR,Cambodia,Banteay Meanchey,791,Thma Puok,1525,96,15,5,6,1525_96_15_5,
8/15/2015,Oil (vegetable) - Retail,KG,oil and fats,6000,KHR,Cambodia,Banteay Meanchey,791,Thma Puok,1525,96,15,5,6,1525_96_15_5,
9/15/2015,Oil (vegetable) - Retail,KG,oil and fats,6000,KHR,Cambodia,Banteay Meanchey,791,Thma Puok,1525,96,15,5,6,1525_96_15_5,
10/15/2015,Oil (vegetable) - Retail,KG,oil and fats,6000,KHR,Cambodia,Banteay Meanchey,791,Thma Puok,1525,96,15,5,6,1525_96_15_5,
11/15/2015,Oil (vegetable) - Retail,KG,oil and fats,6000,KHR,Cambodia,Banteay Meanchey,791,Thma Puok,1525,96,15,5,6,1525_96_15_5,
12/15/2015,Oil (vegetable) - Retail,KG,oil and fats,6000,KHR,Cambodia,Banteay Meanchey,791,Thma Puok,1525,96,15,5,6,1525_96_15_5,
1/15/2016,Oil (vegetable) - Retail,KG,oil and fats,6000,KHR,Cambodia,Banteay Meanchey,791,Thma Puok,1525,96,15,5,6,1525_96_15_5,
2/15/2016,Oil (vegetable) - Retail,KG,oil and fats,6666.6667,KHR,Cambodia,Banteay Meanchey,791,Thma Puok,1525,96,15,5,6,1525_96_15_5,
3/15/2016,Oil (vegetable) - Retail,KG,oil and fats,5500,KHR,Cambodia,Banteay Meanchey,791,Thma Puok,1525,96,15,5,6,1525_96_15_5,
4/15/2016,Oil (vegetable) - Retail,KG,oil and fats,5166.6667,KHR,Cambodia,Banteay Meanchey,791,Thma Puok,1525,96,15,5,6,1525_96_15_5,
5/15/2016,Oil (vegetable) - Retail,KG,oil and fats,5500,KHR,Cambodia,Banteay Meanchey,791,Thma Puok,1525,96,15,5,6,1525_96_15_5,
6/15/2016,Oil (vegetable) - Retail,KG,oil and fats,5500,KHR,Cambodia,Banteay Meanchey,791,Thma Puok,1525,96,15,5,6,1525_96_15_5,
7/15/2016,Oil (vegetable) - Retail,KG,oil and fats,6044,KHR,Cambodia,Banteay Meanchey,791,Thma Puok,1525,96,15,5,6,1525_96_15_5,
9/15/2016,Oil (vegetable) - Retail,KG,oil and fats,6593,KHR,Cambodia,Banteay Meanchey,791,Thma Puok,1525,96,15,5,6,1525_96_15_5,
11/15/2016,Oil (vegetable) - Retail,KG,oil and fats,6227.1062,KHR,Cambodia,Banteay Meanchey,791,Thma Puok,1525,96,15,5,6,1525_96_15_5,
12/15/2016,Oil (vegetable) - Retail,KG,oil and fats,6227.1062,KHR,Cambodia,Banteay Meanchey,791,Thma Puok,1525,96,15,5,6,1525_96_15_5,
1/15/2017,Oil (vegetable) - Retail,KG,oil and fats,5460,KHR,Cambodia,Banteay Meanchey,791,Thma Puok,1525,96,15,5,6,1525_96_15_5,
3/15/2017,Oil (vegetable) - Retail,KG,oil and fats,5849.304,KHR,Cambodia,Banteay Meanchey,791,Thma Puok,1525,96,15,5,6,1525_96_15_5,
5/15/2017,Oil (vegetable) - Retail,KG,oil and fats,6043.9707,KHR,Cambodia,Banteay Meanchey,791,Thma Puok,1525,96,15,5,6,1525_96_15_5,
11/15/2017,Oil (vegetable) - Retail,KG,oil and fats,5329.9737,KHR,Cambodia,Banteay Meanchey,791,Thma Puok,1525,96,15,5,6,1525_96_15_5,
12/15/2017,Oil (vegetable) - Retail,KG,oil and fats,5000.91,KHR,Cambodia,Banteay Meanchey,791,Thma Puok,1525,96,15,5,6,1525_96_15_5,
4/15/2013,"Rice (mixed, low quality) - Retail",KG,cereals and tubers,2033.3333,KHR,Cambodia,Banteay Meanchey,791,Thma Puok,1525,165,15,5,1,1525_165_15_5,
5/15/2013,"Rice (mixed, low quality) - Retail",KG,cereals and tubers,2000,KHR,Cambodia,Banteay Meanchey,791,Thma Puok,1525,165,15,5,1,1525_165_15_5,
6/15/2013,"Rice (mixed, low quality) - Retail",KG,cereals and tubers,2000,KHR,Cambodia,Banteay Meanchey,791,Thma Puok,1525,165,15,5,1,1525_165_15_5,
7/15/2013,"Rice (mixed, low quality) - Retail",KG,cereals and tubers,2000,KHR,Cambodia,Banteay Meanchey,791,Thma Puok,1525,165,15,5,1,1525_165_15_5,
8/15/2013,"Rice (mixed, low quality) - Retail",KG,cereals and tubers,2050,KHR,Cambodia,Banteay Meanchey,791,Thma Puok,1525,165,15,5,1,1525_165_15_5,
9/15/2013,"Rice (mixed, low quality) - Retail",KG,cereals and tubers,2000,KHR,Cambodia,Banteay Meanchey,791,Thma Puok,1525,165,15,5,1,1525_165_15_5,
10/15/2013,"Rice (mixed, low quality) - Retail",KG,cereals and tubers,2050,KHR,Cambodia,Banteay Meanchey,791,Thma Puok,1525,165,15,5,1,1525_165_15_5,
11/15/2013,"Rice (mixed, low quality) - Retail",KG,cereals and tubers,2000,KHR,Cambodia,Banteay Meanchey,791,Thma Puok,1525,165,15,5,1,1525_165_15_5,
12/15/2013,"Rice (mixed, low quality) - Retail",KG,cereals and tubers,2000,KHR,Cambodia,Banteay Meanchey,791,Thma Puok,1525,165,15,5,1,1525_165_15_5,
1/15/2014,"Rice (mixed, low quality) - Retail",KG,cereals and tubers,2000,KHR,Cambodia,Banteay Meanchey,791,Thma Puok,1525,165,15,5,1,1525_165_15_5,
2/15/2014,"Rice (mixed, low quality) - Retail",KG,cereals and tubers,1900,KHR,Cambodia,Banteay Meanchey,791,Thma Puok,1525,165,15,5,1,1525_165_15_5,
3/15/2014,"Rice (mixed, low quality) - Retail",KG,cereals and tubers,1800,KHR,Cambodia,Banteay Meanchey,791,Thma Puok,1525,165,15,5,1,1525_165_15_5,
4/15/2014,"Rice (mixed, low quality) - Retail",KG,cereals and tubers,2000,KHR,Cambodia,Banteay Meanchey,791,Thma Puok,1525,165,15,5,1,1525_165_15_5,
5/15/2014,"Rice (mixed, low quality) - Retail",KG,cereals and tubers,2000,KHR,Cambodia,Banteay Meanchey,791,Thma Puok,1525,165,15,5,1,1525_165_15_5,
6/15/2014,"Rice (mixed, low quality) - Retail",KG,cereals and tubers,2000,KHR,Cambodia,Banteay Meanchey,791,Thma Puok,1525,165,15,5,1,1525_165_15_5,
7/15/2014,"Rice (mixed, low quality) - Retail",KG,cereals and tubers,2000,KHR,Cambodia,Banteay Meanchey,791,Thma Puok,1525,165,15,5,1,1525_165_15_5,
8/15/2014,"Rice (mixed, low quality) - Retail",KG,cereals and tubers,2000,KHR,Cambodia,Banteay Meanchey,791,Thma Puok,1525,165,15,5,1,1525_165_15_5,
9/15/2014,"Rice (mixed, low quality) - Retail",KG,cereals and tubers,2300,KHR,Cambodia,Banteay Meanchey,791,Thma Puok,1525,165,15,5,1,1525_165_15_5,
10/15/2014,"Rice (mixed, low quality) - Retail",KG,cereals and tubers,2000,KHR,Cambodia,Banteay Meanchey,791,Thma Puok,1525,165,15,5,1,1525_165_15_5,
11/15/2014,"Rice (mixed, low quality) - Retail",KG,cereals and tubers,2000,KHR,Cambodia,Banteay Meanchey,791,Thma Puok,1525,165,15,5,1,1525_165_15_5,
12/15/2014,"Rice (mixed, low quality) - Retail",KG,cereals and tubers,2000,KHR,Cambodia,Banteay Meanchey,791,Thma Puok,1525,165,15,5,1,1525_165_15_5,
1/15/2015,"Rice (mixed, low quality) - Retail",KG,cereals and tubers,2000,KHR,Cambodia,Banteay Meanchey,791,Thma Puok,1525,165,15,5,1,1525_165_15_5,
2/15/2015,"Rice (mixed, low quality) - Retail",KG,cereals and tubers,2000,KHR,Cambodia,Banteay Meanchey,791,Thma Puok,1525,165,15,5,1,1525_165_15_5,
3/15/2015,"Rice (mixed, low quality) - Retail",KG,cereals and tubers,2000,KHR,Cambodia,Banteay Meanchey,791,Thma Puok,1525,165,15,5,1,1525_165_15_5,
4/15/2015,"Rice (mixed, low quality) - Retail",KG,cereals and tubers,2000,KHR,Cambodia,Banteay Meanchey,791,Thma Puok,1525,165,15,5,1,1525_165_15_5,
5/15/2015,"Rice (mixed, low quality) - Retail",KG,cereals and tubers,2000,KHR,Cambodia,Banteay Meanchey,791,Thma Puok,1525,165,15,5,1,1525_165_15_5,
6/15/2015,"Rice (mixed, low quality) - Retail",KG,cereals and tubers,2000,KHR,Cambodia,Banteay Meanchey,791,Thma Puok,1525,165,15,5,1,1525_165_15_5,
7/15/2015,"Rice (mixed, low quality) - Retail",KG,cereals and tubers,1800,KHR,Cambodia,Banteay Meanchey,791,Thma Puok,1525,165,15,5,1,1525_165_15_5,
8/15/2015,"Rice (mixed, low quality) - Retail",KG,cereals and tubers,1800,KHR,Cambodia,Banteay Meanchey,791,Thma Puok,1525,165,15,5,1,1525_165_15_5,
9/15/2015,"Rice (mixed, low quality) - Retail",KG,cereals and tubers,1800,KHR,Cambodia,Banteay Meanchey,791,Thma Puok,1525,165,15,5,1,1525_165_15_5,
10/15/2015,"Rice (mixed, low quality) - Retail",KG,cereals and tubers,1800,KHR,Cambodia,Banteay Meanchey,791,Thma Puok,1525,165,15,5,1,1525_165_15_5,
11/15/2015,"Rice (mixed, low quality) - Retail",KG,cereals and tubers,1800,KHR,Cambodia,Banteay Meanchey,791,Thma Puok,1525,165,15,5,1,1525_165_15_5,
12/15/2015,"Rice (mixed, low quality) - Retail",KG,cereals and tubers,1800,KHR,Cambodia,Banteay Meanchey,791,Thma Puok,1525,165,15,5,1,1525_165_15_5,
1/15/2016,"Rice (mixed, low quality) - Retail",KG,cereals and tubers,1800,KHR,Cambodia,Banteay Meanchey,791,Thma Puok,1525,165,15,5,1,1525_165_15_5,
2/15/2016,"Rice (mixed, low quality) - Retail",KG,cereals and tubers,2000,KHR,Cambodia,Banteay Meanchey,791,Thma Puok,1525,165,15,5,1,1525_165_15_5,
3/15/2016,"Rice (mixed, low quality) - Retail",KG,cereals and tubers,2000,KHR,Cambodia,Banteay Meanchey,791,Thma Puok,1525,165,15,5,1,1525_165_15_5,
4/15/2016,"Rice (mixed, low quality) - Retail",KG,cereals and tubers,2000,KHR,Cambodia,Banteay Meanchey,791,Thma Puok,1525,165,15,5,1,1525_165_15_5,
5/15/2016,"Rice (mixed, low quality) - Retail",KG,cereals and tubers,2000,KHR,Cambodia,Banteay Meanchey,791,Thma Puok,1525,165,15,5,1,1525_165_15_5,
6/15/2016,"Rice (mixed, low quality) - Retail",KG,cereals and tubers,2000,KHR,Cambodia,Banteay Meanchey,791,Thma Puok,1525,165,15,5,1,1525_165_15_5,
7/15/2016,"Rice (mixed, low quality) - Retail",KG,cereals and tubers,2000,KHR,Cambodia,Banteay Meanchey,791,Thma Puok,1525,165,15,5,1,1525_165_15_5,
8/15/2016,"Rice (mixed, low quality) - Retail",KG,cereals and tubers,2000,KHR,Cambodia,Banteay Meanchey,791,Thma Puok,1525,165,15,5,1,1525_165_15_5,
9/15/2016,"Rice (mixed, low quality) - Retail",KG,cereals and tubers,2000,KHR,Cambodia,Banteay Meanchey,791,Thma Puok,1525,165,15,5,1,1525_165_15_5,
11/15/2016,"Rice (mixed, low quality) - Retail",KG,cereals and tubers,1933.3333,KHR,Cambodia,Banteay Meanchey,791,Thma Puok,1525,165,15,5,1,1525_165_15_5,
12/15/2016,"Rice (mixed, low quality) - Retail",KG,cereals and tubers,1833.3333,KHR,Cambodia,Banteay Meanchey,791,Thma Puok,1525,165,15,5,1,1525_165_15_5,
1/15/2017,"Rice (mixed, low quality) - Retail",KG,cereals and tubers,2000,KHR,Cambodia,Banteay Meanchey,791,Thma Puok,1525,165,15,5,1,1525_165_15_5,
3/15/2017,"Rice (mixed, low quality) - Retail",KG,cereals and tubers,2000,KHR,Cambodia,Banteay Meanchey,791,Thma Puok,1525,165,15,5,1,1525_165_15_5,
5/15/2017,"Rice (mixed, low quality) - Retail",KG,cereals and tubers,2000,KHR,Cambodia,Banteay Meanchey,791,Thma Puok,1525,165,15,5,1,1525_165_15_5,
12/15/2017,"Rice (mixed, low quality) - Retail",KG,cereals and tubers,2000,KHR,Cambodia,Banteay Meanchey,791,Thma Puok,1525,165,15,5,1,1525_165_15_5,
4/15/2013,Wage (non-qualified labour) - Retail,Day,non-food,17800,KHR,Cambodia,Banteay Meanchey,791,Thma Puok,1525,277,15,51,8,1525_277_15_51,
5/15/2013,Wage (non-qualified labour) - Retail,Day,non-food,20000,KHR,Cambodia,Banteay Meanchey,791,Thma Puok,1525,277,15,51,8,1525_277_15_51,
6/15/2013,Wage (non-qualified labour) - Retail,Day,non-food,17500,KHR,Cambodia,Banteay Meanchey,791,Thma Puok,1525,277,15,51,8,1525_277_15_51,
7/15/2013,Wage (non-qualified labour) - Retail,Day,non-food,18500,KHR,Cambodia,Banteay Meanchey,791,Thma Puok,1525,277,15,51,8,1525_277_15_51,
8/15/2013,Wage (non-qualified labour) - Retail,Day,non-food,16000,KHR,Cambodia,Banteay Meanchey,791,Thma Puok,1525,277,15,51,8,1525_277_15_51,
9/15/2013,Wage (non-qualified labour) - Retail,Day,non-food,17000,KHR,Cambodia,Banteay Meanchey,791,Thma Puok,1525,277,15,51,8,1525_277_15_51,
10/15/2013,Wage (non-qualified labour) - Retail,Day,non-food,16500,KHR,Cambodia,Banteay Meanchey,791,Thma Puok,1525,277,15,51,8,1525_277_15_51,
11/15/2013,Wage (non-qualified labour) - Retail,Day,non-food,15500,KHR,Cambodia,Banteay Meanchey,791,Thma Puok,1525,277,15,51,8,1525_277_15_51,
12/15/2013,Wage (non-qualified labour) - Retail,Day,non-food,18250,KHR,Cambodia,Banteay Meanchey,791,Thma Puok,1525,277,15,51,8,1525_277_15_51,
1/15/2014,Wage (non-qualified labour) - Retail,Day,non-food,19000,KHR,Cambodia,Banteay Meanchey,791,Thma Puok,1525,277,15,51,8,1525_277_15_51,
2/15/2014,Wage (non-qualified labour) - Retail,Day,non-food,25000,KHR,Cambodia,Banteay Meanchey,791,Thma Puok,1525,277,15,51,8,1525_277_15_51,
3/15/2014,Wage (non-qualified labour) - Retail,Day,non-food,22500,KHR,Cambodia,Banteay Meanchey,791,Thma Puok,1525,277,15,51,8,1525_277_15_51,
4/15/2014,Wage (non-qualified labour) - Retail,Day,non-food,21000,KHR,Cambodia,Banteay Meanchey,791,Thma Puok,1525,277,15,51,8,1525_277_15_51,
5/15/2014,Wage (non-qualified labour) - Retail,Day,non-food,21500,KHR,Cambodia,Banteay Meanchey,791,Thma Puok,1525,277,15,51,8,1525_277_15_51,
6/15/2014,Wage (non-qualified labour) - Retail,Day,non-food,20750,KHR,Cambodia,Banteay Meanchey,791,Thma Puok,1525,277,15,51,8,1525_277_15_51,
7/15/2014,Wage (non-qualified labour) - Retail,Day,non-food,20750,KHR,Cambodia,Banteay Meanchey,791,Thma Puok,1525,277,15,51,8,1525_277_15_51,
8/15/2014,Wage (non-qualified labour) - Retail,Day,non-food,20750,KHR,Cambodia,Banteay Meanchey,791,Thma Puok,1525,277,15,51,8,1525_277_15_51,
9/15/2014,Wage (non-qualified labour) - Retail,Day,non-food,20750,KHR,Cambodia,Banteay Meanchey,791,Thma Puok,1525,277,15,51,8,1525_277_15_51,
10/15/2014,Wage (non-qualified labour) - Retail,Day,non-food,21250,KHR,Cambodia,Banteay Meanchey,791,Thma Puok,1525,277,15,51,8,1525_277_15_51,
11/15/2014,Wage (non-qualified labour) - Retail,Day,non-food,21250,KHR,Cambodia,Banteay Meanchey,791,Thma Puok,1525,277,15,51,8,1525_277_15_51,
1/15/2015,Wage (non-qualified labour) - Retail,Day,non-food,21250,KHR,Cambodia,Banteay Meanchey,791,Thma Puok,1525,277,15,51,8,1525_277_15_51,
2/15/2015,Wage (non-qualified labour) - Retail,Day,non-food,23000,KHR,Cambodia,Banteay Meanchey,791,Thma Puok,1525,277,15,51,8,1525_277_15_51,
3/15/2015,Wage (non-qualified labour) - Retail,Day,non-food,21333.3333,KHR,Cambodia,Banteay Meanchey,791,Thma Puok,1525,277,15,51,8,1525_277_15_51,
4/15/2015,Wage (non-qualified labour) - Retail,Day,non-food,21333.3333,KHR,Cambodia,Banteay Meanchey,791,Thma Puok,1525,277,15,51,8,1525_277_15_51,
5/15/2015,Wage (non-qualified labour) - Retail,Day,non-food,21333.3333,KHR,Cambodia,Banteay Meanchey,791,Thma Puok,1525,277,15,51,8,1525_277_15_51,
6/15/2015,Wage (non-qualified labour) - Retail,Day,non-food,21333.3333,KHR,Cambodia,Banteay Meanchey,791,Thma Puok,1525,277,15,51,8,1525_277_15_51,
7/15/2015,Wage (non-qualified labour) - Retail,Day,non-food,20208.3333,KHR,Cambodia,Banteay Meanchey,791,Thma Puok,1525,277,15,51,8,1525_277_15_51,
8/15/2015,Wage (non-qualified labour) - Retail,Day,non-food,20083.3333,KHR,Cambodia,Banteay Meanchey,791,Thma Puok,1525,277,15,51,8,1525_277_15_51,
9/15/2015,Wage (non-qualified labour) - Retail,Day,non-food,20083.3333,KHR,Cambodia,Banteay Meanchey,791,Thma Puok,1525,277,15,51,8,1525_277_15_51,
10/15/2015,Wage (non-qualified labour) - Retail,Day,non-food,20083.3333,KHR,Cambodia,Banteay Meanchey,791,Thma Puok,1525,277,15,51,8,1525_277_15_51,
11/15/2015,Wage (non-qualified labour) - Retail,Day,non-food,19000,KHR,Cambodia,Banteay Meanchey,791,Thma Puok,1525,277,15,51,8,1525_277_15_51,
12/15/2015,Wage (non-qualified labour) - Retail,Day,non-food,19000,KHR,Cambodia,Banteay Meanchey,791,Thma Puok,1525,277,15,51,8,1525_277_15_51,
1/15/2016,Wage (non-qualified labour) - Retail,Day,non-food,19666.6667,KHR,Cambodia,Banteay Meanchey,791,Thma Puok,1525,277,15,51,8,1525_277_15_51,
2/15/2016,Wage (non-qualified labour) - Retail,Day,non-food,21500,KHR,Cambodia,Banteay Meanchey,791,Thma Puok,1525,277,15,51,8,1525_277_15_51,
3/15/2016,Wage (non-qualified labour) - Retail,Day,non-food,20500,KHR,Cambodia,Banteay Meanchey,791,Thma Puok,1525,277,15,51,8,1525_277_15_51,
4/15/2016,Wage (non-qualified labour) - Retail,Day,non-food,21000,KHR,Cambodia,Banteay Meanchey,791,Thma Puok,1525,277,15,51,8,1525_277_15_51,
5/15/2016,Wage (non-qualified labour) - Retail,Day,non-food,20500,KHR,Cambodia,Banteay Meanchey,791,Thma Puok,1525,277,15,51,8,1525_277_15_51,
6/15/2016,Wage (non-qualified labour) - Retail,Day,non-food,20500,KHR,Cambodia,Banteay Meanchey,791,Thma Puok,1525,277,15,51,8,1525_277_15_51,
7/15/2016,Wage (non-qualified labour) - Retail,Day,non-food,21000,KHR,Cambodia,Banteay Meanchey,791,Thma Puok,1525,277,15,51,8,1525_277_15_51,
8/15/2016,Wage (non-qualified labour) - Retail,Day,non-food,21000,KHR,Cambodia,Banteay Meanchey,791,Thma Puok,1525,277,15,51,8,1525_277_15_51,
9/15/2016,Wage (non-qualified labour) - Retail,Day,non-food,25000,KHR,Cambodia,Banteay Meanchey,791,Thma Puok,1525,277,15,51,8,1525_277_15_51,
11/15/2016,Wage (non-qualified labour) - Retail,Day,non-food,20000,KHR,Cambodia,Banteay Meanchey,791,Thma Puok,1525,277,15,51,8,1525_277_15_51,
12/15/2016,Wage (non-qualified labour) - Retail,Day,non-food,20000,KHR,Cambodia,Banteay Meanchey,791,Thma Puok,1525,277,15,51,8,1525_277_15_51,
1/15/2017,Wage (non-qualified labour) - Retail,Day,non-food,20000,KHR,Cambodia,Banteay Meanchey,791,Thma Puok,1525,277,15,51,8,1525_277_15_51,
3/15/2017,Wage (non-qualified labour) - Retail,Day,non-food,20000,KHR,Cambodia,Banteay Meanchey,791,Thma Puok,1525,277,15,51,8,1525_277_15_51,
11/15/2017,Wage (non-qualified labour) - Retail,Day,non-food,25000,KHR,Cambodia,Banteay Meanchey,791,Thma Puok,1525,277,15,51,8,1525_277_15_51,
12/15/2014,"Meat (pork, with fat) - Retail",KG,"meat, fish and eggs",17000,KHR,Cambodia,Banteay Meanchey,791,Thma Puok,1525,329,15,5,2,1525_329_15_5,
1/15/2015,"Meat (pork, with fat) - Retail",KG,"meat, fish and eggs",16000,KHR,Cambodia,Banteay Meanchey,791,Thma Puok,1525,329,15,5,2,1525_329_15_5,
2/15/2015,"Meat (pork, with fat) - Retail",KG,"meat, fish and eggs",16000,KHR,Cambodia,Banteay Meanchey,791,Thma Puok,1525,329,15,5,2,1525_329_15_5,
3/15/2015,"Meat (pork, with fat) - Retail",KG,"meat, fish and eggs",15000,KHR,Cambodia,Banteay Meanchey,791,Thma Puok,1525,329,15,5,2,1525_329_15_5,
4/15/2015,"Meat (pork, with fat) - Retail",KG,"meat, fish and eggs",15000,KHR,Cambodia,Banteay Meanchey,791,Thma Puok,1525,329,15,5,2,1525_329_15_5,
5/15/2015,"Meat (pork, with fat) - Retail",KG,"meat, fish and eggs",15000,KHR,Cambodia,Banteay Meanchey,791,Thma Puok,1525,329,15,5,2,1525_329_15_5,
6/15/2015,"Meat (pork, with fat) - Retail",KG,"meat, fish and eggs",15000,KHR,Cambodia,Banteay Meanchey,791,Thma Puok,1525,329,15,5,2,1525_329_15_5,
7/15/2015,"Meat (pork, with fat) - Retail",KG,"meat, fish and eggs",15000,KHR,Cambodia,Banteay Meanchey,791,Thma Puok,1525,329,15,5,2,1525_329_15_5,
8/15/2015,"Meat (pork, with fat) - Retail",KG,"meat, fish and eggs",15000,KHR,Cambodia,Banteay Meanchey,791,Thma Puok,1525,329,15,5,2,1525_329_15_5,
9/15/2015,"Meat (pork, with fat) - Retail",KG,"meat, fish and eggs",15000,KHR,Cambodia,Banteay Meanchey,791,Thma Puok,1525,329,15,5,2,1525_329_15_5,
10/15/2015,"Meat (pork, with fat) - Retail",KG,"meat, fish and eggs",15000,KHR,Cambodia,Banteay Meanchey,791,Thma Puok,1525,329,15,5,2,1525_329_15_5,
11/15/2015,"Meat (pork, with fat) - Retail",KG,"meat, fish and eggs",15000,KHR,Cambodia,Banteay Meanchey,791,Thma Puok,1525,329,15,5,2,1525_329_15_5,
12/15/2015,"Meat (pork, with fat) - Retail",KG,"meat, fish and eggs",15000,KHR,Cambodia,Banteay Meanchey,791,Thma Puok,1525,329,15,5,2,1525_329_15_5,
1/15/2016,"Meat (pork, with fat) - Retail",KG,"meat, fish and eggs",14000,KHR,Cambodia,Banteay Meanchey,791,Thma Puok,1525,329,15,5,2,1525_329_15_5,
2/15/2016,"Meat (pork, with fat) - Retail",KG,"meat, fish and eggs",12666.6667,KHR,Cambodia,Banteay Meanchey,791,Thma Puok,1525,329,15,5,2,1525_329_15_5,
4/15/2016,"Meat (pork, with fat) - Retail",KG,"meat, fish and eggs",15000,KHR,Cambodia,Banteay Meanchey,791,Thma Puok,1525,329,15,5,2,1525_329_15_5,
5/15/2016,"Meat (pork, with fat) - Retail",KG,"meat, fish and eggs",15000,KHR,Cambodia,Banteay Meanchey,791,Thma Puok,1525,329,15,5,2,1525_329_15_5,
6/15/2016,"Meat (pork, with fat) - Retail",KG,"meat, fish and eggs",15000,KHR,Cambodia,Banteay Meanchey,791,Thma Puok,1525,329,15,5,2,1525_329_15_5,
7/15/2016,"Meat (pork, with fat) - Retail",KG,"meat, fish and eggs",15000,KHR,Cambodia,Banteay Meanchey,791,Thma Puok,1525,329,15,5,2,1525_329_15_5,
8/15/2016,"Meat (pork, with fat) - Retail",KG,"meat, fish and eggs",15000,KHR,Cambodia,Banteay Meanchey,791,Thma Puok,1525,329,15,5,2,1525_329_15_5,
9/15/2016,"Meat (pork, with fat) - Retail",KG,"meat, fish and eggs",14000,KHR,Cambodia,Banteay Meanchey,791,Thma Puok,1525,329,15,5,2,1525_329_15_5,
11/15/2016,"Meat (pork, with fat) - Retail",KG,"meat, fish and eggs",14000,KHR,Cambodia,Banteay Meanchey,791,Thma Puok,1525,329,15,5,2,1525_329_15_5,
12/15/2016,"Meat (pork, with fat) - Retail",KG,"meat, fish and eggs",14000,KHR,Cambodia,Banteay Meanchey,791,Thma Puok,1525,329,15,5,2,1525_329_15_5,
1/15/2017,"Meat (pork, with fat) - Retail",KG,"meat, fish and eggs",14000,KHR,Cambodia,Banteay Meanchey,791,Thma Puok,1525,329,15,5,2,1525_329_15_5,
5/15/2017,"Meat (pork, with fat) - Retail",KG,"meat, fish and eggs",14000,KHR,Cambodia,Banteay Meanchey,791,Thma Puok,1525,329,15,5,2,1525_329_15_5,
11/15/2017,"Meat (pork, with fat) - Retail",KG,"meat, fish and eggs",12000,KHR,Cambodia,Banteay Meanchey,791,Thma Puok,1525,329,15,5,2,1525_329_15_5,
12/15/2017,"Meat (pork, with fat) - Retail",KG,"meat, fish and eggs",12000,KHR,Cambodia,Banteay Meanchey,791,Thma Puok,1525,329,15,5,2,1525_329_15_5,
3/15/2020,Oil (vegetable) - Wholesale,5 L,oil and fats,20000,KHR,Cambodia,Banteay Meanchey,791,Phnom Srok,3110,96,14,67,6,3110_96_14_67,
4/15/2020,Oil (vegetable) - Wholesale,5 L,oil and fats,21000,KHR,Cambodia,Banteay Meanchey,791,Phnom Srok,3110,96,14,67,6,3110_96_14_67,
5/15/2020,Oil (vegetable) - Wholesale,5 L,oil and fats,20000,KHR,Cambodia,Banteay Meanchey,791,Phnom Srok,3110,96,14,67,6,3110_96_14_67,
6/15/2020,Oil (vegetable) - Wholesale,5 L,oil and fats,20000,KHR,Cambodia,Banteay Meanchey,791,Phnom Srok,3110,96,14,67,6,3110_96_14_67,
7/15/2020,Oil (vegetable) - Wholesale,5 L,oil and fats,18000,KHR,Cambodia,Banteay Meanchey,791,Phnom Srok,3110,96,14,67,6,3110_96_14_67,
3/15/2020,Oil (vegetable) - Retail,5 L,oil and fats,22000,KHR,Cambodia,Banteay Meanchey,791,Phnom Srok,3110,96,15,67,6,3110_96_15_67,
4/15/2020,Oil (vegetable) - Retail,5 L,oil and fats,21000,KHR,Cambodia,Banteay Meanchey,791,Phnom Srok,3110,96,15,67,6,3110_96_15_67,
5/15/2020,Oil (vegetable) - Retail,5 L,oil and fats,23000,KHR,Cambodia,Banteay Meanchey,791,Phnom Srok,3110,96,15,67,6,3110_96_15_67,
6/15/2020,Oil (vegetable) - Retail,5 L,oil and fats,20500,KHR,Cambodia,Banteay Meanchey,791,Phnom Srok,3110,96,15,67,6,3110_96_15_67,
7/15/2020,Oil (vegetable) - Retail,5 L,oil and fats,20500,KHR,Cambodia,Banteay Meanchey,791,Phnom Srok,3110,96,15,67,6,3110_96_15_67,
3/15/2020,"Rice (mixed, low quality) - Wholesale",KG,cereals and tubers,2000,KHR,Cambodia,Banteay Meanchey,791,Phnom Srok,3110,165,14,5,1,3110_165_14_5,
5/15/2020,"Rice (mixed, low quality) - Wholesale",KG,cereals and tubers,1800,KHR,Cambodia,Banteay Meanchey,791,Phnom Srok,3110,165,14,5,1,3110_165_14_5,
6/15/2020,"Rice (mixed, low quality) - Wholesale",KG,cereals and tubers,1883.3333,KHR,Cambodia,Banteay Meanchey,791,Phnom Srok,3110,165,14,5,1,3110_165_14_5,
7/15/2020,"Rice (mixed, low quality) - Wholesale",KG,cereals and tubers,1950,KHR,Cambodia,Banteay Meanchey,791,Phnom Srok,3110,165,14,5,1,3110_165_14_5,
3/15/2020,"Rice (mixed, low quality) - Retail",KG,cereals and tubers,2233,KHR,Cambodia,Banteay Meanchey,791,Phnom Srok,3110,165,15,5,1,3110_165_15_5,
5/15/2020,"Rice (mixed, low quality) - Retail",KG,cereals and tubers,2000,KHR,Cambodia,Banteay Meanchey,791,Phnom Srok,3110,165,15,5,1,3110_165_15_5,
6/15/2020,"Rice (mixed, low quality) - Retail",KG,cereals and tubers,2000,KHR,Cambodia,Banteay Meanchey,791,Phnom Srok,3110,165,15,5,1,3110_165_15_5,
7/15/2020,"Rice (mixed, low quality) - Retail",KG,cereals and tubers,2100,KHR,Cambodia,Banteay Meanchey,791,Phnom Srok,3110,165,15,5,1,3110_165_15_5,
3/15/2020,Fish (snake head) - Wholesale,KG,"meat, fish and eggs",12167,KHR,Cambodia,Banteay Meanchey,791,Phnom Srok,3110,309,14,5,2,3110_309_14_5,
6/15/2020,Fish (snake head) - Wholesale,KG,"meat, fish and eggs",8500,KHR,Cambodia,Banteay Meanchey,791,Phnom Srok,3110,309,14,5,2,3110_309_14_5,
7/15/2020,Fish (snake head) - Wholesale,KG,"meat, fish and eggs",8500,KHR,Cambodia,Banteay Meanchey,791,Phnom Srok,3110,309,14,5,2,3110_309_14_5,
3/15/2020,Fish (snake head) - Retail,KG,"meat, fish and eggs",13500,KHR,Cambodia,Banteay Meanchey,791,Phnom Srok,3110,309,15,5,2,3110_309_15_5,
6/15/2020,Fish (snake head) - Retail,KG,"meat, fish and eggs",9000,KHR,Cambodia,Banteay Meanchey,791,Phnom Srok,3110,309,15,5,2,3110_309_15_5,
7/15/2020,Fish (snake head) - Retail,KG,"meat, fish and eggs",9000,KHR,Cambodia,Banteay Meanchey,791,Phnom Srok,3110,309,15,5,2,3110_309_15_5,
3/15/2020,Fish (catfish) - Wholesale,KG,"meat, fish and eggs",10000,KHR,Cambodia,Banteay Meanchey,791,Phnom Srok,3110,310,14,5,2,3110_310_14_5,
6/15/2020,Fish (catfish) - Wholesale,KG,"meat, fish and eggs",6500,KHR,Cambodia,Banteay Meanchey,791,Phnom Srok,3110,310,14,5,2,3110_310_14_5,
7/15/2020,Fish (catfish) - Wholesale,KG,"meat, fish and eggs",6500,KHR,Cambodia,Banteay Meanchey,791,Phnom Srok,3110,310,14,5,2,3110_310_14_5,
3/15/2020,Fish (catfish) - Retail,KG,"meat, fish and eggs",10833,KHR,Cambodia,Banteay Meanchey,791,Phnom Srok,3110,310,15,5,2,3110_310_15_5,
6/15/2020,Fish (catfish) - Retail,KG,"meat, fish and eggs",7000,KHR,Cambodia,Banteay Meanchey,791,Phnom Srok,3110,310,15,5,2,3110_310_15_5,
7/15/2020,Fish (catfish) - Retail,KG,"meat, fish and eggs",7000,KHR,Cambodia,Banteay Meanchey,791,Phnom Srok,3110,310,15,5,2,3110_310_15_5,
3/15/2020,"Meat (pork, with fat) - Wholesale",KG,"meat, fish and eggs",18500,KHR,Cambodia,Banteay Meanchey,791,Phnom Srok,3110,329,14,5,2,3110_329_14_5,
4/15/2020,"Meat (pork, with fat) - Wholesale",KG,"meat, fish and eggs",17000,KHR,Cambodia,Banteay Meanchey,791,Phnom Srok,3110,329,14,5,2,3110_329_14_5,
5/15/2020,"Meat (pork, with fat) - Wholesale",KG,"meat, fish and eggs",17000,KHR,Cambodia,Banteay Meanchey,791,Phnom Srok,3110,329,14,5,2,3110_329_14_5,
6/15/2020,"Meat (pork, with fat) - Wholesale",KG,"meat, fish and eggs",19000,KHR,Cambodia,Banteay Meanchey,791,Phnom Srok,3110,329,14,5,2,3110_329_14_5,
7/15/2020,"Meat (pork, with fat) - Wholesale",KG,"meat, fish and eggs",23000,KHR,Cambodia,Banteay Meanchey,791,Phnom Srok,3110,329,14,5,2,3110_329_14_5,
3/15/2020,"Meat (pork, with fat) - Retail",KG,"meat, fish and eggs",20000,KHR,Cambodia,Banteay Meanchey,791,Phnom Srok,3110,329,15,5,2,3110_329_15_5,
4/15/2020,"Meat (pork, with fat) - Retail",KG,"meat, fish and eggs",20000,KHR,Cambodia,Banteay Meanchey,791,Phnom Srok,3110,329,15,5,2,3110_329_15_5,
5/15/2020,"Meat (pork, with fat) - Retail",KG,"meat, fish and eggs",20000,KHR,Cambodia,Banteay Meanchey,791,Phnom Srok,3110,329,15,5,2,3110_329_15_5,
6/15/2020,"Meat (pork, with fat) - Retail",KG,"meat, fish and eggs",22500,KHR,Cambodia,Banteay Meanchey,791,Phnom Srok,3110,329,15,5,2,3110_329_15_5,
7/15/2020,"Meat (pork, with fat) - Retail",KG,"meat, fish and eggs",25000,KHR,Cambodia,Banteay Meanchey,791,Phnom Srok,3110,329,15,5,2,3110_329_15_5,
3/15/2020,Salt (iodised) - Wholesale,KG,miscellaneous food,2200,KHR,Cambodia,Banteay Meanchey,791,Phnom Srok,3110,334,14,5,7,3110_334_14_5,
4/15/2020,Salt (iodised) - Wholesale,KG,miscellaneous food,900,KHR,Cambodia,Banteay Meanchey,791,Phnom Srok,3110,334,14,5,7,3110_334_14_5,
5/15/2020,Salt (iodised) - Wholesale,KG,miscellaneous food,1000,KHR,Cambodia,Banteay Meanchey,791,Phnom Srok,3110,334,14,5,7,3110_334_14_5,
6/15/2020,Salt (iodised) - Wholesale,KG,miscellaneous food,800,KHR,Cambodia,Banteay Meanchey,791,Phnom Srok,3110,334,14,5,7,3110_334_14_5,
7/15/2020,Salt (iodised) - Wholesale,KG,miscellaneous food,800,KHR,Cambodia,Banteay Meanchey,791,Phnom Srok,3110,334,14,5,7,3110_334_14_5,
3/15/2020,Salt (iodised) - Retail,KG,miscellaneous food,2500,KHR,Cambodia,Banteay Meanchey,791,Phnom Srok,3110,334,15,5,7,3110_334_15_5,
4/15/2020,Salt (iodised) - Retail,KG,miscellaneous food,1000,KHR,Cambodia,Banteay Meanchey,791,Phnom Srok,3110,334,15,5,7,3110_334_15_5,
5/15/2020,Salt (iodised) - Retail,KG,miscellaneous food,1000,KHR,Cambodia,Banteay Meanchey,791,Phnom Srok,3110,334,15,5,7,3110_334_15_5,
6/15/2020,Salt (iodised) - Retail,KG,miscellaneous food,1000,KHR,Cambodia,Banteay Meanchey,791,Phnom Srok,3110,334,15,5,7,3110_334_15_5,
7/15/2020,Salt (iodised) - Retail,KG,miscellaneous food,1000,KHR,Cambodia,Banteay Meanchey,791,Phnom Srok,3110,334,15,5,7,3110_334_15_5,
3/15/2020,Eggplants - Wholesale,KG,vegetables and fruits,1600,KHR,Cambodia,Banteay Meanchey,791,Phnom Srok,3110,434,14,5,4,3110_434_14_5,
4/15/2020,Eggplants - Wholesale,KG,vegetables and fruits,2500,KHR,Cambodia,Banteay Meanchey,791,Phnom Srok,3110,434,14,5,4,3110_434_14_5,
5/15/2020,Eggplants - Wholesale,KG,vegetables and fruits,1500,KHR,Cambodia,Banteay Meanchey,791,Phnom Srok,3110,434,14,5,4,3110_434_14_5,
6/15/2020,Eggplants - Wholesale,KG,vegetables and fruits,1766.6667,KHR,Cambodia,Banteay Meanchey,791,Phnom Srok,3110,434,14,5,4,3110_434_14_5,
7/15/2020,Eggplants - Wholesale,KG,vegetables and fruits,1800,KHR,Cambodia,Banteay Meanchey,791,Phnom Srok,3110,434,14,5,4,3110_434_14_5,
3/15/2020,Eggplants - Retail,KG,vegetables and fruits,2000,KHR,Cambodia,Banteay Meanchey,791,Phnom Srok,3110,434,15,5,4,3110_434_15_5,
4/15/2020,Eggplants - Retail,KG,vegetables and fruits,3000,KHR,Cambodia,Banteay Meanchey,791,Phnom Srok,3110,434,15,5,4,3110_434_15_5,
5/15/2020,Eggplants - Retail,KG,vegetables and fruits,2000,KHR,Cambodia,Banteay Meanchey,791,Phnom Srok,3110,434,15,5,4,3110_434_15_5,
6/15/2020,Eggplants - Retail,KG,vegetables and fruits,2166.6667,KHR,Cambodia,Banteay Meanchey,791,Phnom Srok,3110,434,15,5,4,3110_434_15_5,
7/15/2020,Eggplants - Retail,KG,vegetables and fruits,2000,KHR,Cambodia,Banteay Meanchey,791,Phnom Srok,3110,434,15,5,4,3110_434_15_5,
3/15/2020,Snake gourd - Wholesale,KG,vegetables and fruits,1433,KHR,Cambodia,Banteay Meanchey,791,Phnom Srok,3110,675,14,5,4,3110_675_14_5,
7/15/2020,Snake gourd - Wholesale,KG,vegetables and fruits,1800,KHR,Cambodia,Banteay Meanchey,791,Phnom Srok,3110,675,14,5,4,3110_675_14_5,
3/15/2020,Snake gourd - Retail,KG,vegetables and fruits,1833,KHR,Cambodia,Banteay Meanchey,791,Phnom Srok,3110,675,15,5,4,3110_675_15_5,
7/15/2020,Snake gourd - Retail,KG,vegetables and fruits,2000,KHR,Cambodia,Banteay Meanchey,791,Phnom Srok,3110,675,15,5,4,3110_675_15_5,
3/15/2020,"Cabbage (chinese, flowering) - Wholesale",KG,vegetables and fruits,3433,KHR,Cambodia,Banteay Meanchey,791,Phnom Srok,3110,784,14,5,4,3110_784_14_5,
4/15/2020,"Cabbage (chinese, flowering) - Wholesale",KG,vegetables and fruits,3500,KHR,Cambodia,Banteay Meanchey,791,Phnom Srok,3110,784,14,5,4,3110_784_14_5,
5/15/2020,"Cabbage (chinese, flowering) - Wholesale",KG,vegetables and fruits,1350,KHR,Cambodia,Banteay Meanchey,791,Phnom Srok,3110,784,14,5,4,3110_784_14_5,
3/15/2020,"Cabbage (chinese, flowering) - Retail",KG,vegetables and fruits,3767,KHR,Cambodia,Banteay Meanchey,791,Phnom Srok,3110,784,15,5,4,3110_784_15_5,
4/15/2020,"Cabbage (chinese, flowering) - Retail",KG,vegetables and fruits,4000,KHR,Cambodia,Banteay Meanchey,791,Phnom Srok,3110,784,15,5,4,3110_784_15_5,
5/15/2020,"Cabbage (chinese, flowering) - Retail",KG,vegetables and fruits,1750,KHR,Cambodia,Banteay Meanchey,791,Phnom Srok,3110,784,15,5,4,3110_784_15_5,
3/15/2020,"Fish (snake head, dry) - Wholesale",KG,"meat, fish and eggs",25333,KHR,Cambodia,Banteay Meanchey,791,Phnom Srok,3110,785,14,5,2,3110_785_14_5,
6/15/2020,"Fish (snake head, dry) - Wholesale",KG,"meat, fish and eggs",23500,KHR,Cambodia,Banteay Meanchey,791,Phnom Srok,3110,785,14,5,2,3110_785_14_5,
7/15/2020,"Fish (snake head, dry) - Wholesale",KG,"meat, fish and eggs",23000,KHR,Cambodia,Banteay Meanchey,791,Phnom Srok,3110,785,14,5,2,3110_785_14_5,
3/15/2020,"Fish (snake head, dry) - Retail",KG,"meat, fish and eggs",29333,KHR,Cambodia,Banteay Meanchey,791,Phnom Srok,3110,785,15,5,2,3110_785_15_5,
6/15/2020,"Fish (snake head, dry) - Retail",KG,"meat, fish and eggs",27500,KHR,Cambodia,Banteay Meanchey,791,Phnom Srok,3110,785,15,5,2,3110_785_15_5,
7/15/2020,"Fish (snake head, dry) - Retail",KG,"meat, fish and eggs",25000,KHR,Cambodia,Banteay Meanchey,791,Phnom Srok,3110,785,15,5,2,3110_785_15_5,
3/15/2020,Eggs (duck) - Wholesale,10 pcs,"meat, fish and eggs",4600,KHR,Cambodia,Banteay Meanchey,791,Phnom Srok,3110,786,14,81,2,3110_786_14_81,
4/15/2020,Eggs (duck) - Wholesale,10 pcs,"meat, fish and eggs",4500,KHR,Cambodia,Banteay Meanchey,791,Phnom Srok,3110,786,14,81,2,3110_786_14_81,
5/15/2020,Eggs (duck) - Wholesale,10 pcs,"meat, fish and eggs",4500,KHR,Cambodia,Banteay Meanchey,791,Phnom Srok,3110,786,14,81,2,3110_786_14_81,
6/15/2020,Eggs (duck) - Wholesale,10 pcs,"meat, fish and eggs",4000,KHR,Cambodia,Banteay Meanchey,791,Phnom Srok,3110,786,14,81,2,3110_786_14_81,
3/15/2020,Eggs (duck) - Retail,10 pcs,"meat, fish and eggs",5000,KHR,Cambodia,Banteay Meanchey,791,Phnom Srok,3110,786,15,81,2,3110_786_15_81,
4/15/2020,Eggs (duck) - Retail,10 pcs,"meat, fish and eggs",4500,KHR,Cambodia,Banteay Meanchey,791,Phnom Srok,3110,786,15,81,2,3110_786_15_81,
5/15/2020,Eggs (duck) - Retail,10 pcs,"meat, fish and eggs",5000,KHR,Cambodia,Banteay Meanchey,791,Phnom Srok,3110,786,15,81,2,3110_786_15_81,
6/15/2020,Eggs (duck) - Retail,10 pcs,"meat, fish and eggs",4500,KHR,Cambodia,Banteay Meanchey,791,Phnom Srok,3110,786,15,81,2,3110_786_15_81,
3/15/2020,"Beans (yardlong, green) - Wholesale",KG,vegetables and fruits,4867,KHR,Cambodia,Banteay Meanchey,791,Phnom Srok,3110,787,14,5,4,3110_787_14_5,
4/15/2020,"Beans (yardlong, green) - Wholesale",KG,vegetables and fruits,3500,KHR,Cambodia,Banteay Meanchey,791,Phnom Srok,3110,787,14,5,4,3110_787_14_5,
6/15/2020,"Beans (yardlong, green) - Wholesale",KG,vegetables and fruits,2333.3333,KHR,Cambodia,Banteay Meanchey,791,Phnom Srok,3110,787,14,5,4,3110_787_14_5,
7/15/2020,"Beans (yardlong, green) - Wholesale",KG,vegetables and fruits,1800,KHR,Cambodia,Banteay Meanchey,791,Phnom Srok,3110,787,14,5,4,3110_787_14_5,
3/15/2020,"Beans (yardlong, green) - Retail",KG,vegetables and fruits,5267,KHR,Cambodia,Banteay Meanchey,791,Phnom Srok,3110,787,15,5,4,3110_787_15_5,
4/15/2020,"Beans (yardlong, green) - Retail",KG,vegetables and fruits,4000,KHR,Cambodia,Banteay Meanchey,791,Phnom Srok,3110,787,15,5,4,3110_787_15_5,
6/15/2020,"Beans (yardlong, green) - Retail",KG,vegetables and fruits,2833.3333,KHR,Cambodia,Banteay Meanchey,791,Phnom Srok,3110,787,15,5,4,3110_787_15_5,
7/15/2020,"Beans (yardlong, green) - Retail",KG,vegetables and fruits,2000,KHR,Cambodia,Banteay Meanchey,791,Phnom Srok,3110,787,15,5,4,3110_787_15_5,
3/15/2020,Water spinach - Wholesale,KG,vegetables and fruits,1633,KHR,Cambodia,Banteay Meanchey,791,Phnom Srok,3110,788,14,5,4,3110_788_14_5,
5/15/2020,Water spinach - Wholesale,KG,vegetables and fruits,2150,KHR,Cambodia,Banteay Meanchey,791,Phnom Srok,3110,788,14,5,4,3110_788_14_5,
6/15/2020,Water spinach - Wholesale,KG,vegetables and fruits,1200,KHR,Cambodia,Banteay Meanchey,791,Phnom Srok,3110,788,14,5,4,3110_788_14_5,
7/15/2020,Water spinach - Wholesale,KG,vegetables and fruits,800,KHR,Cambodia,Banteay Meanchey,791,Phnom Srok,3110,788,14,5,4,3110_788_14_5,
3/15/2020,Water spinach - Retail,KG,vegetables and fruits,2000,KHR,Cambodia,Banteay Meanchey,791,Phnom Srok,3110,788,15,5,4,3110_788_15_5,
5/15/2020,Water spinach - Retail,KG,vegetables and fruits,2750,KHR,Cambodia,Banteay Meanchey,791,Phnom Srok,3110,788,15,5,4,3110_788_15_5,
6/15/2020,Water spinach - Retail,KG,vegetables and fruits,1666.6667,KHR,Cambodia,Banteay Meanchey,791,Phnom Srok,3110,788,15,5,4,3110_788_15_5,
7/15/2020,Water spinach - Retail,KG,vegetables and fruits,1000,KHR,Cambodia,Banteay Meanchey,791,Phnom Srok,3110,788,15,5,4,3110_788_15_5,
3/15/2020,"Eggs (duck, fermented) - Wholesale",10 pcs,"meat, fish and eggs",6000,KHR,Cambodia,Banteay Meanchey,791,Phnom Srok,3110,789,14,81,2,3110_789_14_81,
4/15/2020,"Eggs (duck, fermented) - Wholesale",10 pcs,"meat, fish and eggs",5500,KHR,Cambodia,Banteay Meanchey,791,Phnom Srok,3110,789,14,81,2,3110_789_14_81,
5/15/2020,"Eggs (duck, fermented) - Wholesale",10 pcs,"meat, fish and eggs",5500,KHR,Cambodia,Banteay Meanchey,791,Phnom Srok,3110,789,14,81,2,3110_789_14_81,
6/15/2020,"Eggs (duck, fermented) - Wholesale",10 pcs,"meat, fish and eggs",5500,KHR,Cambodia,Banteay Meanchey,791,Phnom Srok,3110,789,14,81,2,3110_789_14_81,
3/15/2020,"Eggs (duck, fermented) - Retail",10 pcs,"meat, fish and eggs",7000,KHR,Cambodia,Banteay Meanchey,791,Phnom Srok,3110,789,15,81,2,3110_789_15_81,
4/15/2020,"Eggs (duck, fermented) - Retail",10 pcs,"meat, fish and eggs",6000,KHR,Cambodia,Banteay Meanchey,791,Phnom Srok,3110,789,15,81,2,3110_789_15_81,
5/15/2020,"Eggs (duck, fermented) - Retail",10 pcs,"meat, fish and eggs",6000,KHR,Cambodia,Banteay Meanchey,791,Phnom Srok,3110,789,15,81,2,3110_789_15_81,
6/15/2020,"Eggs (duck, fermented) - Retail",10 pcs,"meat, fish and eggs",6000,KHR,Cambodia,Banteay Meanchey,791,Phnom Srok,3110,789,15,81,2,3110_789_15_81,
3/15/2020,Fish (striped catfish) - Wholesale,KG,"meat, fish and eggs",7533,KHR,Cambodia,Banteay Meanchey,791,Phnom Srok,3110,790,14,5,2,3110_790_14_5,
6/15/2020,Fish (striped catfish) - Wholesale,KG,"meat, fish and eggs",5000,KHR,Cambodia,Banteay Meanchey,791,Phnom Srok,3110,790,14,5,2,3110_790_14_5,
7/15/2020,Fish (striped catfish) - Wholesale,KG,"meat, fish and eggs",5500,KHR,Cambodia,Banteay Meanchey,791,Phnom Srok,3110,790,14,5,2,3110_790_14_5,
3/15/2020,Fish (striped catfish) - Retail,KG,"meat, fish and eggs",8000,KHR,Cambodia,Banteay Meanchey,791,Phnom Srok,3110,790,15,5,2,3110_790_15_5,
6/15/2020,Fish (striped catfish) - Retail,KG,"meat, fish and eggs",5500,KHR,Cambodia,Banteay Meanchey,791,Phnom Srok,3110,790,15,5,2,3110_790_15_5,
7/15/2020,Fish (striped catfish) - Retail,KG,"meat, fish and eggs",6000,KHR,Cambodia,Banteay Meanchey,791,Phnom Srok,3110,790,15,5,2,3110_790_15_5,
3/15/2020,Wax gourd - Wholesale,KG,vegetables and fruits,1800,KHR,Cambodia,Banteay Meanchey,791,Phnom Srok,3110,791,14,5,4,3110_791_14_5,
4/15/2020,Wax gourd - Wholesale,KG,vegetables and fruits,2000,KHR,Cambodia,Banteay Meanchey,791,Phnom Srok,3110,791,14,5,4,3110_791_14_5,
5/15/2020,Wax gourd - Wholesale,KG,vegetables and fruits,1500,KHR,Cambodia,Banteay Meanchey,791,Phnom Srok,3110,791,14,5,4,3110_791_14_5,
6/15/2020,Wax gourd - Wholesale,KG,vegetables and fruits,2066.6667,KHR,Cambodia,Banteay Meanchey,791,Phnom Srok,3110,791,14,5,4,3110_791_14_5,
7/15/2020,Wax gourd - Wholesale,KG,vegetables and fruits,1800,KHR,Cambodia,Banteay Meanchey,791,Phnom Srok,3110,791,14,5,4,3110_791_14_5,
3/15/2020,Wax gourd - Retail,KG,vegetables and fruits,2000,KHR,Cambodia,Banteay Meanchey,791,Phnom Srok,3110,791,15,5,4,3110_791_15_5,
4/15/2020,Wax gourd - Retail,KG,vegetables and fruits,2500,KHR,Cambodia,Banteay Meanchey,791,Phnom Srok,3110,791,15,5,4,3110_791_15_5,
5/15/2020,Wax gourd - Retail,KG,vegetables and fruits,2000,KHR,Cambodia,Banteay Meanchey,791,Phnom Srok,3110,791,15,5,4,3110_791_15_5,
6/15/2020,Wax gourd - Retail,KG,vegetables and fruits,2666.6667,KHR,Cambodia,Banteay Meanchey,791,Phnom Srok,3110,791,15,5,4,3110_791_15_5,
7/15/2020,Wax gourd - Retail,KG,vegetables and fruits,2000,KHR,Cambodia,Banteay Meanchey,791,Phnom Srok,3110,791,15,5,4,3110_791_15_5,
4/15/2019,Oil (vegetable) - Retail,L,oil and fats,6000,KHR,Cambodia,Battambang,792,Battambang,639,96,15,15,6,639_96_15_15,
5/15/2019,Oil (vegetable) - Retail,L,oil and fats,6000,KHR,Cambodia,Battambang,792,Battambang,639,96,15,15,6,639_96_15_15,
6/15/2019,Oil (vegetable) - Retail,L,oil and fats,5000,KHR,Cambodia,Battambang,792,Battambang,639,96,15,15,6,639_96_15_15,
7/15/2019,Oil (vegetable) - Retail,L,oil and fats,5333.33,KHR,Cambodia,Battambang,792,Battambang,639,96,15,15,6,639_96_15_15,
8/15/2019,Oil (vegetable) - Retail,L,oil and fats,5500,KHR,Cambodia,Battambang,792,Battambang,639,96,15,15,6,639_96_15_15,
9/15/2019,Oil (vegetable) - Retail,L,oil and fats,5500,KHR,Cambodia,Battambang,792,Battambang,639,96,15,15,6,639_96_15_15,
10/15/2019,Oil (vegetable) - Retail,L,oil and fats,6000,KHR,Cambodia,Battambang,792,Battambang,639,96,15,15,6,639_96_15_15,
11/15/2019,Oil (vegetable) - Retail,L,oil and fats,6000,KHR,Cambodia,Battambang,792,Battambang,639,96,15,15,6,639_96_15_15,
12/15/2019,Oil (vegetable) - Retail,L,oil and fats,5500,KHR,Cambodia,Battambang,792,Battambang,639,96,15,15,6,639_96_15_15,
1/15/2020,Oil (vegetable) - Retail,L,oil and fats,5500,KHR,Cambodia,Battambang,792,Battambang,639,96,15,15,6,639_96_15_15,
2/15/2020,Oil (vegetable) - Retail,L,oil and fats,5333.33,KHR,Cambodia,Battambang,792,Battambang,639,96,15,15,6,639_96_15_15,
1/15/2003,"Rice (mixed, low quality) - Wholesale",KG,cereals and tubers,500,KHR,Cambodia,Battambang,792,Battambang,639,165,14,5,1,639_165_14_5,
2/15/2003,"Rice (mixed, low quality) - Wholesale",KG,cereals and tubers,600,KHR,Cambodia,Battambang,792,Battambang,639,165,14,5,1,639_165_14_5,
3/15/2003,"Rice (mixed, low quality) - Wholesale",KG,cereals and tubers,520,KHR,Cambodia,Battambang,792,Battambang,639,165,14,5,1,639_165_14_5,
4/15/2003,"Rice (mixed, low quality) - Wholesale",KG,cereals and tubers,550,KHR,Cambodia,Battambang,792,Battambang,639,165,14,5,1,639_165_14_5,
5/15/2003,"Rice (mixed, low quality) - Wholesale",KG,cereals and tubers,730,KHR,Cambodia,Battambang,792,Battambang,639,165,14,5,1,639_165_14_5,
6/15/2003,"Rice (mixed, low quality) - Wholesale",KG,cereals and tubers,740,KHR,Cambodia,Battambang,792,Battambang,639,165,14,5,1,639_165_14_5,
7/15/2003,"Rice (mixed, low quality) - Wholesale",KG,cereals and tubers,750,KHR,Cambodia,Battambang,792,Battambang,639,165,14,5,1,639_165_14_5,
8/15/2003,"Rice (mixed, low quality) - Wholesale",KG,cereals and tubers,600,KHR,Cambodia,Battambang,792,Battambang,639,165,14,5,1,639_165_14_5,
9/15/2003,"Rice (mixed, low quality) - Wholesale",KG,cereals and tubers,600,KHR,Cambodia,Battambang,792,Battambang,639,165,14,5,1,639_165_14_5,
10/15/2003,"Rice (mixed, low quality) - Wholesale",KG,cereals and tubers,550,KHR,Cambodia,Battambang,792,Battambang,639,165,14,5,1,639_165_14_5,
11/15/2003,"Rice (mixed, low quality) - Wholesale",KG,cereals and tubers,600,KHR,Cambodia,Battambang,792,Battambang,639,165,14,5,1,639_165_14_5,
12/15/2003,"Rice (mixed, low quality) - Wholesale",KG,cereals and tubers,600,KHR,Cambodia,Battambang,792,Battambang,639,165,14,5,1,639_165_14_5,
1/15/2004,"Rice (mixed, low quality) - Wholesale",KG,cereals and tubers,610,KHR,Cambodia,Battambang,792,Battambang,639,165,14,5,1,639_165_14_5,
2/15/2004,"Rice (mixed, low quality) - Wholesale",KG,cereals and tubers,620,KHR,Cambodia,Battambang,792,Battambang,639,165,14,5,1,639_165_14_5,
3/15/2004,"Rice (mixed, low quality) - Wholesale",KG,cereals and tubers,620,KHR,Cambodia,Battambang,792,Battambang,639,165,14,5,1,639_165_14_5,
4/15/2004,"Rice (mixed, low quality) - Wholesale",KG,cereals and tubers,640,KHR,Cambodia,Battambang,792,Battambang,639,165,14,5,1,639_165_14_5,
5/15/2004,"Rice (mixed, low quality) - Wholesale",KG,cereals and tubers,720,KHR,Cambodia,Battambang,792,Battambang,639,165,14,5,1,639_165_14_5,
6/15/2004,"Rice (mixed, low quality) - Wholesale",KG,cereals and tubers,750,KHR,Cambodia,Battambang,792,Battambang,639,165,14,5,1,639_165_14_5,
7/15/2004,"Rice (mixed, low quality) - Wholesale",KG,cereals and tubers,791.43,KHR,Cambodia,Battambang,792,Battambang,639,165,14,5,1,639_165_14_5,
8/15/2004,"Rice (mixed, low quality) - Wholesale",KG,cereals and tubers,728.57,KHR,Cambodia,Battambang,792,Battambang,639,165,14,5,1,639_165_14_5,
9/15/2004,"Rice (mixed, low quality) - Wholesale",KG,cereals and tubers,900,KHR,Cambodia,Battambang,792,Battambang,639,165,14,5,1,639_165_14_5,
10/15/2004,"Rice (mixed, low quality) - Wholesale",KG,cereals and tubers,820,KHR,Cambodia,Battambang,792,Battambang,639,165,14,5,1,639_165_14_5,
11/15/2004,"Rice (mixed, low quality) - Wholesale",KG,cereals and tubers,780,KHR,Cambodia,Battambang,792,Battambang,639,165,14,5,1,639_165_14_5,
12/15/2004,"Rice (mixed, low quality) - Wholesale",KG,cereals and tubers,864.29,KHR,Cambodia,Battambang,792,Battambang,639,165,14,5,1,639_165_14_5,
1/15/2005,"Rice (mixed, low quality) - Wholesale",KG,cereals and tubers,750,KHR,Cambodia,Battambang,792,Battambang,639,165,14,5,1,639_165_14_5,
2/15/2005,"Rice (mixed, low quality) - Wholesale",KG,cereals and tubers,825,KHR,Cambodia,Battambang,792,Battambang,639,165,14,5,1,639_165_14_5,
3/15/2005,"Rice (mixed, low quality) - Wholesale",KG,cereals and tubers,925,KHR,Cambodia,Battambang,792,Battambang,639,165,14,5,1,639_165_14_5,
4/15/2005,"Rice (mixed, low quality) - Wholesale",KG,cereals and tubers,950,KHR,Cambodia,Battambang,792,Battambang,639,165,14,5,1,639_165_14_5,
5/15/2005,"Rice (mixed, low quality) - Wholesale",KG,cereals and tubers,950,KHR,Cambodia,Battambang,792,Battambang,639,165,14,5,1,639_165_14_5,
6/15/2005,"Rice (mixed, low quality) - Wholesale",KG,cereals and tubers,875,KHR,Cambodia,Battambang,792,Battambang,639,165,14,5,1,639_165_14_5,
7/15/2005,"Rice (mixed, low quality) - Wholesale",KG,cereals and tubers,916.67,KHR,Cambodia,Battambang,792,Battambang,639,165,14,5,1,639_165_14_5,
8/15/2005,"Rice (mixed, low quality) - Wholesale",KG,cereals and tubers,963.33,KHR,Cambodia,Battambang,792,Battambang,639,165,14,5,1,639_165_14_5,
9/15/2005,"Rice (mixed, low quality) - Wholesale",KG,cereals and tubers,1025,KHR,Cambodia,Battambang,792,Battambang,639,165,14,5,1,639_165_14_5,
10/15/2005,"Rice (mixed, low quality) - Wholesale",KG,cereals and tubers,1016.67,KHR,Cambodia,Battambang,792,Battambang,639,165,14,5,1,639_165_14_5,
11/15/2005,"Rice (mixed, low quality) - Wholesale",KG,cereals and tubers,1100,KHR,Cambodia,Battambang,792,Battambang,639,165,14,5,1,639_165_14_5,
12/15/2005,"Rice (mixed, low quality) - Wholesale",KG,cereals and tubers,950,KHR,Cambodia,Battambang,792,Battambang,639,165,14,5,1,639_165_14_5,
1/15/2007,"Rice (mixed, low quality) - Wholesale",KG,cereals and tubers,956.67,KHR,Cambodia,Battambang,792,Battambang,639,165,14,5,1,639_165_14_5,
2/15/2007,"Rice (mixed, low quality) - Wholesale",KG,cereals and tubers,970,KHR,Cambodia,Battambang,792,Battambang,639,165,14,5,1,639_165_14_5,
3/15/2007,"Rice (mixed, low quality) - Wholesale",KG,cereals and tubers,967.5,KHR,Cambodia,Battambang,792,Battambang,639,165,14,5,1,639_165_14_5,
4/15/2007,"Rice (mixed, low quality) - Wholesale",KG,cereals and tubers,965,KHR,Cambodia,Battambang,792,Battambang,639,165,14,5,1,639_165_14_5,
5/15/2007,"Rice (mixed, low quality) - Wholesale",KG,cereals and tubers,950,KHR,Cambodia,Battambang,792,Battambang,639,165,14,5,1,639_165_14_5,
12/15/2007,"Rice (mixed, low quality) - Wholesale",KG,cereals and tubers,1150,KHR,Cambodia,Battambang,792,Battambang,639,165,14,5,1,639_165_14_5,
1/15/2008,"Rice (mixed, low quality) - Wholesale",KG,cereals and tubers,1162,KHR,Cambodia,Battambang,792,Battambang,639,165,14,5,1,639_165_14_5,
2/15/2008,"Rice (mixed, low quality) - Wholesale",KG,cereals and tubers,1225,KHR,Cambodia,Battambang,792,Battambang,639,165,14,5,1,639_165_14_5,
3/15/2008,"Rice (mixed, low quality) - Wholesale",KG,cereals and tubers,2210,KHR,Cambodia,Battambang,792,Battambang,639,165,14,5,1,639_165_14_5,
4/15/2008,"Rice (mixed, low quality) - Wholesale",KG,cereals and tubers,2050,KHR,Cambodia,Battambang,792,Battambang,639,165,14,5,1,639_165_14_5,
5/15/2008,"Rice (mixed, low quality) - Wholesale",KG,cereals and tubers,1940,KHR,Cambodia,Battambang,792,Battambang,639,165,14,5,1,639_165_14_5,
6/15/2008,"Rice (mixed, low quality) - Wholesale",KG,cereals and tubers,2050,KHR,Cambodia,Battambang,792,Battambang,639,165,14,5,1,639_165_14_5,
7/15/2008,"Rice (mixed, low quality) - Wholesale",KG,cereals and tubers,2050,KHR,Cambodia,Battambang,792,Battambang,639,165,14,5,1,639_165_14_5,
8/15/2008,"Rice (mixed, low quality) - Wholesale",KG,cereals and tubers,1850,KHR,Cambodia,Battambang,792,Battambang,639,165,14,5,1,639_165_14_5,
9/15/2008,"Rice (mixed, low quality) - Wholesale",KG,cereals and tubers,1700,KHR,Cambodia,Battambang,792,Battambang,639,165,14,5,1,639_165_14_5,
10/15/2008,"Rice (mixed, low quality) - Wholesale",KG,cereals and tubers,1460,KHR,Cambodia,Battambang,792,Battambang,639,165,14,5,1,639_165_14_5,
11/15/2008,"Rice (mixed, low quality) - Wholesale",KG,cereals and tubers,1550,KHR,Cambodia,Battambang,792,Battambang,639,165,14,5,1,639_165_14_5,
12/15/2008,"Rice (mixed, low quality) - Wholesale",KG,cereals and tubers,1050,KHR,Cambodia,Battambang,792,Battambang,639,165,14,5,1,639_165_14_5,
1/15/2009,"Rice (mixed, low quality) - Wholesale",KG,cereals and tubers,1100,KHR,Cambodia,Battambang,792,Battambang,639,165,14,5,1,639_165_14_5,
2/15/2009,"Rice (mixed, low quality) - Wholesale",KG,cereals and tubers,1100,KHR,Cambodia,Battambang,792,Battambang,639,165,14,5,1,639_165_14_5,
3/15/2009,"Rice (mixed, low quality) - Wholesale",KG,cereals and tubers,1197,KHR,Cambodia,Battambang,792,Battambang,639,165,14,5,1,639_165_14_5,
4/15/2009,"Rice (mixed, low quality) - Wholesale",KG,cereals and tubers,1150,KHR,Cambodia,Battambang,792,Battambang,639,165,14,5,1,639_165_14_5,
5/15/2009,"Rice (mixed, low quality) - Wholesale",KG,cereals and tubers,1233.3333,KHR,Cambodia,Battambang,792,Battambang,639,165,14,5,1,639_165_14_5,
6/15/2009,"Rice (mixed, low quality) - Wholesale",KG,cereals and tubers,1390,KHR,Cambodia,Battambang,792,Battambang,639,165,14,5,1,639_165_14_5,
7/15/2009,"Rice (mixed, low quality) - Wholesale",KG,cereals and tubers,1510,KHR,Cambodia,Battambang,792,Battambang,639,165,14,5,1,639_165_14_5,
8/15/2009,"Rice (mixed, low quality) - Wholesale",KG,cereals and tubers,1500,KHR,Cambodia,Battambang,792,Battambang,639,165,14,5,1,639_165_14_5,
9/15/2009,"Rice (mixed, low quality) - Wholesale",KG,cereals and tubers,1398,KHR,Cambodia,Battambang,792,Battambang,639,165,14,5,1,639_165_14_5,
10/15/2009,"Rice (mixed, low quality) - Wholesale",KG,cereals and tubers,1685,KHR,Cambodia,Battambang,792,Battambang,639,165,14,5,1,639_165_14_5,
11/15/2009,"Rice (mixed, low quality) - Wholesale",KG,cereals and tubers,1650,KHR,Cambodia,Battambang,792,Battambang,639,165,14,5,1,639_165_14_5,
12/15/2009,"Rice (mixed, low quality) - Wholesale",KG,cereals and tubers,1570,KHR,Cambodia,Battambang,792,Battambang,639,165,14,5,1,639_165_14_5,
1/15/2010,"Rice (mixed, low quality) - Wholesale",KG,cereals and tubers,1425,KHR,Cambodia,Battambang,792,Battambang,639,165,14,5,1,639_165_14_5,
2/15/2010,"Rice (mixed, low quality) - Wholesale",KG,cereals and tubers,1375,KHR,Cambodia,Battambang,792,Battambang,639,165,14,5,1,639_165_14_5,
3/15/2010,"Rice (mixed, low quality) - Wholesale",KG,cereals and tubers,1410,KHR,Cambodia,Battambang,792,Battambang,639,165,14,5,1,639_165_14_5,
4/15/2010,"Rice (mixed, low quality) - Wholesale",KG,cereals and tubers,1450,KHR,Cambodia,Battambang,792,Battambang,639,165,14,5,1,639_165_14_5,
5/15/2010,"Rice (mixed, low quality) - Wholesale",KG,cereals and tubers,1483.33,KHR,Cambodia,Battambang,792,Battambang,639,165,14,5,1,639_165_14_5,
6/15/2010,"Rice (mixed, low quality) - Wholesale",KG,cereals and tubers,1475,KHR,Cambodia,Battambang,792,Battambang,639,165,14,5,1,639_165_14_5,
7/15/2010,"Rice (mixed, low quality) - Wholesale",KG,cereals and tubers,1400,KHR,Cambodia,Battambang,792,Battambang,639,165,14,5,1,639_165_14_5,
8/15/2010,"Rice (mixed, low quality) - Wholesale",KG,cereals and tubers,1400,KHR,Cambodia,Battambang,792,Battambang,639,165,14,5,1,639_165_14_5,
9/15/2010,"Rice (mixed, low quality) - Wholesale",KG,cereals and tubers,1650,KHR,Cambodia,Battambang,792,Battambang,639,165,14,5,1,639_165_14_5,
10/15/2010,"Rice (mixed, low quality) - Wholesale",KG,cereals and tubers,1650,KHR,Cambodia,Battambang,792,Battambang,639,165,14,5,1,639_165_14_5,
11/15/2010,"Rice (mixed, low quality) - Wholesale",KG,cereals and tubers,1651.67,KHR,Cambodia,Battambang,792,Battambang,639,165,14,5,1,639_165_14_5,
12/15/2010,"Rice (mixed, low quality) - Wholesale",KG,cereals and tubers,1686.67,KHR,Cambodia,Battambang,792,Battambang,639,165,14,5,1,639_165_14_5,
1/15/2011,"Rice (mixed, low quality) - Wholesale",KG,cereals and tubers,1727.1,KHR,Cambodia,Battambang,792,Battambang,639,165,14,5,1,639_165_14_5,
2/15/2011,"Rice (mixed, low quality) - Wholesale",KG,cereals and tubers,1685,KHR,Cambodia,Battambang,792,Battambang,639,165,14,5,1,639_165_14_5,
3/15/2011,"Rice (mixed, low quality) - Wholesale",KG,cereals and tubers,1700,KHR,Cambodia,Battambang,792,Battambang,639,165,14,5,1,639_165_14_5,
4/15/2011,"Rice (mixed, low quality) - Wholesale",KG,cereals and tubers,1650,KHR,Cambodia,Battambang,792,Battambang,639,165,14,5,1,639_165_14_5,
5/15/2011,"Rice (mixed, low quality) - Wholesale",KG,cereals and tubers,1625,KHR,Cambodia,Battambang,792,Battambang,639,165,14,5,1,639_165_14_5,
6/15/2011,"Rice (mixed, low quality) - Wholesale",KG,cereals and tubers,1450,KHR,Cambodia,Battambang,792,Battambang,639,165,14,5,1,639_165_14_5,
7/15/2011,"Rice (mixed, low quality) - Wholesale",KG,cereals and tubers,1600,KHR,Cambodia,Battambang,792,Battambang,639,165,14,5,1,639_165_14_5,
8/15/2011,"Rice (mixed, low quality) - Wholesale",KG,cereals and tubers,1762.5,KHR,Cambodia,Battambang,792,Battambang,639,165,14,5,1,639_165_14_5,
9/15/2011,"Rice (mixed, low quality) - Wholesale",KG,cereals and tubers,1665,KHR,Cambodia,Battambang,792,Battambang,639,165,14,5,1,639_165_14_5,
10/15/2011,"Rice (mixed, low quality) - Wholesale",KG,cereals and tubers,1737.5,KHR,Cambodia,Battambang,792,Battambang,639,165,14,5,1,639_165_14_5,
11/15/2011,"Rice (mixed, low quality) - Wholesale",KG,cereals and tubers,1775,KHR,Cambodia,Battambang,792,Battambang,639,165,14,5,1,639_165_14_5,
12/15/2011,"Rice (mixed, low quality) - Wholesale",KG,cereals and tubers,1725,KHR,Cambodia,Battambang,792,Battambang,639,165,14,5,1,639_165_14_5,
1/15/2012,"Rice (mixed, low quality) - Wholesale",KG,cereals and tubers,1512.5,KHR,Cambodia,Battambang,792,Battambang,639,165,14,5,1,639_165_14_5,
2/15/2012,"Rice (mixed, low quality) - Wholesale",KG,cereals and tubers,1375.86,KHR,Cambodia,Battambang,792,Battambang,639,165,14,5,1,639_165_14_5,
3/15/2012,"Rice (mixed, low quality) - Wholesale",KG,cereals and tubers,1587.5,KHR,Cambodia,Battambang,792,Battambang,639,165,14,5,1,639_165_14_5,
4/15/2012,"Rice (mixed, low quality) - Wholesale",KG,cereals and tubers,1725,KHR,Cambodia,Battambang,792,Battambang,639,165,14,5,1,639_165_14_5,
5/15/2012,"Rice (mixed, low quality) - Wholesale",KG,cereals and tubers,1275,KHR,Cambodia,Battambang,792,Battambang,639,165,14,5,1,639_165_14_5,
6/15/2012,"Rice (mixed, low quality) - Wholesale",KG,cereals and tubers,1400,KHR,Cambodia,Battambang,792,Battambang,639,165,14,5,1,639_165_14_5,
7/15/2012,"Rice (mixed, low quality) - Wholesale",KG,cereals and tubers,1400,KHR,Cambodia,Battambang,792,Battambang,639,165,14,5,1,639_165_14_5,
8/15/2012,"Rice (mixed, low quality) - Wholesale",KG,cereals and tubers,1566.67,KHR,Cambodia,Battambang,792,Battambang,639,165,14,5,1,639_165_14_5,
9/15/2012,"Rice (mixed, low quality) - Wholesale",KG,cereals and tubers,1600,KHR,Cambodia,Battambang,792,Battambang,639,165,14,5,1,639_165_14_5,
10/15/2012,"Rice (mixed, low quality) - Wholesale",KG,cereals and tubers,1650,KHR,Cambodia,Battambang,792,Battambang,639,165,14,5,1,639_165_14_5,
11/15/2012,"Rice (mixed, low quality) - Wholesale",KG,cereals and tubers,1532.67,KHR,Cambodia,Battambang,792,Battambang,639,165,14,5,1,639_165_14_5,
12/15/2012,"Rice (mixed, low quality) - Wholesale",KG,cereals and tubers,1620,KHR,Cambodia,Battambang,792,Battambang,639,165,14,5,1,639_165_14_5,
1/15/2013,"Rice (mixed, low quality) - Wholesale",KG,cereals and tubers,1666,KHR,Cambodia,Battambang,792,Battambang,639,165,14,5,1,639_165_14_5,
2/15/2013,"Rice (mixed, low quality) - Wholesale",KG,cereals and tubers,1650,KHR,Cambodia,Battambang,792,Battambang,639,165,14,5,1,639_165_14_5,
3/15/2013,"Rice (mixed, low quality) - Wholesale",KG,cereals and tubers,1625,KHR,Cambodia,Battambang,792,Battambang,639,165,14,5,1,639_165_14_5,
4/15/2013,"Rice (mixed, low quality) - Wholesale",KG,cereals and tubers,1600,KHR,Cambodia,Battambang,792,Battambang,639,165,14,5,1,639_165_14_5,
5/15/2013,"Rice (mixed, low quality) - Wholesale",KG,cereals and tubers,1583.33,KHR,Cambodia,Battambang,792,Battambang,639,165,14,5,1,639_165_14_5,
6/15/2013,"Rice (mixed, low quality) - Wholesale",KG,cereals and tubers,1600,KHR,Cambodia,Battambang,792,Battambang,639,165,14,5,1,639_165_14_5,
7/15/2013,"Rice (mixed, low quality) - Wholesale",KG,cereals and tubers,1583,KHR,Cambodia,Battambang,792,Battambang,639,165,14,5,1,639_165_14_5,
8/15/2013,"Rice (mixed, low quality) - Wholesale",KG,cereals and tubers,2000,KHR,Cambodia,Battambang,792,Battambang,639,165,14,5,1,639_165_14_5,
9/15/2013,"Rice (mixed, low quality) - Wholesale",KG,cereals and tubers,1900,KHR,Cambodia,Battambang,792,Battambang,639,165,14,5,1,639_165_14_5,
10/15/2013,"Rice (mixed, low quality) - Wholesale",KG,cereals and tubers,1750,KHR,Cambodia,Battambang,792,Battambang,639,165,14,5,1,639_165_14_5,
11/15/2013,"Rice (mixed, low quality) - Wholesale",KG,cereals and tubers,1762.5,KHR,Cambodia,Battambang,792,Battambang,639,165,14,5,1,639_165_14_5,
12/15/2013,"Rice (mixed, low quality) - Wholesale",KG,cereals and tubers,1616.67,KHR,Cambodia,Battambang,792,Battambang,639,165,14,5,1,639_165_14_5,
1/15/2014,"Rice (mixed, low quality) - Wholesale",KG,cereals and tubers,1500,KHR,Cambodia,Battambang,792,Battambang,639,165,14,5,1,639_165_14_5,
2/15/2014,"Rice (mixed, low quality) - Wholesale",KG,cereals and tubers,1400,KHR,Cambodia,Battambang,792,Battambang,639,165,14,5,1,639_165_14_5,
3/15/2014,"Rice (mixed, low quality) - Wholesale",KG,cereals and tubers,1500,KHR,Cambodia,Battambang,792,Battambang,639,165,14,5,1,639_165_14_5,
4/15/2014,"Rice (mixed, low quality) - Wholesale",KG,cereals and tubers,1200,KHR,Cambodia,Battambang,792,Battambang,639,165,14,5,1,639_165_14_5,
5/15/2014,"Rice (mixed, low quality) - Wholesale",KG,cereals and tubers,1100,KHR,Cambodia,Battambang,792,Battambang,639,165,14,5,1,639_165_14_5,
6/15/2014,"Rice (mixed, low quality) - Wholesale",KG,cereals and tubers,1200,KHR,Cambodia,Battambang,792,Battambang,639,165,14,5,1,639_165_14_5,
7/15/2014,"Rice (mixed, low quality) - Wholesale",KG,cereals and tubers,1350,KHR,Cambodia,Battambang,792,Battambang,639,165,14,5,1,639_165_14_5,
8/15/2014,"Rice (mixed, low quality) - Wholesale",KG,cereals and tubers,1516.67,KHR,Cambodia,Battambang,792,Battambang,639,165,14,5,1,639_165_14_5,
9/15/2014,"Rice (mixed, low quality) - Wholesale",KG,cereals and tubers,1500,KHR,Cambodia,Battambang,792,Battambang,639,165,14,5,1,639_165_14_5,
10/15/2014,"Rice (mixed, low quality) - Wholesale",KG,cereals and tubers,1550,KHR,Cambodia,Battambang,792,Battambang,639,165,14,5,1,639_165_14_5,
11/15/2014,"Rice (mixed, low quality) - Wholesale",KG,cereals and tubers,1450,KHR,Cambodia,Battambang,792,Battambang,639,165,14,5,1,639_165_14_5,
12/15/2014,"Rice (mixed, low quality) - Wholesale",KG,cereals and tubers,1300,KHR,Cambodia,Battambang,792,Battambang,639,165,14,5,1,639_165_14_5,
1/15/2015,"Rice (mixed, low quality) - Wholesale",KG,cereals and tubers,1400,KHR,Cambodia,Battambang,792,Battambang,639,165,14,5,1,639_165_14_5,
2/15/2015,"Rice (mixed, low quality) - Wholesale",KG,cereals and tubers,1200,KHR,Cambodia,Battambang,792,Battambang,639,165,14,5,1,639_165_14_5,
3/15/2015,"Rice (mixed, low quality) - Wholesale",KG,cereals and tubers,1183.33,KHR,Cambodia,Battambang,792,Battambang,639,165,14,5,1,639_165_14_5,
4/15/2015,"Rice (mixed, low quality) - Wholesale",KG,cereals and tubers,1150,KHR,Cambodia,Battambang,792,Battambang,639,165,14,5,1,639_165_14_5,
5/15/2015,"Rice (mixed, low quality) - Wholesale",KG,cereals and tubers,1250,KHR,Cambodia,Battambang,792,Battambang,639,165,14,5,1,639_165_14_5,
6/15/2015,"Rice (mixed, low quality) - Wholesale",KG,cereals and tubers,1300,KHR,Cambodia,Battambang,792,Battambang,639,165,14,5,1,639_165_14_5,
7/15/2015,"Rice (mixed, low quality) - Wholesale",KG,cereals and tubers,1300,KHR,Cambodia,Battambang,792,Battambang,639,165,14,5,1,639_165_14_5,
8/15/2015,"Rice (mixed, low quality) - Wholesale",KG,cereals and tubers,1250,KHR,Cambodia,Battambang,792,Battambang,639,165,14,5,1,639_165_14_5,
9/15/2015,"Rice (mixed, low quality) - Wholesale",KG,cereals and tubers,1250,KHR,Cambodia,Battambang,792,Battambang,639,165,14,5,1,639_165_14_5,
10/15/2015,"Rice (mixed, low quality) - Wholesale",KG,cereals and tubers,1500,KHR,Cambodia,Battambang,792,Battambang,639,165,14,5,1,639_165_14_5,
11/15/2015,"Rice (mixed, low quality) - Wholesale",KG,cereals and tubers,1400,KHR,Cambodia,Battambang,792,Battambang,639,165,14,5,1,639_165_14_5,
12/15/2015,"Rice (mixed, low quality) - Wholesale",KG,cereals and tubers,1350,KHR,Cambodia,Battambang,792,Battambang,639,165,14,5,1,639_165_14_5,
1/15/2016,"Rice (mixed, low quality) - Wholesale",KG,cereals and tubers,1300,KHR,Cambodia,Battambang,792,Battambang,639,165,14,5,1,639_165_14_5,
2/15/2016,"Rice (mixed, low quality) - Wholesale",KG,cereals and tubers,1100,KHR,Cambodia,Battambang,792,Battambang,639,165,14,5,1,639_165_14_5,
3/15/2016,"Rice (mixed, low quality) - Wholesale",KG,cereals and tubers,1200,KHR,Cambodia,Battambang,792,Battambang,639,165,14,5,1,639_165_14_5,
4/15/2016,"Rice (mixed, low quality) - Wholesale",KG,cereals and tubers,1200,KHR,Cambodia,Battambang,792,Battambang,639,165,14,5,1,639_165_14_5,
5/15/2016,"Rice (mixed, low quality) - Wholesale",KG,cereals and tubers,1200,KHR,Cambodia,Battambang,792,Battambang,639,165,14,5,1,639_165_14_5,
6/15/2016,"Rice (mixed, low quality) - Wholesale",KG,cereals and tubers,1200,KHR,Cambodia,Battambang,792,Battambang,639,165,14,5,1,639_165_14_5,
7/15/2016,"Rice (mixed, low quality) - Wholesale",KG,cereals and tubers,1283.33,KHR,Cambodia,Battambang,792,Battambang,639,165,14,5,1,639_165_14_5,
8/15/2016,"Rice (mixed, low quality) - Wholesale",KG,cereals and tubers,1337.5,KHR,Cambodia,Battambang,792,Battambang,639,165,14,5,1,639_165_14_5,
9/15/2016,"Rice (mixed, low quality) - Wholesale",KG,cereals and tubers,1350,KHR,Cambodia,Battambang,792,Battambang,639,165,14,5,1,639_165_14_5,
10/15/2016,"Rice (mixed, low quality) - Wholesale",KG,cereals and tubers,1400,KHR,Cambodia,Battambang,792,Battambang,639,165,14,5,1,639_165_14_5,
11/15/2016,"Rice (mixed, low quality) - Wholesale",KG,cereals and tubers,1380,KHR,Cambodia,Battambang,792,Battambang,639,165,14,5,1,639_165_14_5,
12/15/2016,"Rice (mixed, low quality) - Wholesale",KG,cereals and tubers,800,KHR,Cambodia,Battambang,792,Battambang,639,165,14,5,1,639_165_14_5,
1/15/2017,"Rice (mixed, low quality) - Wholesale",KG,cereals and tubers,950,KHR,Cambodia,Battambang,792,Battambang,639,165,14,5,1,639_165_14_5,
2/15/2017,"Rice (mixed, low quality) - Wholesale",KG,cereals and tubers,1250,KHR,Cambodia,Battambang,792,Battambang,639,165,14,5,1,639_165_14_5,
3/15/2017,"Rice (mixed, low quality) - Wholesale",KG,cereals and tubers,1400,KHR,Cambodia,Battambang,792,Battambang,639,165,14,5,1,639_165_14_5,
4/15/2017,"Rice (mixed, low quality) - Wholesale",KG,cereals and tubers,1500,KHR,Cambodia,Battambang,792,Battambang,639,165,14,5,1,639_165_14_5,
5/15/2017,"Rice (mixed, low quality) - Wholesale",KG,cereals and tubers,1500,KHR,Cambodia,Battambang,792,Battambang,639,165,14,5,1,639_165_14_5,
6/15/2017,"Rice (mixed, low quality) - Wholesale",KG,cereals and tubers,1500,KHR,Cambodia,Battambang,792,Battambang,639,165,14,5,1,639_165_14_5,
7/15/2017,"Rice (mixed, low quality) - Wholesale",KG,cereals and tubers,1500,KHR,Cambodia,Battambang,792,Battambang,639,165,14,5,1,639_165_14_5,
8/15/2017,"Rice (mixed, low quality) - Wholesale",KG,cereals and tubers,1500,KHR,Cambodia,Battambang,792,Battambang,639,165,14,5,1,639_165_14_5,
9/15/2017,"Rice (mixed, low quality) - Wholesale",KG,cereals and tubers,1500,KHR,Cambodia,Battambang,792,Battambang,639,165,14,5,1,639_165_14_5,
10/15/2017,"Rice (mixed, low quality) - Wholesale",KG,cereals and tubers,1500,KHR,Cambodia,Battambang,792,Battambang,639,165,14,5,1,639_165_14_5,
11/15/2017,"Rice (mixed, low quality) - Wholesale",KG,cereals and tubers,1400,KHR,Cambodia,Battambang,792,Battambang,639,165,14,5,1,639_165_14_5,
12/15/2017,"Rice (mixed, low quality) - Wholesale",KG,cereals and tubers,1250,KHR,Cambodia,Battambang,792,Battambang,639,165,14,5,1,639_165_14_5,
1/15/2018,"Rice (mixed, low quality) - Wholesale",KG,cereals and tubers,1500,KHR,Cambodia,Battambang,792,Battambang,639,165,14,5,1,639_165_14_5,
2/15/2018,"Rice (mixed, low quality) - Wholesale",KG,cereals and tubers,1500,KHR,Cambodia,Battambang,792,Battambang,639,165,14,5,1,639_165_14_5,
3/15/2018,"Rice (mixed, low quality) - Wholesale",KG,cereals and tubers,1400,KHR,Cambodia,Battambang,792,Battambang,639,165,14,5,1,639_165_14_5,
4/15/2018,"Rice (mixed, low quality) - Wholesale",KG,cereals and tubers,1500,KHR,Cambodia,Battambang,792,Battambang,639,165,14,5,1,639_165_14_5,
5/15/2018,"Rice (mixed, low quality) - Wholesale",KG,cereals and tubers,1600,KHR,Cambodia,Battambang,792,Battambang,639,165,14,5,1,639_165_14_5,
6/15/2018,"Rice (mixed, low quality) - Wholesale",KG,cereals and tubers,1466.67,KHR,Cambodia,Battambang,792,Battambang,639,165,14,5,1,639_165_14_5,
7/15/2018,"Rice (mixed, low quality) - Wholesale",KG,cereals and tubers,1800,KHR,Cambodia,Battambang,792,Battambang,639,165,14,5,1,639_165_14_5,
8/15/2018,"Rice (mixed, low quality) - Wholesale",KG,cereals and tubers,1700,KHR,Cambodia,Battambang,792,Battambang,639,165,14,5,1,639_165_14_5,
9/15/2018,"Rice (mixed, low quality) - Wholesale",KG,cereals and tubers,1650,KHR,Cambodia,Battambang,792,Battambang,639,165,14,5,1,639_165_14_5,
10/15/2018,"Rice (mixed, low quality) - Wholesale",KG,cereals and tubers,1500,KHR,Cambodia,Battambang,792,Battambang,639,165,14,5,1,639_165_14_5,
11/15/2018,"Rice (mixed, low quality) - Wholesale",KG,cereals and tubers,1566.67,KHR,Cambodia,Battambang,792,Battambang,639,165,14,5,1,639_165_14_5,
12/15/2018,"Rice (mixed, low quality) - Wholesale",KG,cereals and tubers,1475,KHR,Cambodia,Battambang,792,Battambang,639,165,14,5,1,639_165_14_5,
1/15/2019,"Rice (mixed, low quality) - Wholesale",KG,cereals and tubers,1550,KHR,Cambodia,Battambang,792,Battambang,639,165,14,5,1,639_165_14_5,
2/15/2019,"Rice (mixed, low quality) - Wholesale",KG,cereals and tubers,1500,KHR,Cambodia,Battambang,792,Battambang,639,165,14,5,1,639_165_14_5,
3/15/2019,"Rice (mixed, low quality) - Wholesale",KG,cereals and tubers,1500,KHR,Cambodia,Battambang,792,Battambang,639,165,14,5,1,639_165_14_5,
4/15/2019,"Rice (mixed, low quality) - Wholesale",KG,cereals and tubers,1500,KHR,Cambodia,Battambang,792,Battambang,639,165,14,5,1,639_165_14_5,
5/15/2019,"Rice (mixed, low quality) - Wholesale",KG,cereals and tubers,1800,KHR,Cambodia,Battambang,792,Battambang,639,165,14,5,1,639_165_14_5,
6/15/2019,"Rice (mixed, low quality) - Wholesale",KG,cereals and tubers,1500,KHR,Cambodia,Battambang,792,Battambang,639,165,14,5,1,639_165_14_5,
7/15/2019,"Rice (mixed, low quality) - Wholesale",KG,cereals and tubers,1550,KHR,Cambodia,Battambang,792,Battambang,639,165,14,5,1,639_165_14_5,
8/15/2019,"Rice (mixed, low quality) - Wholesale",KG,cereals and tubers,1300,KHR,Cambodia,Battambang,792,Battambang,639,165,14,5,1,639_165_14_5,
9/15/2019,"Rice (mixed, low quality) - Wholesale",KG,cereals and tubers,1300,KHR,Cambodia,Battambang,792,Battambang,639,165,14,5,1,639_165_14_5,
10/15/2019,"Rice (mixed, low quality) - Wholesale",KG,cereals and tubers,1300,KHR,Cambodia,Battambang,792,Battambang,639,165,14,5,1,639_165_14_5,
11/15/2019,"Rice (mixed, low quality) - Wholesale",KG,cereals and tubers,1300,KHR,Cambodia,Battambang,792,Battambang,639,165,14,5,1,639_165_14_5,
12/15/2019,"Rice (mixed, low quality) - Wholesale",KG,cereals and tubers,1400,KHR,Cambodia,Battambang,792,Battambang,639,165,14,5,1,639_165_14_5,
1/15/2020,"Rice (mixed, low quality) - Wholesale",KG,cereals and tubers,1450,KHR,Cambodia,Battambang,792,Battambang,639,165,14,5,1,639_165_14_5,
2/15/2020,"Rice (mixed, low quality) - Wholesale",KG,cereals and tubers,1400,KHR,Cambodia,Battambang,792,Battambang,639,165,14,5,1,639_165_14_5,
4/15/2020,"Rice (mixed, low quality) - Wholesale",KG,cereals and tubers,1500,KHR,Cambodia,Battambang,792,Battambang,639,165,14,5,1,639_165_14_5,
5/15/2020,"Rice (mixed, low quality) - Wholesale",KG,cereals and tubers,1467,KHR,Cambodia,Battambang,792,Battambang,639,165,14,5,1,639_165_14_5,
6/15/2020,"Rice (mixed, low quality) - Wholesale",KG,cereals and tubers,1467,KHR,Cambodia,Battambang,792,Battambang,639,165,14,5,1,639_165_14_5,
1/15/2018,Wage (non-qualified labour) - Retail,Day,non-food,28250,KHR,Cambodia,Battambang,792,Battambang,639,277,15,51,8,639_277_15_51,
2/15/2018,Wage (non-qualified labour) - Retail,Day,non-food,27000,KHR,Cambodia,Battambang,792,Battambang,639,277,15,51,8,639_277_15_51,
3/15/2018,Wage (non-qualified labour) - Retail,Day,non-food,26500,KHR,Cambodia,Battambang,792,Battambang,639,277,15,51,8,639_277_15_51,
4/15/2018,Wage (non-qualified labour) - Retail,Day,non-food,26500,KHR,Cambodia,Battambang,792,Battambang,639,277,15,51,8,639_277_15_51,
5/15/2018,Wage (non-qualified labour) - Retail,Day,non-food,30250,KHR,Cambodia,Battambang,792,Battambang,639,277,15,51,8,639_277_15_51,
6/15/2018,Wage (non-qualified labour) - Retail,Day,non-food,29250,KHR,Cambodia,Battambang,792,Battambang,639,277,15,51,8,639_277_15_51,
7/15/2018,Wage (non-qualified labour) - Retail,Day,non-food,30250,KHR,Cambodia,Battambang,792,Battambang,639,277,15,51,8,639_277_15_51,
8/15/2018,Wage (non-qualified labour) - Retail,Day,non-food,28000,KHR,Cambodia,Battambang,792,Battambang,639,277,15,51,8,639_277_15_51,
9/15/2018,Wage (non-qualified labour) - Retail,Day,non-food,30500,KHR,Cambodia,Battambang,792,Battambang,639,277,15,51,8,639_277_15_51,
10/15/2018,Wage (non-qualified labour) - Retail,Day,non-food,27000,KHR,Cambodia,Battambang,792,Battambang,639,277,15,51,8,639_277_15_51,
11/15/2018,Wage (non-qualified labour) - Retail,Day,non-food,28250,KHR,Cambodia,Battambang,792,Battambang,639,277,15,51,8,639_277_15_51,
12/15/2018,Wage (non-qualified labour) - Retail,Day,non-food,30500,KHR,Cambodia,Battambang,792,Battambang,639,277,15,51,8,639_277_15_51,
1/15/2019,Wage (non-qualified labour) - Retail,Day,non-food,30000,KHR,Cambodia,Battambang,792,Battambang,639,277,15,51,8,639_277_15_51,
2/15/2019,Wage (non-qualified labour) - Retail,Day,non-food,28250,KHR,Cambodia,Battambang,792,Battambang,639,277,15,51,8,639_277_15_51,
3/15/2019,Wage (non-qualified labour) - Retail,Day,non-food,31000,KHR,Cambodia,Battambang,792,Battambang,639,277,15,51,8,639_277_15_51,
4/15/2019,Wage (non-qualified labour) - Retail,Day,non-food,30750,KHR,Cambodia,Battambang,792,Battambang,639,277,15,51,8,639_277_15_51,
5/15/2019,Wage (non-qualified labour) - Retail,Day,non-food,30750,KHR,Cambodia,Battambang,792,Battambang,639,277,15,51,8,639_277_15_51,
6/15/2019,Wage (non-qualified labour) - Retail,Day,non-food,34750,KHR,Cambodia,Battambang,792,Battambang,639,277,15,51,8,639_277_15_51,
7/15/2019,Wage (non-qualified labour) - Retail,Day,non-food,33000,KHR,Cambodia,Battambang,792,Battambang,639,277,15,51,8,639_277_15_51,
8/15/2019,Wage (non-qualified labour) - Retail,Day,non-food,32750,KHR,Cambodia,Battambang,792,Battambang,639,277,15,51,8,639_277_15_51,
9/15/2019,Wage (non-qualified labour) - Retail,Day,non-food,35750,KHR,Cambodia,Battambang,792,Battambang,639,277,15,51,8,639_277_15_51,
10/15/2019,Wage (non-qualified labour) - Retail,Day,non-food,34500,KHR,Cambodia,Battambang,792,Battambang,639,277,15,51,8,639_277_15_51,
11/15/2019,Wage (non-qualified labour) - Retail,Day,non-food,34250,KHR,Cambodia,Battambang,792,Battambang,639,277,15,51,8,639_277_15_51,
12/15/2019,Wage (non-qualified labour) - Retail,Day,non-food,34250,KHR,Cambodia,Battambang,792,Battambang,639,277,15,51,8,639_277_15_51,
2/15/2020,Wage (non-qualified labour) - Retail,Day,non-food,34000,KHR,Cambodia,Battambang,792,Battambang,639,277,15,51,8,639_277_15_51,
2/15/2019,"Meat (pork, with fat) - Retail",KG,"meat, fish and eggs",13000,KHR,Cambodia,Battambang,792,Battambang,639,329,15,5,2,639_329_15_5,
3/15/2019,"Meat (pork, with fat) - Retail",KG,"meat, fish and eggs",13000,KHR,Cambodia,Battambang,792,Battambang,639,329,15,5,2,639_329_15_5,
4/15/2019,"Meat (pork, with fat) - Retail",KG,"meat, fish and eggs",13000,KHR,Cambodia,Battambang,792,Battambang,639,329,15,5,2,639_329_15_5,
5/15/2019,"Meat (pork, with fat) - Retail",KG,"meat, fish and eggs",13000,KHR,Cambodia,Battambang,792,Battambang,639,329,15,5,2,639_329_15_5,
6/15/2019,"Meat (pork, with fat) - Retail",KG,"meat, fish and eggs",15000,KHR,Cambodia,Battambang,792,Battambang,639,329,15,5,2,639_329_15_5,
7/15/2019,"Meat (pork, with fat) - Retail",KG,"meat, fish and eggs",15000,KHR,Cambodia,Battambang,792,Battambang,639,329,15,5,2,639_329_15_5,
8/15/2019,"Meat (pork, with fat) - Retail",KG,"meat, fish and eggs",15000,KHR,Cambodia,Battambang,792,Battambang,639,329,15,5,2,639_329_15_5,
9/15/2019,"Meat (pork, with fat) - Retail",KG,"meat, fish and eggs",15000,KHR,Cambodia,Battambang,792,Battambang,639,329,15,5,2,639_329_15_5,
10/15/2019,"Meat (pork, with fat) - Retail",KG,"meat, fish and eggs",15000,KHR,Cambodia,Battambang,792,Battambang,639,329,15,5,2,639_329_15_5,
11/15/2019,"Meat (pork, with fat) - Retail",KG,"meat, fish and eggs",15000,KHR,Cambodia,Battambang,792,Battambang,639,329,15,5,2,639_329_15_5,
12/15/2019,"Meat (pork, with fat) - Retail",KG,"meat, fish and eggs",15333.33,KHR,Cambodia,Battambang,792,Battambang,639,329,15,5,2,639_329_15_5,
1/15/2020,"Meat (pork, with fat) - Retail",KG,"meat, fish and eggs",14666.67,KHR,Cambodia,Battambang,792,Battambang,639,329,15,5,2,639_329_15_5,
2/15/2020,"Meat (pork, with fat) - Retail",KG,"meat, fish and eggs",15666.67,KHR,Cambodia,Battambang,792,Battambang,639,329,15,5,2,639_329_15_5,
8/15/2019,Oil (vegetable) - Wholesale,5 L,oil and fats,18958,KHR,Cambodia,Battambang,792,Boeung Chhouk,3111,96,14,67,6,3111_96_14_67,
11/15/2019,Oil (vegetable) - Wholesale,5 L,oil and fats,16500,KHR,Cambodia,Battambang,792,Boeung Chhouk,3111,96,14,67,6,3111_96_14_67,
12/15/2019,Oil (vegetable) - Wholesale,5 L,oil and fats,17250,KHR,Cambodia,Battambang,792,Boeung Chhouk,3111,96,14,67,6,3111_96_14_67,
3/15/2020,Oil (vegetable) - Wholesale,5 L,oil and fats,23000,KHR,Cambodia,Battambang,792,Boeung Chhouk,3111,96,14,67,6,3111_96_14_67,
4/15/2020,Oil (vegetable) - Wholesale,5 L,oil and fats,21250,KHR,Cambodia,Battambang,792,Boeung Chhouk,3111,96,14,67,6,3111_96_14_67,
5/15/2020,Oil (vegetable) - Wholesale,5 L,oil and fats,21000,KHR,Cambodia,Battambang,792,Boeung Chhouk,3111,96,14,67,6,3111_96_14_67,
6/15/2020,Oil (vegetable) - Wholesale,5 L,oil and fats,18875,KHR,Cambodia,Battambang,792,Boeung Chhouk,3111,96,14,67,6,3111_96_14_67,
7/15/2020,Oil (vegetable) - Wholesale,5 L,oil and fats,18500,KHR,Cambodia,Battambang,792,Boeung Chhouk,3111,96,14,67,6,3111_96_14_67,
8/15/2019,Oil (vegetable) - Retail,5 L,oil and fats,21233,KHR,Cambodia,Battambang,792,Boeung Chhouk,3111,96,15,67,6,3111_96_15_67,
11/15/2019,Oil (vegetable) - Retail,5 L,oil and fats,17000,KHR,Cambodia,Battambang,792,Boeung Chhouk,3111,96,15,67,6,3111_96_15_67,
12/15/2019,Oil (vegetable) - Retail,5 L,oil and fats,18500,KHR,Cambodia,Battambang,792,Boeung Chhouk,3111,96,15,67,6,3111_96_15_67,
3/15/2020,Oil (vegetable) - Retail,5 L,oil and fats,23000,KHR,Cambodia,Battambang,792,Boeung Chhouk,3111,96,15,67,6,3111_96_15_67,
4/15/2020,Oil (vegetable) - Retail,5 L,oil and fats,22000,KHR,Cambodia,Battambang,792,Boeung Chhouk,3111,96,15,67,6,3111_96_15_67,
5/15/2020,Oil (vegetable) - Retail,5 L,oil and fats,25000,KHR,Cambodia,Battambang,792,Boeung Chhouk,3111,96,15,67,6,3111_96_15_67,
6/15/2020,Oil (vegetable) - Retail,5 L,oil and fats,19000,KHR,Cambodia,Battambang,792,Boeung Chhouk,3111,96,15,67,6,3111_96_15_67,
7/15/2020,Oil (vegetable) - Retail,5 L,oil and fats,19000,KHR,Cambodia,Battambang,792,Boeung Chhouk,3111,96,15,67,6,3111_96_15_67,
8/15/2019,"Rice (mixed, low quality) - Wholesale",KG,cereals and tubers,1867,KHR,Cambodia,Battambang,792,Boeung Chhouk,3111,165,14,5,1,3111_165_14_5,
9/15/2019,"Rice (mixed, low quality) - Wholesale",KG,cereals and tubers,1867,KHR,Cambodia,Battambang,792,Boeung Chhouk,3111,165,14,5,1,3111_165_14_5,
11/15/2019,"Rice (mixed, low quality) - Wholesale",KG,cereals and tubers,2100,KHR,Cambodia,Battambang,792,Boeung Chhouk,3111,165,14,5,1,3111_165_14_5,
12/15/2019,"Rice (mixed, low quality) - Wholesale",KG,cereals and tubers,1841.5,KHR,Cambodia,Battambang,792,Boeung Chhouk,3111,165,14,5,1,3111_165_14_5,
1/15/2020,"Rice (mixed, low quality) - Wholesale",KG,cereals and tubers,1967,KHR,Cambodia,Battambang,792,Boeung Chhouk,3111,165,14,5,1,3111_165_14_5,
3/15/2020,"Rice (mixed, low quality) - Wholesale",KG,cereals and tubers,1808.25,KHR,Cambodia,Battambang,792,Boeung Chhouk,3111,165,14,5,1,3111_165_14_5,
4/15/2020,"Rice (mixed, low quality) - Wholesale",KG,cereals and tubers,1783.5,KHR,Cambodia,Battambang,792,Boeung Chhouk,3111,165,14,5,1,3111_165_14_5,
5/15/2020,"Rice (mixed, low quality) - Wholesale",KG,cereals and tubers,1850,KHR,Cambodia,Battambang,792,Boeung Chhouk,3111,165,14,5,1,3111_165_14_5,
6/15/2020,"Rice (mixed, low quality) - Wholesale",KG,cereals and tubers,1827.6667,KHR,Cambodia,Battambang,792,Boeung Chhouk,3111,165,14,5,1,3111_165_14_5,
7/15/2020,"Rice (mixed, low quality) - Wholesale",KG,cereals and tubers,1800,KHR,Cambodia,Battambang,792,Boeung Chhouk,3111,165,14,5,1,3111_165_14_5,
8/15/2019,"Rice (mixed, low quality) - Retail",KG,cereals and tubers,2000,KHR,Cambodia,Battambang,792,Boeung Chhouk,3111,165,15,5,1,3111_165_15_5,
9/15/2019,"Rice (mixed, low quality) - Retail",KG,cereals and tubers,2000,KHR,Cambodia,Battambang,792,Boeung Chhouk,3111,165,15,5,1,3111_165_15_5,
11/15/2019,"Rice (mixed, low quality) - Retail",KG,cereals and tubers,2233,KHR,Cambodia,Battambang,792,Boeung Chhouk,3111,165,15,5,1,3111_165_15_5,
12/15/2019,"Rice (mixed, low quality) - Retail",KG,cereals and tubers,1950,KHR,Cambodia,Battambang,792,Boeung Chhouk,3111,165,15,5,1,3111_165_15_5,
1/15/2020,"Rice (mixed, low quality) - Retail",KG,cereals and tubers,2033,KHR,Cambodia,Battambang,792,Boeung Chhouk,3111,165,15,5,1,3111_165_15_5,
3/15/2020,"Rice (mixed, low quality) - Retail",KG,cereals and tubers,1966.5,KHR,Cambodia,Battambang,792,Boeung Chhouk,3111,165,15,5,1,3111_165_15_5,
4/15/2020,"Rice (mixed, low quality) - Retail",KG,cereals and tubers,1983.5,KHR,Cambodia,Battambang,792,Boeung Chhouk,3111,165,15,5,1,3111_165_15_5,
5/15/2020,"Rice (mixed, low quality) - Retail",KG,cereals and tubers,2000,KHR,Cambodia,Battambang,792,Boeung Chhouk,3111,165,15,5,1,3111_165_15_5,
6/15/2020,"Rice (mixed, low quality) - Retail",KG,cereals and tubers,2000,KHR,Cambodia,Battambang,792,Boeung Chhouk,3111,165,15,5,1,3111_165_15_5,
7/15/2020,"Rice (mixed, low quality) - Retail",KG,cereals and tubers,2000,KHR,Cambodia,Battambang,792,Boeung Chhouk,3111,165,15,5,1,3111_165_15_5,
8/15/2019,Fish (snake head) - Wholesale,KG,"meat, fish and eggs",10333,KHR,Cambodia,Battambang,792,Boeung Chhouk,3111,309,14,5,2,3111_309_14_5,
9/15/2019,Fish (snake head) - Wholesale,KG,"meat, fish and eggs",10250,KHR,Cambodia,Battambang,792,Boeung Chhouk,3111,309,14,5,2,3111_309_14_5,
11/15/2019,Fish (snake head) - Wholesale,KG,"meat, fish and eggs",9000,KHR,Cambodia,Battambang,792,Boeung Chhouk,3111,309,14,5,2,3111_309_14_5,
12/15/2019,Fish (snake head) - Wholesale,KG,"meat, fish and eggs",8500,KHR,Cambodia,Battambang,792,Boeung Chhouk,3111,309,14,5,2,3111_309_14_5,
3/15/2020,Fish (snake head) - Wholesale,KG,"meat, fish and eggs",7500,KHR,Cambodia,Battambang,792,Boeung Chhouk,3111,309,14,5,2,3111_309_14_5,
4/15/2020,Fish (snake head) - Wholesale,KG,"meat, fish and eggs",8375,KHR,Cambodia,Battambang,792,Boeung Chhouk,3111,309,14,5,2,3111_309_14_5,
6/15/2020,Fish (snake head) - Wholesale,KG,"meat, fish and eggs",8000,KHR,Cambodia,Battambang,792,Boeung Chhouk,3111,309,14,5,2,3111_309_14_5,
7/15/2020,Fish (snake head) - Wholesale,KG,"meat, fish and eggs",8400,KHR,Cambodia,Battambang,792,Boeung Chhouk,3111,309,14,5,2,3111_309_14_5,
8/15/2019,Fish (snake head) - Retail,KG,"meat, fish and eggs",11000,KHR,Cambodia,Battambang,792,Boeung Chhouk,3111,309,15,5,2,3111_309_15_5,
9/15/2019,Fish (snake head) - Retail,KG,"meat, fish and eggs",10750,KHR,Cambodia,Battambang,792,Boeung Chhouk,3111,309,15,5,2,3111_309_15_5,
11/15/2019,Fish (snake head) - Retail,KG,"meat, fish and eggs",9750,KHR,Cambodia,Battambang,792,Boeung Chhouk,3111,309,15,5,2,3111_309_15_5,
12/15/2019,Fish (snake head) - Retail,KG,"meat, fish and eggs",9000,KHR,Cambodia,Battambang,792,Boeung Chhouk,3111,309,15,5,2,3111_309_15_5,
3/15/2020,Fish (snake head) - Retail,KG,"meat, fish and eggs",8500,KHR,Cambodia,Battambang,792,Boeung Chhouk,3111,309,15,5,2,3111_309_15_5,
4/15/2020,Fish (snake head) - Retail,KG,"meat, fish and eggs",8625,KHR,Cambodia,Battambang,792,Boeung Chhouk,3111,309,15,5,2,3111_309_15_5,
6/15/2020,Fish (snake head) - Retail,KG,"meat, fish and eggs",8000,KHR,Cambodia,Battambang,792,Boeung Chhouk,3111,309,15,5,2,3111_309_15_5,
7/15/2020,Fish (snake head) - Retail,KG,"meat, fish and eggs",8750,KHR,Cambodia,Battambang,792,Boeung Chhouk,3111,309,15,5,2,3111_309_15_5,
8/15/2019,Fish (catfish) - Wholesale,KG,"meat, fish and eggs",7433,KHR,Cambodia,Battambang,792,Boeung Chhouk,3111,310,14,5,2,3111_310_14_5,
9/15/2019,Fish (catfish) - Wholesale,KG,"meat, fish and eggs",7000,KHR,Cambodia,Battambang,792,Boeung Chhouk,3111,310,14,5,2,3111_310_14_5,
11/15/2019,Fish (catfish) - Wholesale,KG,"meat, fish and eggs",7000,KHR,Cambodia,Battambang,792,Boeung Chhouk,3111,310,14,5,2,3111_310_14_5,
3/15/2020,Fish (catfish) - Wholesale,KG,"meat, fish and eggs",6500,KHR,Cambodia,Battambang,792,Boeung Chhouk,3111,310,14,5,2,3111_310_14_5,
4/15/2020,Fish (catfish) - Wholesale,KG,"meat, fish and eggs",6300,KHR,Cambodia,Battambang,792,Boeung Chhouk,3111,310,14,5,2,3111_310_14_5,
6/15/2020,Fish (catfish) - Wholesale,KG,"meat, fish and eggs",9000,KHR,Cambodia,Battambang,792,Boeung Chhouk,3111,310,14,5,2,3111_310_14_5,
7/15/2020,Fish (catfish) - Wholesale,KG,"meat, fish and eggs",7000,KHR,Cambodia,Battambang,792,Boeung Chhouk,3111,310,14,5,2,3111_310_14_5,
8/15/2019,Fish (catfish) - Retail,KG,"meat, fish and eggs",7833,KHR,Cambodia,Battambang,792,Boeung Chhouk,3111,310,15,5,2,3111_310_15_5,
9/15/2019,Fish (catfish) - Retail,KG,"meat, fish and eggs",7500,KHR,Cambodia,Battambang,792,Boeung Chhouk,3111,310,15,5,2,3111_310_15_5,
11/15/2019,Fish (catfish) - Retail,KG,"meat, fish and eggs",7500,KHR,Cambodia,Battambang,792,Boeung Chhouk,3111,310,15,5,2,3111_310_15_5,
3/15/2020,Fish (catfish) - Retail,KG,"meat, fish and eggs",7250,KHR,Cambodia,Battambang,792,Boeung Chhouk,3111,310,15,5,2,3111_310_15_5,
4/15/2020,Fish (catfish) - Retail,KG,"meat, fish and eggs",6750,KHR,Cambodia,Battambang,792,Boeung Chhouk,3111,310,15,5,2,3111_310_15_5,
6/15/2020,Fish (catfish) - Retail,KG,"meat, fish and eggs",9500,KHR,Cambodia,Battambang,792,Boeung Chhouk,3111,310,15,5,2,3111_310_15_5,
7/15/2020,Fish (catfish) - Retail,KG,"meat, fish and eggs",7500,KHR,Cambodia,Battambang,792,Boeung Chhouk,3111,310,15,5,2,3111_310_15_5,
8/15/2019,"Meat (pork, with fat) - Wholesale",KG,"meat, fish and eggs",15500,KHR,Cambodia,Battambang,792,Boeung Chhouk,3111,329,14,5,2,3111_329_14_5,
9/15/2019,"Meat (pork, with fat) - Wholesale",KG,"meat, fish and eggs",14500,KHR,Cambodia,Battambang,792,Boeung Chhouk,3111,329,14,5,2,3111_329_14_5,
11/15/2019,"Meat (pork, with fat) - Wholesale",KG,"meat, fish and eggs",14333,KHR,Cambodia,Battambang,792,Boeung Chhouk,3111,329,14,5,2,3111_329_14_5,
12/15/2019,"Meat (pork, with fat) - Wholesale",KG,"meat, fish and eggs",16750,KHR,Cambodia,Battambang,792,Boeung Chhouk,3111,329,14,5,2,3111_329_14_5,
1/15/2020,"Meat (pork, with fat) - Wholesale",KG,"meat, fish and eggs",18500,KHR,Cambodia,Battambang,792,Boeung Chhouk,3111,329,14,5,2,3111_329_14_5,
3/15/2020,"Meat (pork, with fat) - Wholesale",KG,"meat, fish and eggs",18750,KHR,Cambodia,Battambang,792,Boeung Chhouk,3111,329,14,5,2,3111_329_14_5,
4/15/2020,"Meat (pork, with fat) - Wholesale",KG,"meat, fish and eggs",19083.5,KHR,Cambodia,Battambang,792,Boeung Chhouk,3111,329,14,5,2,3111_329_14_5,
5/15/2020,"Meat (pork, with fat) - Wholesale",KG,"meat, fish and eggs",18667,KHR,Cambodia,Battambang,792,Boeung Chhouk,3111,329,14,5,2,3111_329_14_5,
6/15/2020,"Meat (pork, with fat) - Wholesale",KG,"meat, fish and eggs",19416.6667,KHR,Cambodia,Battambang,792,Boeung Chhouk,3111,329,14,5,2,3111_329_14_5,
7/15/2020,"Meat (pork, with fat) - Wholesale",KG,"meat, fish and eggs",20000,KHR,Cambodia,Battambang,792,Boeung Chhouk,3111,329,14,5,2,3111_329_14_5,
8/15/2019,"Meat (pork, with fat) - Retail",KG,"meat, fish and eggs",16333,KHR,Cambodia,Battambang,792,Boeung Chhouk,3111,329,15,5,2,3111_329_15_5,
9/15/2019,"Meat (pork, with fat) - Retail",KG,"meat, fish and eggs",14833,KHR,Cambodia,Battambang,792,Boeung Chhouk,3111,329,15,5,2,3111_329_15_5,
11/15/2019,"Meat (pork, with fat) - Retail",KG,"meat, fish and eggs",15000,KHR,Cambodia,Battambang,792,Boeung Chhouk,3111,329,15,5,2,3111_329_15_5,
12/15/2019,"Meat (pork, with fat) - Retail",KG,"meat, fish and eggs",17666.5,KHR,Cambodia,Battambang,792,Boeung Chhouk,3111,329,15,5,2,3111_329_15_5,
1/15/2020,"Meat (pork, with fat) - Retail",KG,"meat, fish and eggs",20000,KHR,Cambodia,Battambang,792,Boeung Chhouk,3111,329,15,5,2,3111_329_15_5,
3/15/2020,"Meat (pork, with fat) - Retail",KG,"meat, fish and eggs",19000,KHR,Cambodia,Battambang,792,Boeung Chhouk,3111,329,15,5,2,3111_329_15_5,
4/15/2020,"Meat (pork, with fat) - Retail",KG,"meat, fish and eggs",20000,KHR,Cambodia,Battambang,792,Boeung Chhouk,3111,329,15,5,2,3111_329_15_5,
5/15/2020,"Meat (pork, with fat) - Retail",KG,"meat, fish and eggs",20667,KHR,Cambodia,Battambang,792,Boeung Chhouk,3111,329,15,5,2,3111_329_15_5,
6/15/2020,"Meat (pork, with fat) - Retail",KG,"meat, fish and eggs",20000,KHR,Cambodia,Battambang,792,Boeung Chhouk,3111,329,15,5,2,3111_329_15_5,
7/15/2020,"Meat (pork, with fat) - Retail",KG,"meat, fish and eggs",21000,KHR,Cambodia,Battambang,792,Boeung Chhouk,3111,329,15,5,2,3111_329_15_5,
8/15/2019,Salt (iodised) - Wholesale,KG,miscellaneous food,833,KHR,Cambodia,Battambang,792,Boeung Chhouk,3111,334,14,5,7,3111_334_14_5,
11/15/2019,Salt (iodised) - Wholesale,KG,miscellaneous food,900,KHR,Cambodia,Battambang,792,Boeung Chhouk,3111,334,14,5,7,3111_334_14_5,
12/15/2019,Salt (iodised) - Wholesale,KG,miscellaneous food,850,KHR,Cambodia,Battambang,792,Boeung Chhouk,3111,334,14,5,7,3111_334_14_5,
3/15/2020,Salt (iodised) - Wholesale,KG,miscellaneous food,900,KHR,Cambodia,Battambang,792,Boeung Chhouk,3111,334,14,5,7,3111_334_14_5,
4/15/2020,Salt (iodised) - Wholesale,KG,miscellaneous food,887.5,KHR,Cambodia,Battambang,792,Boeung Chhouk,3111,334,14,5,7,3111_334_14_5,
5/15/2020,Salt (iodised) - Wholesale,KG,miscellaneous food,900,KHR,Cambodia,Battambang,792,Boeung Chhouk,3111,334,14,5,7,3111_334_14_5,
6/15/2020,Salt (iodised) - Wholesale,KG,miscellaneous food,850,KHR,Cambodia,Battambang,792,Boeung Chhouk,3111,334,14,5,7,3111_334_14_5,
7/15/2020,Salt (iodised) - Wholesale,KG,miscellaneous food,900,KHR,Cambodia,Battambang,792,Boeung Chhouk,3111,334,14,5,7,3111_334_14_5,
8/15/2019,Salt (iodised) - Retail,KG,miscellaneous food,1000,KHR,Cambodia,Battambang,792,Boeung Chhouk,3111,334,15,5,7,3111_334_15_5,
11/15/2019,Salt (iodised) - Retail,KG,miscellaneous food,1000,KHR,Cambodia,Battambang,792,Boeung Chhouk,3111,334,15,5,7,3111_334_15_5,
12/15/2019,Salt (iodised) - Retail,KG,miscellaneous food,1000,KHR,Cambodia,Battambang,792,Boeung Chhouk,3111,334,15,5,7,3111_334_15_5,
3/15/2020,Salt (iodised) - Retail,KG,miscellaneous food,1000,KHR,Cambodia,Battambang,792,Boeung Chhouk,3111,334,15,5,7,3111_334_15_5,
4/15/2020,Salt (iodised) - Retail,KG,miscellaneous food,1000,KHR,Cambodia,Battambang,792,Boeung Chhouk,3111,334,15,5,7,3111_334_15_5,
5/15/2020,Salt (iodised) - Retail,KG,miscellaneous food,1000,KHR,Cambodia,Battambang,792,Boeung Chhouk,3111,334,15,5,7,3111_334_15_5,
6/15/2020,Salt (iodised) - Retail,KG,miscellaneous food,1000,KHR,Cambodia,Battambang,792,Boeung Chhouk,3111,334,15,5,7,3111_334_15_5,
7/15/2020,Salt (iodised) - Retail,KG,miscellaneous food,1000,KHR,Cambodia,Battambang,792,Boeung Chhouk,3111,334,15,5,7,3111_334_15_5,
8/15/2019,Eggplants - Wholesale,KG,vegetables and fruits,2600,KHR,Cambodia,Battambang,792,Boeung Chhouk,3111,434,14,5,4,3111_434_14_5,
9/15/2019,Eggplants - Wholesale,KG,vegetables and fruits,1500,KHR,Cambodia,Battambang,792,Boeung Chhouk,3111,434,14,5,4,3111_434_14_5,
11/15/2019,Eggplants - Wholesale,KG,vegetables and fruits,1500,KHR,Cambodia,Battambang,792,Boeung Chhouk,3111,434,14,5,4,3111_434_14_5,
12/15/2019,Eggplants - Wholesale,KG,vegetables and fruits,2500,KHR,Cambodia,Battambang,792,Boeung Chhouk,3111,434,14,5,4,3111_434_14_5,
1/15/2020,Eggplants - Wholesale,KG,vegetables and fruits,2000,KHR,Cambodia,Battambang,792,Boeung Chhouk,3111,434,14,5,4,3111_434_14_5,
3/15/2020,Eggplants - Wholesale,KG,vegetables and fruits,2000,KHR,Cambodia,Battambang,792,Boeung Chhouk,3111,434,14,5,4,3111_434_14_5,
4/15/2020,Eggplants - Wholesale,KG,vegetables and fruits,2258.5,KHR,Cambodia,Battambang,792,Boeung Chhouk,3111,434,14,5,4,3111_434_14_5,
5/15/2020,Eggplants - Wholesale,KG,vegetables and fruits,2400,KHR,Cambodia,Battambang,792,Boeung Chhouk,3111,434,14,5,4,3111_434_14_5,
6/15/2020,Eggplants - Wholesale,KG,vegetables and fruits,2500,KHR,Cambodia,Battambang,792,Boeung Chhouk,3111,434,14,5,4,3111_434_14_5,
7/15/2020,Eggplants - Wholesale,KG,vegetables and fruits,2400,KHR,Cambodia,Battambang,792,Boeung Chhouk,3111,434,14,5,4,3111_434_14_5,
8/15/2019,Eggplants - Retail,KG,vegetables and fruits,2833,KHR,Cambodia,Battambang,792,Boeung Chhouk,3111,434,15,5,4,3111_434_15_5,
9/15/2019,Eggplants - Retail,KG,vegetables and fruits,2250,KHR,Cambodia,Battambang,792,Boeung Chhouk,3111,434,15,5,4,3111_434_15_5,
11/15/2019,Eggplants - Retail,KG,vegetables and fruits,2500,KHR,Cambodia,Battambang,792,Boeung Chhouk,3111,434,15,5,4,3111_434_15_5,
12/15/2019,Eggplants - Retail,KG,vegetables and fruits,2500,KHR,Cambodia,Battambang,792,Boeung Chhouk,3111,434,15,5,4,3111_434_15_5,
1/15/2020,Eggplants - Retail,KG,vegetables and fruits,2250,KHR,Cambodia,Battambang,792,Boeung Chhouk,3111,434,15,5,4,3111_434_15_5,
3/15/2020,Eggplants - Retail,KG,vegetables and fruits,2250,KHR,Cambodia,Battambang,792,Boeung Chhouk,3111,434,15,5,4,3111_434_15_5,
4/15/2020,Eggplants - Retail,KG,vegetables and fruits,2958.5,KHR,Cambodia,Battambang,792,Boeung Chhouk,3111,434,15,5,4,3111_434_15_5,
5/15/2020,Eggplants - Retail,KG,vegetables and fruits,3333,KHR,Cambodia,Battambang,792,Boeung Chhouk,3111,434,15,5,4,3111_434_15_5,
6/15/2020,Eggplants - Retail,KG,vegetables and fruits,2750,KHR,Cambodia,Battambang,792,Boeung Chhouk,3111,434,15,5,4,3111_434_15_5,
7/15/2020,Eggplants - Retail,KG,vegetables and fruits,3000,KHR,Cambodia,Battambang,792,Boeung Chhouk,3111,434,15,5,4,3111_434_15_5,
8/15/2019,Snake gourd - Wholesale,KG,vegetables and fruits,2500,KHR,Cambodia,Battambang,792,Boeung Chhouk,3111,675,14,5,4,3111_675_14_5,
9/15/2019,Snake gourd - Wholesale,KG,vegetables and fruits,1500,KHR,Cambodia,Battambang,792,Boeung Chhouk,3111,675,14,5,4,3111_675_14_5,
11/15/2019,Snake gourd - Wholesale,KG,vegetables and fruits,2500,KHR,Cambodia,Battambang,792,Boeung Chhouk,3111,675,14,5,4,3111_675_14_5,
1/15/2020,Snake gourd - Wholesale,KG,vegetables and fruits,2000,KHR,Cambodia,Battambang,792,Boeung Chhouk,3111,675,14,5,4,3111_675_14_5,
3/15/2020,Snake gourd - Wholesale,KG,vegetables and fruits,2500,KHR,Cambodia,Battambang,792,Boeung Chhouk,3111,675,14,5,4,3111_675_14_5,
4/15/2020,Snake gourd - Wholesale,KG,vegetables and fruits,2633.5,KHR,Cambodia,Battambang,792,Boeung Chhouk,3111,675,14,5,4,3111_675_14_5,
5/15/2020,Snake gourd - Wholesale,KG,vegetables and fruits,2667,KHR,Cambodia,Battambang,792,Boeung Chhouk,3111,675,14,5,4,3111_675_14_5,
6/15/2020,Snake gourd - Wholesale,KG,vegetables and fruits,3000,KHR,Cambodia,Battambang,792,Boeung Chhouk,3111,675,14,5,4,3111_675_14_5,
7/15/2020,Snake gourd - Wholesale,KG,vegetables and fruits,2800,KHR,Cambodia,Battambang,792,Boeung Chhouk,3111,675,14,5,4,3111_675_14_5,
8/15/2019,Snake gourd - Retail,KG,vegetables and fruits,2833,KHR,Cambodia,Battambang,792,Boeung Chhouk,3111,675,15,5,4,3111_675_15_5,
9/15/2019,Snake gourd - Retail,KG,vegetables and fruits,2000,KHR,Cambodia,Battambang,792,Boeung Chhouk,3111,675,15,5,4,3111_675_15_5,
11/15/2019,Snake gourd - Retail,KG,vegetables and fruits,3250,KHR,Cambodia,Battambang,792,Boeung Chhouk,3111,675,15,5,4,3111_675_15_5,
1/15/2020,Snake gourd - Retail,KG,vegetables and fruits,2500,KHR,Cambodia,Battambang,792,Boeung Chhouk,3111,675,15,5,4,3111_675_15_5,
3/15/2020,Snake gourd - Retail,KG,vegetables and fruits,3000,KHR,Cambodia,Battambang,792,Boeung Chhouk,3111,675,15,5,4,3111_675_15_5,
4/15/2020,Snake gourd - Retail,KG,vegetables and fruits,3417,KHR,Cambodia,Battambang,792,Boeung Chhouk,3111,675,15,5,4,3111_675_15_5,
5/15/2020,Snake gourd - Retail,KG,vegetables and fruits,3167,KHR,Cambodia,Battambang,792,Boeung Chhouk,3111,675,15,5,4,3111_675_15_5,
6/15/2020,Snake gourd - Retail,KG,vegetables and fruits,4000,KHR,Cambodia,Battambang,792,Boeung Chhouk,3111,675,15,5,4,3111_675_15_5,
7/15/2020,Snake gourd - Retail,KG,vegetables and fruits,3666.6666,KHR,Cambodia,Battambang,792,Boeung Chhouk,3111,675,15,5,4,3111_675_15_5,
8/15/2019,"Cabbage (chinese, flowering) - Wholesale",KG,vegetables and fruits,2600,KHR,Cambodia,Battambang,792,Boeung Chhouk,3111,784,14,5,4,3111_784_14_5,
9/15/2019,"Cabbage (chinese, flowering) - Wholesale",KG,vegetables and fruits,5000,KHR,Cambodia,Battambang,792,Boeung Chhouk,3111,784,14,5,4,3111_784_14_5,
11/15/2019,"Cabbage (chinese, flowering) - Wholesale",KG,vegetables and fruits,2167,KHR,Cambodia,Battambang,792,Boeung Chhouk,3111,784,14,5,4,3111_784_14_5,
12/15/2019,"Cabbage (chinese, flowering) - Wholesale",KG,vegetables and fruits,2250,KHR,Cambodia,Battambang,792,Boeung Chhouk,3111,784,14,5,4,3111_784_14_5,
3/15/2020,"Cabbage (chinese, flowering) - Wholesale",KG,vegetables and fruits,4000,KHR,Cambodia,Battambang,792,Boeung Chhouk,3111,784,14,5,4,3111_784_14_5,
4/15/2020,"Cabbage (chinese, flowering) - Wholesale",KG,vegetables and fruits,2333.5,KHR,Cambodia,Battambang,792,Boeung Chhouk,3111,784,14,5,4,3111_784_14_5,
5/15/2020,"Cabbage (chinese, flowering) - Wholesale",KG,vegetables and fruits,1667,KHR,Cambodia,Battambang,792,Boeung Chhouk,3111,784,14,5,4,3111_784_14_5,
6/15/2020,"Cabbage (chinese, flowering) - Wholesale",KG,vegetables and fruits,2883.3333,KHR,Cambodia,Battambang,792,Boeung Chhouk,3111,784,14,5,4,3111_784_14_5,
7/15/2020,"Cabbage (chinese, flowering) - Wholesale",KG,vegetables and fruits,1800,KHR,Cambodia,Battambang,792,Boeung Chhouk,3111,784,14,5,4,3111_784_14_5,
8/15/2019,"Cabbage (chinese, flowering) - Retail",KG,vegetables and fruits,3000,KHR,Cambodia,Battambang,792,Boeung Chhouk,3111,784,15,5,4,3111_784_15_5,
9/15/2019,"Cabbage (chinese, flowering) - Retail",KG,vegetables and fruits,5000,KHR,Cambodia,Battambang,792,Boeung Chhouk,3111,784,15,5,4,3111_784_15_5,
11/15/2019,"Cabbage (chinese, flowering) - Retail",KG,vegetables and fruits,3000,KHR,Cambodia,Battambang,792,Boeung Chhouk,3111,784,15,5,4,3111_784_15_5,
12/15/2019,"Cabbage (chinese, flowering) - Retail",KG,vegetables and fruits,3000,KHR,Cambodia,Battambang,792,Boeung Chhouk,3111,784,15,5,4,3111_784_15_5,
3/15/2020,"Cabbage (chinese, flowering) - Retail",KG,vegetables and fruits,5000,KHR,Cambodia,Battambang,792,Boeung Chhouk,3111,784,15,5,4,3111_784_15_5,
4/15/2020,"Cabbage (chinese, flowering) - Retail",KG,vegetables and fruits,2917,KHR,Cambodia,Battambang,792,Boeung Chhouk,3111,784,15,5,4,3111_784_15_5,
5/15/2020,"Cabbage (chinese, flowering) - Retail",KG,vegetables and fruits,2500,KHR,Cambodia,Battambang,792,Boeung Chhouk,3111,784,15,5,4,3111_784_15_5,
6/15/2020,"Cabbage (chinese, flowering) - Retail",KG,vegetables and fruits,4166.6667,KHR,Cambodia,Battambang,792,Boeung Chhouk,3111,784,15,5,4,3111_784_15_5,
7/15/2020,"Cabbage (chinese, flowering) - Retail",KG,vegetables and fruits,2666.6666,KHR,Cambodia,Battambang,792,Boeung Chhouk,3111,784,15,5,4,3111_784_15_5,
8/15/2019,Eggs (duck) - Wholesale,10 pcs,"meat, fish and eggs",4433,KHR,Cambodia,Battambang,792,Boeung Chhouk,3111,786,14,81,2,3111_786_14_81,
9/15/2019,Eggs (duck) - Wholesale,10 pcs,"meat, fish and eggs",4300,KHR,Cambodia,Battambang,792,Boeung Chhouk,3111,786,14,81,2,3111_786_14_81,
11/15/2019,Eggs (duck) - Wholesale,10 pcs,"meat, fish and eggs",3850,KHR,Cambodia,Battambang,792,Boeung Chhouk,3111,786,14,81,2,3111_786_14_81,
12/15/2019,Eggs (duck) - Wholesale,10 pcs,"meat, fish and eggs",4000,KHR,Cambodia,Battambang,792,Boeung Chhouk,3111,786,14,81,2,3111_786_14_81,
1/15/2020,Eggs (duck) - Wholesale,10 pcs,"meat, fish and eggs",4000,KHR,Cambodia,Battambang,792,Boeung Chhouk,3111,786,14,81,2,3111_786_14_81,
3/15/2020,Eggs (duck) - Wholesale,10 pcs,"meat, fish and eggs",4225,KHR,Cambodia,Battambang,792,Boeung Chhouk,3111,786,14,81,2,3111_786_14_81,
4/15/2020,Eggs (duck) - Wholesale,10 pcs,"meat, fish and eggs",4750,KHR,Cambodia,Battambang,792,Boeung Chhouk,3111,786,14,81,2,3111_786_14_81,
5/15/2020,Eggs (duck) - Wholesale,10 pcs,"meat, fish and eggs",4400,KHR,Cambodia,Battambang,792,Boeung Chhouk,3111,786,14,81,2,3111_786_14_81,
6/15/2020,Eggs (duck) - Wholesale,10 pcs,"meat, fish and eggs",4566.6667,KHR,Cambodia,Battambang,792,Boeung Chhouk,3111,786,14,81,2,3111_786_14_81,
7/15/2020,Eggs (duck) - Wholesale,10 pcs,"meat, fish and eggs",4500,KHR,Cambodia,Battambang,792,Boeung Chhouk,3111,786,14,81,2,3111_786_14_81,
8/15/2019,Eggs (duck) - Retail,10 pcs,"meat, fish and eggs",4500,KHR,Cambodia,Battambang,792,Boeung Chhouk,3111,786,15,81,2,3111_786_15_81,
9/15/2019,Eggs (duck) - Retail,10 pcs,"meat, fish and eggs",5000,KHR,Cambodia,Battambang,792,Boeung Chhouk,3111,786,15,81,2,3111_786_15_81,
11/15/2019,Eggs (duck) - Retail,10 pcs,"meat, fish and eggs",4000,KHR,Cambodia,Battambang,792,Boeung Chhouk,3111,786,15,81,2,3111_786_15_81,
12/15/2019,Eggs (duck) - Retail,10 pcs,"meat, fish and eggs",4200,KHR,Cambodia,Battambang,792,Boeung Chhouk,3111,786,15,81,2,3111_786_15_81,
1/15/2020,Eggs (duck) - Retail,10 pcs,"meat, fish and eggs",4150,KHR,Cambodia,Battambang,792,Boeung Chhouk,3111,786,15,81,2,3111_786_15_81,
3/15/2020,Eggs (duck) - Retail,10 pcs,"meat, fish and eggs",4500,KHR,Cambodia,Battambang,792,Boeung Chhouk,3111,786,15,81,2,3111_786_15_81,
4/15/2020,Eggs (duck) - Retail,10 pcs,"meat, fish and eggs",4750,KHR,Cambodia,Battambang,792,Boeung Chhouk,3111,786,15,81,2,3111_786_15_81,
5/15/2020,Eggs (duck) - Retail,10 pcs,"meat, fish and eggs",4500,KHR,Cambodia,Battambang,792,Boeung Chhouk,3111,786,15,81,2,3111_786_15_81,
6/15/2020,Eggs (duck) - Retail,10 pcs,"meat, fish and eggs",4883.3333,KHR,Cambodia,Battambang,792,Boeung Chhouk,3111,786,15,81,2,3111_786_15_81,
7/15/2020,Eggs (duck) - Retail,10 pcs,"meat, fish and eggs",5000,KHR,Cambodia,Battambang,792,Boeung Chhouk,3111,786,15,81,2,3111_786_15_81,
8/15/2019,"Beans (yardlong, green) - Wholesale",KG,vegetables and fruits,3167,KHR,Cambodia,Battambang,792,Boeung Chhouk,3111,787,14,5,4,3111_787_14_5,
9/15/2019,"Beans (yardlong, green) - Wholesale",KG,vegetables and fruits,2500,KHR,Cambodia,Battambang,792,Boeung Chhouk,3111,787,14,5,4,3111_787_14_5,
11/15/2019,"Beans (yardlong, green) - Wholesale",KG,vegetables and fruits,4000,KHR,Cambodia,Battambang,792,Boeung Chhouk,3111,787,14,5,4,3111_787_14_5,
12/15/2019,"Beans (yardlong, green) - Wholesale",KG,vegetables and fruits,2750,KHR,Cambodia,Battambang,792,Boeung Chhouk,3111,787,14,5,4,3111_787_14_5,
1/15/2020,"Beans (yardlong, green) - Wholesale",KG,vegetables and fruits,2250,KHR,Cambodia,Battambang,792,Boeung Chhouk,3111,787,14,5,4,3111_787_14_5,
3/15/2020,"Beans (yardlong, green) - Wholesale",KG,vegetables and fruits,2250,KHR,Cambodia,Battambang,792,Boeung Chhouk,3111,787,14,5,4,3111_787_14_5,
4/15/2020,"Beans (yardlong, green) - Wholesale",KG,vegetables and fruits,4166.5,KHR,Cambodia,Battambang,792,Boeung Chhouk,3111,787,14,5,4,3111_787_14_5,
5/15/2020,"Beans (yardlong, green) - Wholesale",KG,vegetables and fruits,4833,KHR,Cambodia,Battambang,792,Boeung Chhouk,3111,787,14,5,4,3111_787_14_5,
6/15/2020,"Beans (yardlong, green) - Wholesale",KG,vegetables and fruits,3333.3333,KHR,Cambodia,Battambang,792,Boeung Chhouk,3111,787,14,5,4,3111_787_14_5,
7/15/2020,"Beans (yardlong, green) - Wholesale",KG,vegetables and fruits,2266.6666,KHR,Cambodia,Battambang,792,Boeung Chhouk,3111,787,14,5,4,3111_787_14_5,
